Workbook

Sheet T220000000
B1: Agencia Tributaria
A3: =+T22001000!A3 -> Modelo 220 | C3: =+T22001000!C3 -> Diseño de registro. 2019
A4: =+T22001000!A4 -> Versión 1.9 | C4: Impuesto sobre Sociedades. Regimen de Consolidación Fiscal.
A5: =+T22001000!A4 -> Versión 1.9 | B5: Posic. | C5: Lon | D5: Tipo | E5: Descripción | F5: Validación | G5: Contenido
A6: 1 | B6: 1 | C6: 2 | D6: An | E6: Constante. | G6: <T
A7: =+A6+1 -> 2 | B7: =C6+B6 -> 3 | C7: 3 | D7: An | E7: Modelo | G7: 220
A8: =+A7+1 -> 3 | B8: =C7+B7 -> 6 | C8: 1 | D8: An | E8: Discriminente | G8: (*)[A|E|I|0]
A9: 4 | B9: 7 | C9: 4 | D9: An | E9: Ejercicio de devengo
A10: 5 | B10: 11 | C10: 2 | D10: An | E10: Período | G10: 0A
A11: 6 | B11: 13 | C11: 5 | D11: An | E11: Constante | G11: 0000>
A12: 7 | B12: 18 | C12: 5 | D12: An | E12: Constante | G12: "<AUX>"
A13: 8 | B13: 23 | C13: 70 | D13: An | E13: Reservado para la Administración. Rellenar con blancos | G13: BLANCOS
A14: 9 | B14: =C13+B13 -> 93 | C14: 4 | D14: An | E14: Versión del programa (**)
A15: 10 | B15: 97 | C15: 4 | D15: An | E15: Reservado para la Administración. Rellenar con blancos
A16: 11 | B16: 101 | C16: 9 | D16: An | E16: NIF Empresa Desarrollo (**)
A17: 12 | B17: 110 | C17: 213 | D17: An | E17: Reservado para la Administración. Rellenar con blancos
A18: 13 | B18: 323 | C18: 6 | D18: An | E18: Constante | G18: "</AUX>"
A19: 14 | B19: 329 | C19: Variable | D19: An | E19: Contenido del fichero. Aquí se debe incluir el contenido de las páginas correspondientes a la declaración según el formato descrito para cada página en este mismo documento
A20: 15 | B20: *** | C20: 3 | D20: An | E20: Constante | G20: </T
A21: 16 | B21: *** | C21: 3 | D21: An | E21: Modelo | G21: 220
A22: 17 | B22: *** | C22: 1 | D22: An | E22: Discriminente | G22: (*)[A|E|I|0]
A23: 18 | B23: *** | C23: 4 | D23: An | E23: Ejercicio de devengo
A24: 19 | B24: *** | C24: 2 | D24: An | E24: Período | G24: 0A
A25: 20 | B25: *** | C25: 5 | D25: An | E25: Constante. | G25: 0000>
A26: Total | C26: Variable
E27: (*) NOTA. Valor discriminante: "A" Aseguradoras; "E" Entidades de crédito; "I" Inversión colectiva; "0" Resto de entidades.
E28: Debe rellenarse en función del estado de cuentas que se cumplimenta.
E30: (**) A cumplimentar por las entidades desarrolladoras (EEDD):
E31: Versión del programa: Debe consignarse el identificador de la versión del SW desarrollado por la ED
E32: NIF Empresa Desarrollo: Debe consignarse el NIF de la ED del SW

Sheet T22001000
B1: Agencia Tributaria
A3: Modelo 220 | C3: Diseño de registro. 2019
A4: Versión 1.9 | C4: Impuesto Sobre Sociedades. Régimen de consolidación Fiscal
A6: Nº | B6: Posic. | C6: Lon | D6: Tipo | E6: Descripción | F6: Contenido
A7: 1 | B7: 1 | C7: 2 | D7: An | E7: Inicio del identificador de modelo y página. | F7: <T
A8: =+A7+1 -> 2 | B8: =C7+B7 -> 3 | C8: 3 | D8: Num | E8: Modelo. | F8: 220
A9: 3 | B9: =C8+B8 -> 6 | C9: 2 | D9: An | E9: Página. | F9: 01
A10: 4 | B10: 8 | C10: 1 | D10: An | E10: Letra | F10: 0
A11: 5 | B11: 9 | C11: 2 | D11: Num | E11: Hoja | F11: 00
A12: 6 | B12: 11 | C12: 1 | D12: An | E12: Fin de identificador de modelo y página. Constante ">". | F12: >
A13: 7 | B13: 12 | C13: 1 | D13: An | E13: Indicador de página complementaria. (Admite 99 complementarias)* | F13: [' ',C]
A14: 8 | B14: 13 | C14: 3 | D14: Num | E14: Número de orden de la página complementaria
A15: 9 | B15: 16 | C15: 1 | D15: An | E15: Tipo de declaración. RESERVADO PARA LA ADMINISTRACIÓN | F15: <Blancos>
A16: 10 | B16: 17 | C16: 9 | D16: An | E16: Identificación entidad representante/dominante (incluida en el grupo fiscal)- NIF. {Iden_NIF}
A17: 11 | B17: 26 | C17: 60 | D17: An | E17: Identificación entidad representante/dominante (incluida en el grupo fiscal)- Apellidos o Razón Social. {Iden_apellidos}
A18: 12 | B18: 86 | C18: 20 | D18: An | E18: Identificación entidad representante/dominante (incluida en el grupo fiscal)- Nombre {Iden_nombre}
A19: 13 | B19: 106 | C19: 4 | D19: Num | E19: Ejercicio. Campaña del registro. {campaña} | F19: 2019
A20: 14 | B20: 110 | C20: 2 | D20: An | E20: Periodo {periodo} | F20: 0A
A21: 15 | B21: 112 | C21: 1 | D21: Num | E21: Identificación entidad representante/dominante (incluida en el grupo fiscal). Representante (entidad no dominante) {Iden_representante} | F21: [0 = no, 1 = si]
A22: 16 | B22: 113 | C22: 1 | D22: Num | E22: Identificación entidad representante/dominante (incluida en el grupo fiscal). Dominante (incluida en el grupo fiscal) {Iden_dominante} | F22: [0 = no, 1 = si]
A23: 17 | B23: 114 | C23: 7 | D23: An | E23: Identificación entidad representante/dominante (incluida en el grupo fiscal)- Número del grupo {num_grupo} | F23: (NOTA2)
A24: 18 | B24: 121 | C24: 9 | D24: An | E24: Identificación entidad representante/dominante (incluida en el grupo fiscal)- Teléfono {Iden_tlfn}
A25: 19 | B25: 130 | C25: 8 | D25: Num | E25: Período Impositivo - Fecha de inicio. {PI_fecha_inicio} (AAAAMMDD)
A26: 20 | B26: 138 | C26: 8 | D26: Num | E26: Período Impositivo - Fecha final. {PI_fecha_final} (AAAAMMDD)
A27: 21 | B27: 146 | C27: 1 | D27: Num | E27: Tipo de ejercicio.{Tipo_Eje}
A28: 22 | B28: 147 | C28: 15 | D28: An | E28: Identificación entidad dominante. Nº de identificación {iden_dominante_numero}
A29: 23 | B29: 162 | C29: 60 | D29: An | E29: Identificación entidad dominante. Apellidos o Razón social {iden_dominante_apellidos}
A30: 24 | B30: 222 | C30: 20 | D30: An | E30: Identificación entidad dominante. Nombre {iden_dominante_nombre}
A31: 25 | B31: 242 | C31: 2 | D31: An | E31: Identificación entidad dominante. País/territorio foral {iden_dominante_pais} | F31: (NOTA1)
A32: 26 | B32: 244 | C32: 1 | D32: Num | E32: Declaración complementaria. {comp} | F32: [Blanco,X]
A33: 27 | B33: 245 | C33: 13 | D33: Num | E33: Nº de justificante de la declaración anterior. {NJust_ant}
A34: 28 | B34: 258 | C34: 5 | D34: An | E34: Actividades desarrolladas por el grupo (de mayor a menor importancia). Actividad principal. Epigrafe_CNAE. {CNAE_01}
A35: 29 | B35: 263 | C35: 60 | D35: An | E35: Actividades desarrolladas por el grupo (de mayor a menor importancia). Actividad principal. Descripcion CNAE (2009) {Descripcion_01}
A36: 30 | B36: 323 | C36: 5 | D36: An | E36: Actividades desarrolladas por el grupo (de mayor a menor importancia). Otras actividades. Epigrafe_CNAE. {CNAE_02}
A37: 31 | B37: 328 | C37: 60 | D37: An | E37: Actividades desarrolladas por le grupo (de mayor a menor importancia).Otras actividades. Descripcion CNAE (2009) {Descripcion_02}
A38: 32 | B38: 388 | C38: 5 | D38: An | E38: Actividades desarrolladas por el grupo (de mayor a menor importancia). Otras actividades. Epigrafe_CNAE. {CNAE_03}
A39: 33 | B39: 393 | C39: 60 | D39: An | E39: Actividades desarrollasas por el grupo (de mayor a menor importancia).Otras actividades. Descripcion CNAE {Descripcion_03}
A40: 34 | B40: 453 | C40: 5 | D40: An | E40: Actividades desarrolladas por el grupo (de mayor a menor importancia). Otras actividades. Epigrafe_CNAE. {CNAE_04}
A41: 35 | B41: 458 | C41: 60 | D41: An | E41: Actividades desarrollasas por el grupo (de mayor a menor importancia).Otras actividades. Descripcion CNAE (2009) {Descripcion_04}
A42: 36 | B42: 518 | C42: 5 | D42: An | E42: Actividades desarrolladas por el grupo (de mayor a menor importancia). Otras actividades. Epigrafe_CNAE. {CNAE_05}
A43: 37 | B43: 523 | C43: 60 | D43: An | E43: Actividades desarrollasas por el grupo (de mayor a menor importancia).Otras actividades. Descripcion CNAE {Descripcion_05}
A44: 38 | B44: 583 | C44: 5 | D44: An | E44: Actividades desarrolladas por el grupo (de mayor a menor importancia). Otras actividades. Epigrafe_CNAE. {CNAE_06}
A45: 39 | B45: 588 | C45: 60 | D45: An | E45: Actividades desarrollasas por el grupo (de mayor a menor importancia).Otras actividades. Descripcion CNAE (2009) {Descripcion_06}
A46: 40 | B46: 648 | C46: 5 | D46: An | E46: Actividades desarrolladas por el grupo (de mayor a menor importancia). Otras actividades. Epigrafe_CNAE. {CNAE_07}
A47: 41 | B47: 653 | C47: 60 | D47: An | E47: Actividades desarrollasas por el grupo (de mayor a menor importancia).Otras actividades. Descripcion CNAE {Descripcion_07}
A48: 42 | B48: 713 | C48: 5 | D48: An | E48: Actividades desarrolladas por el grupo (de mayor a menor importancia). Otras actividades. Epigrafe_CNAE. {CNAE_08}
A49: 43 | B49: 718 | C49: 60 | D49: An | E49: Actividades desarrollasas por el grupo (de mayor a menor importancia).Otras actividades. Descripcion CNAE (2009) {Descripcion_08}
A50: 44 | B50: 778 | C50: 5 | D50: An | E50: Actividades desarrolladas por el grupo (de mayor a menor importancia). Otras actividades. Epigrafe_CNAE. {CNAE_09}
A51: 45 | B51: 783 | C51: 60 | D51: an | E51: Actividades desarrollasas por el grupo (de mayor a menor importancia).Otras actividades. Descripcion CNAE {Descripcion_09}
A52: 46 | B52: 843 | C52: 5 | D52: An | E52: Actividades desarrolladas por el grupo (de mayor a menor importancia). Otras actividades. Epigrafe_CNAE. {CNAE_10}
A53: 47 | B53: 848 | C53: 60 | D53: An | E53: Actividades desarrollasas por el grupo (de mayor a menor importancia).Otras actividades. Descripcion CNAE (2009) {Descripcion_10}
A54: 48 | B54: 908 | C54: 5 | D54: An | E54: Actividades desarrolladas por el grupo (de mayor a menor importancia). Otras actividades. Epigrafe_CNAE. {CNAE_11}
A55: 49 | B55: 913 | C55: 60 | D55: An | E55: Actividades desarrollasas por el grupo (de mayor a menor importancia).Otras actividades. Descripcion CNAE {Descripcion_11}
A56: 50 | B56: 973 | C56: 5 | D56: An | E56: Actividades desarrolladas por el grupo (de mayor a menor importancia). Otras actividades. Epigrafe_CNAE. {CNAE_12}
A57: 51 | B57: 978 | C57: 60 | D57: An | E57: Actividades desarrollasas por el grupo (de mayor a menor importancia).Otras actividades. Descripcion CNAE (2009) {Descripcion_12}
A58: 52 | B58: 1038 | C58: 5 | D58: An | E58: Actividades desarrolladas por el grupo (de mayor a menor importancia). Otras actividades. Epigrafe_CNAE. {CNAE_13}
A59: 53 | B59: 1043 | C59: 60 | D59: An | E59: Actividades desarrollasas por el grupo (de mayor a menor importancia).Otras actividades. Descripcion CNAE {Descripcion_13}
A60: 54 | B60: 1103 | C60: 5 | D60: An | E60: Actividades desarrolladas por el grupo (de mayor a menor importancia). Otras actividades. Epigrafe_CNAE. {CNAE_14}
A61: 55 | B61: 1108 | C61: 60 | D61: An | E61: Actividades desarrollasas por el grupo (de mayor a menor importancia).Otras actividades. Descripcion CNAE (2009) {Descripcion_14}
A62: 56 | B62: 1168 | C62: 1 | D62: Num | E62: Tipo de grupo, a efecto de estados de cuentas consolidadas. Grupo General [00007] | F62: [0 = no, 1 = si]
A63: 57 | B63: 1169 | C63: 1 | D63: Num | E63: Tipo de grupo, a efectos de estados de cuentas consolidades. Grupo entidades de crédito [00012] | F63: [0 = no, 1 = si]
A64: 58 | B64: 1170 | C64: 1 | D64: Num | E64: Tipo de grupo, a efecto de estados de cuentas consolidadas. Grupo de entidades aseguradoras [00016] | F64: [0 = no, 1 = si]
A65: 59 | B65: 1171 | C65: 1 | D65: Num | E65: Tipo de grupo, a efectos de estados de cuentas consolidadas. Grupos de Cooperativas [00020] | F65: [0 = no, 1 = si]
A66: 60 | B66: 1172 | C66: 1 | D66: Num | E66: Tipo de grupo, a efectos de estados de cuentas consolidadas. Aplicación de incentivos reducida dimensión (Titulo VII, Capitulo XI L.I.S.) [00006] | F66: [0 = no, 1 = si]
A67: 61 | B67: 1173 | C67: 1 | D67: Num | E67: Tipo de grupo, a efectos de estados de cuentas consolidadas. Grupo foral (tributación conforme a normativa foral) [00065] | F67: [0 = no, 1 = si]
A68: 62 | B68: 1174 | C68: 1 | D68: Num | E68: Tipo de grupo, a efectos de estados de cuentas consolidadas. Grupo con entidad dominante extranjera o sometida a normativa foral [00066] | F68: [0 = no, 1 = si]
A69: 63 | B69: 1175 | C69: 1 | D69: Num | E69: Tipo de grupo, a efectos de estados de cuentas consolidadas. Grupo sometido a la normativa común con alguna entidad sometida a la normativa foral de Navarra (DT 19ª Ley Foral 26/2016, de 28 de diciembre) [00067] | F69: [0 = no, 1 = si]
A70: 64 | B70: 1176 | C70: 1 | D70: Num | E70: Tipo de grupo, a efectos de estados de cuentas consolidadas. Gripo que aplica las reglas art. 74.3 L.I.S. [00068] | F70: [0 = no, 1 = si]
A71: 65 | B71: =C70+B70 -> 1177 | C71: 1 | D71: Num | E71: Tipo de grupo, a efectos de estados de cuentas consolidadas. Opción del 0,7% de la cuota íntegra para fines sociales (DA 103ª Ley 6/2018, de 3 de julio) [00069] | F71: [0 = no, 1 = si]
A72: 66 | B72: 1178 | C72: 13 | D72: Num | E72: Número de justificante identificativo autoliquidación de la prestación patrimonial por conversión de activos (DA 13ª LIS)
A73: =+A72+1 -> 67 | B73: 1191 | C73: 36 | D73: An | E73: Declaración de los representantes legales de la entidad. 1 - Nombre y apellidos.{RL1_nombre}
A74: 68 | B74: =C73+B73 -> 1227 | C74: 9 | D74: An | E74: Declaración de los representantes legales de la entidad. 1 - N.I.F. {RL1_NIF}
A75: 69 | B75: 1236 | C75: 8 | D75: Num | E75: Declaración de los representantes legales de la entidad. 1 - Fecha poder {RL1_FechaPoder} (AAAAMMDD)
A76: 70 | B76: 1244 | C76: 12 | D76: An | E76: Declaración de los representantes legales de la entidad. 1 - Notaria {RL1_Notaria}
A77: 71 | B77: 1256 | C77: 36 | D77: An | E77: Declaración de los representantes legales de la entidad. 2 - Nombre y apellidos. {RL2_nombre}
A78: 72 | B78: 1292 | C78: 9 | D78: An | E78: Declaración de los representantes legales de la entidad. 2 - N.I.F. {RL2_NIF}
A79: 73 | B79: 1301 | C79: 8 | D79: Num | E79: Declaración de los representantes legales de la entidad. 2 - Fecha poder {RL2_FechaPoder} (AAAAMMDD)
A80: 74 | B80: 1309 | C80: 12 | D80: An | E80: Declaración de los representantes legales de la entidad. 2 - Notaria {RL2_Notaria}
A81: 75 | B81: 1321 | C81: 36 | D81: An | E81: Declaración de los representantes legales de la entidad. 3 - Nombre y apellidos. {RL3_nombre}
A82: 76 | B82: 1357 | C82: 9 | D82: An | E82: Declaración de los representantes legales de la entidad. 3 - N.I.F. {RL3_NIF}
A83: 77 | B83: 1366 | C83: 8 | D83: Num | E83: Declaración de los representantes legales de la entidad. 3 - Fecha poder {RL3_FechaPoder} (AAAAMMDD)
A84: 78 | B84: 1374 | C84: 12 | D84: An | E84: Declaración de los representantes legales de la entidad. 3 - Notaria {RL3_Notaria}
A85: 79 | B85: 1386 | C85: 50 | D85: An | E85: Nombre y apellidos de la persona de contacto para incidencias
A86: 80 | B86: 1436 | C86: 9 | D86: Num | E86: Teléfono fijo de contacto para incidencias
A87: 81 | B87: 1445 | C87: 9 | D87: Num | E87: Teléfono movil de contacto para incidencias
A88: 82 | B88: 1454 | C88: 50 | D88: An | E88: Dirección de correo electrónico para incidencias
A89: 83 | B89: 1504 | C89: 1 | D89: Num | E89: Declaración correspondiente al Art. 75 LIS con alguna entidad integrante del grupo fiscal sin aprobar sus cuentas anuales | F89: [0 = no, 1 = sí ]
A90: 84 | B90: 1505 | C90: 1 | D90: Num | E90: Nueva declaración art. 12.2 RDLey 19/2020 | F90: [0 = no, 1 = sí ]
A91: 85 | B91: 1506 | C91: 86 | D91: An | E91: RESERVADO PARA LA ADMINISTRACIÓN | F91: <Blancos>
A92: 86 | B92: 1592 | C92: 13 | D92: An | E92: SELLO ELECTRONICO RESERVADO PARA LA ADMINISTRACION | F92: <Blancos>
A93: 87 | B93: 1605 | C93: 12 | D93: An | E93: Fin de Registro. | F93: </T22001000>
A94: Total: | C94: =+B93+C93-1 -> 1616
E96: * IMPORTANTE: El fichero de la declaración no puede superar las 2999 páginas.
E97: NOTA1: Código ISO-3166-1 Alfa-2 para los países y '01', '20',31' y '48' para Araba/Álava, Guipuzkoa, Navarra o Bizkaia respectivamente
E98: NOTA2: El número de grupo deberá seguir uno de los siguientes formatos según la normativa a la que se acoja el grupo, siendo en cualquiera caso una cadena de 7 caracteres (las comillas dobles no forman parte del formato descrito): Estatal formato "----/YY", donde ---- es el número secuencial otorgado, de 4 dígitos, ajustado a la derecha y completado con ceros a la izquierda, si procede, e YY son los dos últimos dígitos del ejercicio de registro del grupo. Araba formato "---/--A", donde --- y -- son valores numéricos de 3 y 2 dígitos respectivamente ajustados a la derecha y completados con ceros a la izquierda, si procede, seguidos del literal 'A'. Gipuzkoa formato "---/--G" donde --- y -- son valores numéricos de 3 y 2 dígitos respectivamente ajustados a la derecha y completados con ceros a la izquierda, si procede, seguidos del literal 'G'. Bizkaia formato " -----B", donde el primer carácter es un blanco, ----- son 5 dígitos ajustados a la derecha completados con ceros a la izquierda, si procece, y el último carácter es el literal 'B'. Navarra formato "------N" donde ------ pueden ser letras, numéros u otros caracteres, siendo el último carácter, el literal 'N'.
E100: Modificados textos partidas 00067 y 00069

Sheet T22002000
B1: Agencia Tributaria
A3: =+T22001000!A3 -> Modelo 220 | C3: =+T22001000!C3 -> Diseño de registro. 2019
A4: =+T22001000!A4 -> Versión 1.9 | C4: Impuesto Sobre Entidades. Régimen de consolidación Fiscal. ENTIDADES DEL GRUPO EN RÉGIMEN DE CONSOLIDACIÓN FISCAL
A6: Nº | B6: Posic. | C6: Lon | D6: Tipo | E6: Descripción | F6: Contenido
A7: 1 | B7: 1 | C7: 2 | D7: An | E7: Inicio del identificador de modelo y página. | F7: <T
A8: =+A7+1 -> 2 | B8: =C7+B7 -> 3 | C8: 3 | D8: Num | E8: Modelo. | F8: 220
A9: 3 | B9: 6 | C9: 2 | D9: An | E9: Página. | F9: 02
A10: 4 | B10: 8 | C10: 1 | D10: An | E10: Letra | F10: 0
A11: 5 | B11: 9 | C11: 2 | D11: Num | E11: Hoja | F11: 00
A12: 6 | B12: 11 | C12: 1 | D12: An | E12: Fin de identificador de modelo y página. Constante ">". | F12: >
A13: 7 | B13: =C12+B12 -> 12 | C13: 1 | D13: An | E13: Indicador de página complementaria. (Admite 99 complementrias)* | F13: [' ',C]
A14: 8 | B14: 13 | C14: 3 | D14: Num | E14: Número de orden de la página complementaria
A15: =A14+1 -> 9 | B15: =B14+C14 -> 16 | C15: 40 | D15: An | E15: ENTIDADES DEL GRUPO EN RÉGIMEN DE CONSOLIDACIÓN FISCAL.Entidad dominante (excepto grupos compuestos sólo por entidades dependientes). Denominación social
A16: 10 | B16: =B15+C15 -> 56 | C16: 9 | D16: An | E16: ENTIDADES DEL GRUPO EN RÉGIMEN DE CONSOLIDACIÓN FISCAL. Entidad dominante (excepto grupos compuestos sólo por entidades dependientes). NIF
A17: 11 | B17: 65 | C17: 40 | D17: An | E17: ENTIDADES DEL GRUPO EN RÉGIMEN DE CONSOLIDACIÓN FISCAL. Entidad dominante (excepto grupos compuestos sólo por entidades dependientes). Domicilio ﬁscal
A18: 12 | B18: =B17+C17 -> 105 | C18: 8 | D18: Num | E18: ENTIDADES DEL GRUPO EN RÉGIMEN DE CONSOLIDACIÓN FISCAL. Entidad dominante (excepto grupos compuestos sólo por entidades dependientes). Fecha de incorporación al grupo (AAAAMMDD)
A19: =A18+1 -> 13 | B19: =B18+C18 -> 113 | C19: 16 | D19: An | E19: ENTIDADES DEL GRUPO EN RÉGIMEN DE CONSOLIDACIÓN FISCAL. Entidad dominante (excepto grupos compuestos sólo por entidades dependientes). Código seguro de identificación de presentación de la declaración individual
A20: =A19+1 -> 14 | B20: =B19+C19 -> 129 | C20: 1 | D20: Num | E20: ENTIDADES DEL GRUPO EN RÉGIMEN DE CONSOLIDACIÓN FISCAL. Entidad dominante (excepto grupos compuestos sólo por entidades dependientes). Declaración individual únicamente a Hacienda Foral(*) | F20: [0,1]
A21: =A20+1 -> 15 | B21: =B20+C20 -> 130 | C21: 40 | D21: An | E21: ENTIDADES DEL GRUPO EN RÉGIMEN DE CONSOLIDACIÓN FISCAL. ENTIDADES dependientes/Cooperativas integrantes del grupo. Denominación social. 1
A22: 16 | B22: 170 | C22: 9 | D22: An | E22: ENTIDADES DEL GRUPO EN RÉGIMEN DE CONSOLIDACIÓN FISCAL. ENTIDADES dependientes/Cooperativas integrantes del grupo. NIF. 1
A23: 17 | B23: 179 | C23: 40 | D23: An | E23: ENTIDADES DEL GRUPO EN RÉGIMEN DE CONSOLIDACIÓN FISCAL. ENTIDADES dependientes/Cooperativas integrantes del grupo. Domicilio ﬁscal. 1
A24: 18 | B24: 219 | C24: 8 | D24: Num | E24: ENTIDADES DEL GRUPO EN RÉGIMEN DE CONSOLIDACIÓN FISCAL. dependientes/Cooperativas integrantes del grupo. Fecha de incorporación al grupo. 1 (AAAAMMDD)
A25: 19 | B25: 227 | C25: 5 | D25: Num | E25: ENTIDADES DEL GRUPO EN RÉGIMEN DE CONSOLIDACIÓN FISCAL. ENTIDADES dependientes/Cooperativas integrantes del grupo. Participación directa e indirecta al ﬁ nal del ejercicio %. 1
A26: 20 | B26: =B25+C25 -> 232 | C26: 5 | D26: Num | E26: ENTIDADES DEL GRUPO EN RÉGIMEN DE CONSOLIDACIÓN FISCAL. ENTIDADES dependientes/Cooperativas integrantes del grupo. % derechos de voto. 1
A27: 21 | B27: 237 | C27: 16 | D27: An | E27: ENTIDADES DEL GRUPO EN RÉGIMEN DE CONSOLIDACIÓN FISCAL. ENTIDADES dependientes/Cooperativas integrantes del grupo. Código seguro de identificación de presentación de la declaración individual. 1
A28: 22 | B28: 253 | C28: 1 | D28: Num | E28: ENTIDADES DEL GRUPO EN RÉGIMEN DE CONSOLIDACIÓN FISCAL. ENTIDADES dependientes/Cooperativas integrantes del grupo. Declaración individual únicamente a Hacienda Foral(*). 1 | F28: [0,1]
A29: 23 | B29: 254 | C29: 40 | D29: An | E29: ENTIDADES DEL GRUPO EN RÉGIMEN DE CONSOLIDACIÓN FISCAL. ENTIDADES dependientes/Cooperativas integrantes del grupo. Denominación social. 2
A30: 24 | B30: 294 | C30: 9 | D30: An | E30: ENTIDADES DEL GRUPO EN RÉGIMEN DE CONSOLIDACIÓN FISCAL. ENTIDADES dependientes/Cooperativas integrantes del grupo. NIF. 2
A31: 25 | B31: 303 | C31: 40 | D31: An | E31: ENTIDADES DEL GRUPO EN RÉGIMEN DE CONSOLIDACIÓN FISCAL. ENTIDADES dependientes/Cooperativas integrantes del grupo. Domicilio ﬁscal. 2
A32: 26 | B32: 343 | C32: 8 | D32: Num | E32: ENTIDADES DEL GRUPO EN RÉGIMEN DE CONSOLIDACIÓN FISCAL. ENTIDADES dependientes/Cooperativas integrantes del grupo. Fecha de incorporación al grupo. 2 (AAAAMMDD)
A33: 27 | B33: 351 | C33: 5 | D33: Num | E33: ENTIDADES DEL GRUPO EN RÉGIMEN DE CONSOLIDACIÓN FISCAL. ENTIDADES dependientes/Cooperativas integrantes del grupo. Participación directa e indirecta al ﬁ nal del ejercicio %. 2
A34: 28 | B34: 356 | C34: 5 | D34: Num | E34: ENTIDADES DEL GRUPO EN RÉGIMEN DE CONSOLIDACIÓN FISCAL. ENTIDADES dependientes/Cooperativas integrantes del grupo. % derechos de voto. 2
A35: 29 | B35: 361 | C35: 16 | D35: An | E35: ENTIDADES DEL GRUPO EN RÉGIMEN DE CONSOLIDACIÓN FISCAL. ENTIDADES dependientes/Cooperativas integrantes del grupo. Código seguro de identificación de presentación de la declaración individual. 2
A36: 30 | B36: 377 | C36: 1 | D36: Num | E36: ENTIDADES DEL GRUPO EN RÉGIMEN DE CONSOLIDACIÓN FISCAL. ENTIDADES dependientes/Cooperativas integrantes del grupo. Declaración individual únicamente a Hacienda Foral(*). 2 | F36: [0,1]
A37: 31 | B37: 378 | C37: 40 | D37: An | E37: ENTIDADES DEL GRUPO EN RÉGIMEN DE CONSOLIDACIÓN FISCAL. ENTIDADES dependientes/Cooperativas integrantes del grupo. Denominación social. 3
A38: 32 | B38: 418 | C38: 9 | D38: An | E38: ENTIDADES DEL GRUPO EN RÉGIMEN DE CONSOLIDACIÓN FISCAL. ENTIDADES dependientes/Cooperativas integrantes del grupo. NIF. 3
A39: 33 | B39: 427 | C39: 40 | D39: An | E39: ENTIDADES DEL GRUPO EN RÉGIMEN DE CONSOLIDACIÓN FISCAL. ENTIDADES dependientes/Cooperativas integrantes del grupo. Domicilio ﬁscal. 3
A40: 34 | B40: 467 | C40: 8 | D40: Num | E40: ENTIDADES DEL GRUPO EN RÉGIMEN DE CONSOLIDACIÓN FISCAL. ENTIDADES dependientes/Cooperativas integrantes del grupo. Fecha de incorporación al grupo. 3 (AAAAMMDD)
A41: 35 | B41: 475 | C41: 5 | D41: Num | E41: ENTIDADES DEL GRUPO EN RÉGIMEN DE CONSOLIDACIÓN FISCAL. ENTIDADES dependientes/Cooperativas integrantes del grupo. Participación directa e indirecta al ﬁ nal del ejercicio %. 3
A42: 36 | B42: 480 | C42: 5 | D42: Num | E42: ENTIDADES DEL GRUPO EN RÉGIMEN DE CONSOLIDACIÓN FISCAL. ENTIDADES dependientes/Cooperativas integrantes del grupo. % derechos de voto. 3
A43: 37 | B43: 485 | C43: 16 | D43: An | E43: ENTIDADES DEL GRUPO EN RÉGIMEN DE CONSOLIDACIÓN FISCAL. ENTIDADES dependientes/Cooperativas integrantes del grupo. Código seguro de identificación de presentación de la declaración individual. 3
A44: 38 | B44: 501 | C44: 1 | D44: Num | E44: ENTIDADES DEL GRUPO EN RÉGIMEN DE CONSOLIDACIÓN FISCAL. ENTIDADES dependientes/Cooperativas integrantes del grupo. Declaración individual únicamente a Hacienda Foral(*). 3 | F44: [0,1]
A45: 39 | B45: 502 | C45: 40 | D45: An | E45: ENTIDADES DEL GRUPO EN RÉGIMEN DE CONSOLIDACIÓN FISCAL. ENTIDADES dependientes/Cooperativas integrantes del grupo. Denominación social. 4
A46: 40 | B46: 542 | C46: 9 | D46: An | E46: ENTIDADES DEL GRUPO EN RÉGIMEN DE CONSOLIDACIÓN FISCAL. ENTIDADES dependientes/Cooperativas integrantes del grupo. NIF. 4
A47: 41 | B47: 551 | C47: 40 | D47: An | E47: ENTIDADES DEL GRUPO EN RÉGIMEN DE CONSOLIDACIÓN FISCAL. ENTIDADES dependientes/Cooperativas integrantes del grupo. Domicilio ﬁscal. 4
A48: 42 | B48: 591 | C48: 8 | D48: Num | E48: ENTIDADES DEL GRUPO EN RÉGIMEN DE CONSOLIDACIÓN FISCAL. ENTIDADES dependientes/Cooperativas integrantes del grupo. Fecha de incorporación al grupo. 4 (AAAAMMDD)
A49: 43 | B49: 599 | C49: 5 | D49: Num | E49: ENTIDADES DEL GRUPO EN RÉGIMEN DE CONSOLIDACIÓN FISCAL. ENTIDADES dependientes/Cooperativas integrantes del grupo. Participación directa e indirecta al ﬁ nal del ejercicio %. 4
A50: 44 | B50: 604 | C50: 5 | D50: Num | E50: ENTIDADES DEL GRUPO EN RÉGIMEN DE CONSOLIDACIÓN FISCAL. ENTIDADES dependientes/Cooperativas integrantes del grupo. % derechos de voto. 4
A51: 45 | B51: 609 | C51: 16 | D51: An | E51: ENTIDADES DEL GRUPO EN RÉGIMEN DE CONSOLIDACIÓN FISCAL. ENTIDADES dependientes/Cooperativas integrantes del grupo. Código seguro de identificación de presentación de la declaración individual. 4
A52: 46 | B52: 625 | C52: 1 | D52: Num | E52: ENTIDADES DEL GRUPO EN RÉGIMEN DE CONSOLIDACIÓN FISCAL. ENTIDADES dependientes/Cooperativas integrantes del grupo. Declaración individual únicamente a Hacienda Foral(*). 4 | F52: [0,1]
A53: 47 | B53: 626 | C53: 40 | D53: An | E53: ENTIDADES DEL GRUPO EN RÉGIMEN DE CONSOLIDACIÓN FISCAL. ENTIDADES dependientes/Cooperativas integrantes del grupo. Denominación social. 5
A54: 48 | B54: 666 | C54: 9 | D54: An | E54: ENTIDADES DEL GRUPO EN RÉGIMEN DE CONSOLIDACIÓN FISCAL. ENTIDADES dependientes/Cooperativas integrantes del grupo. NIF. 5
A55: 49 | B55: 675 | C55: 40 | D55: An | E55: ENTIDADES DEL GRUPO EN RÉGIMEN DE CONSOLIDACIÓN FISCAL. ENTIDADES dependientes/Cooperativas integrantes del grupo. Domicilio ﬁscal. 5
A56: 50 | B56: 715 | C56: 8 | D56: Num | E56: ENTIDADES DEL GRUPO EN RÉGIMEN DE CONSOLIDACIÓN FISCAL. ENTIDADES dependientes/Cooperativas integrantes del grupo. Fecha de incorporación al grupo. 5 (AAAAMMDD)
A57: 51 | B57: 723 | C57: 5 | D57: Num | E57: ENTIDADES DEL GRUPO EN RÉGIMEN DE CONSOLIDACIÓN FISCAL. ENTIDADES dependientes/Cooperativas integrantes del grupo. Participación directa e indirecta al ﬁ nal del ejercicio %. 5
A58: 52 | B58: 728 | C58: 5 | D58: Num | E58: ENTIDADES DEL GRUPO EN RÉGIMEN DE CONSOLIDACIÓN FISCAL. ENTIDADES dependientes/Cooperativas integrantes del grupo. % derechos de voto. 5
A59: 53 | B59: 733 | C59: 16 | D59: An | E59: ENTIDADES DEL GRUPO EN RÉGIMEN DE CONSOLIDACIÓN FISCAL. ENTIDADES dependientes/Cooperativas integrantes del grupo. Código seguro de identificación de presentación de la declaración individual. 5
A60: 54 | B60: 749 | C60: 1 | D60: Num | E60: ENTIDADES DEL GRUPO EN RÉGIMEN DE CONSOLIDACIÓN FISCAL. ENTIDADES dependientes/Cooperativas integrantes del grupo. Declaración individual únicamente a Hacienda Foral(*). 5 | F60: [0,1]
A61: 55 | B61: 750 | C61: 40 | D61: An | E61: ENTIDADES DEL GRUPO EN RÉGIMEN DE CONSOLIDACIÓN FISCAL. ENTIDADES dependientes/Cooperativas integrantes del grupo. Denominación social. 6
A62: 56 | B62: 790 | C62: 9 | D62: An | E62: ENTIDADES DEL GRUPO EN RÉGIMEN DE CONSOLIDACIÓN FISCAL. ENTIDADES dependientes/Cooperativas integrantes del grupo. NIF. 6
A63: 57 | B63: 799 | C63: 40 | D63: An | E63: ENTIDADES DEL GRUPO EN RÉGIMEN DE CONSOLIDACIÓN FISCAL. ENTIDADES dependientes/Cooperativas integrantes del grupo. Domicilio ﬁscal. 6
A64: 58 | B64: 839 | C64: 8 | D64: Num | E64: ENTIDADES DEL GRUPO EN RÉGIMEN DE CONSOLIDACIÓN FISCAL. ENTIDADES dependientes/Cooperativas integrantes del grupo. Fecha de incorporación al grupo. 6 (AAAAMMDD)
A65: 59 | B65: 847 | C65: 5 | D65: Num | E65: ENTIDADES DEL GRUPO EN RÉGIMEN DE CONSOLIDACIÓN FISCAL. ENTIDADES dependientes/Cooperativas integrantes del grupo. Participación directa e indirecta al ﬁ nal del ejercicio %. 6
A66: 60 | B66: 852 | C66: 5 | D66: Num | E66: ENTIDADES DEL GRUPO EN RÉGIMEN DE CONSOLIDACIÓN FISCAL. ENTIDADES dependientes/Cooperativas integrantes del grupo. % derechos de voto. 6
A67: 61 | B67: 857 | C67: 16 | D67: An | E67: ENTIDADES DEL GRUPO EN RÉGIMEN DE CONSOLIDACIÓN FISCAL. ENTIDADES dependientes/Cooperativas integrantes del grupo. Código seguro de identificación de presentación de la declaración individual. 6
A68: 62 | B68: 873 | C68: 1 | D68: Num | E68: ENTIDADES DEL GRUPO EN RÉGIMEN DE CONSOLIDACIÓN FISCAL. ENTIDADES dependientes/Cooperativas integrantes del grupo. Declaración individual únicamente a Hacienda Foral(*). 6 | F68: [0,1]
A69: 63 | B69: 874 | C69: 40 | D69: An | E69: ENTIDADES DEL GRUPO EN RÉGIMEN DE CONSOLIDACIÓN FISCAL. ENTIDADES dependientes/Cooperativas integrantes del grupo. Denominación social. 7
A70: 64 | B70: 914 | C70: 9 | D70: An | E70: ENTIDADES DEL GRUPO EN RÉGIMEN DE CONSOLIDACIÓN FISCAL. ENTIDADES dependientes/Cooperativas integrantes del grupo. NIF. 7
A71: 65 | B71: 923 | C71: 40 | D71: An | E71: ENTIDADES DEL GRUPO EN RÉGIMEN DE CONSOLIDACIÓN FISCAL. ENTIDADES dependientes/Cooperativas integrantes del grupo. Domicilio ﬁscal. 7
A72: 66 | B72: 963 | C72: 8 | D72: Num | E72: ENTIDADES DEL GRUPO EN RÉGIMEN DE CONSOLIDACIÓN FISCAL. ENTIDADES dependientes/Cooperativas integrantes del grupo. Fecha de incorporación al grupo. 7 (AAAAMMDD)
A73: 67 | B73: 971 | C73: 5 | D73: Num | E73: ENTIDADES DEL GRUPO EN RÉGIMEN DE CONSOLIDACIÓN FISCAL. ENTIDADES dependientes/Cooperativas integrantes del grupo. Participación directa e indirecta al ﬁ nal del ejercicio %. 7
A74: 68 | B74: 976 | C74: 5 | D74: Num | E74: ENTIDADES DEL GRUPO EN RÉGIMEN DE CONSOLIDACIÓN FISCAL. ENTIDADES dependientes/Cooperativas integrantes del grupo. % derechos de voto. 7
A75: 69 | B75: 981 | C75: 16 | D75: An | E75: ENTIDADES DEL GRUPO EN RÉGIMEN DE CONSOLIDACIÓN FISCAL. ENTIDADES dependientes/Cooperativas integrantes del grupo. Código seguro de identificación de presentación de la declaración individual. 7
A76: 70 | B76: 997 | C76: 1 | D76: Num | E76: ENTIDADES DEL GRUPO EN RÉGIMEN DE CONSOLIDACIÓN FISCAL. ENTIDADES dependientes/Cooperativas integrantes del grupo. Declaración individual únicamente a Hacienda Foral(*). 7 | F76: [0,1]
A77: 71 | B77: 998 | C77: 40 | D77: An | E77: ENTIDADES DEL GRUPO EN RÉGIMEN DE CONSOLIDACIÓN FISCAL. ENTIDADES dependientes/Cooperativas integrantes del grupo. Denominación social. 8
A78: =A77+1 -> 72 | B78: 1038 | C78: 9 | D78: An | E78: ENTIDADES DEL GRUPO EN RÉGIMEN DE CONSOLIDACIÓN FISCAL. ENTIDADES dependientes/Cooperativas integrantes del grupo. NIF. 8
A79: 73 | B79: 1047 | C79: 40 | D79: An | E79: ENTIDADES DEL GRUPO EN RÉGIMEN DE CONSOLIDACIÓN FISCAL. ENTIDADES dependientes/Cooperativas integrantes del grupo. Domicilio ﬁscal. 8
A80: 74 | B80: 1087 | C80: 8 | D80: Num | E80: ENTIDADES DEL GRUPO EN RÉGIMEN DE CONSOLIDACIÓN FISCAL. ENTIDADES dependientes/Cooperativas integrantes del grupo. Fecha de incorporación al grupo. 8 (AAAAMMDD)
A81: 75 | B81: 1095 | C81: 5 | D81: Num | E81: ENTIDADES DEL GRUPO EN RÉGIMEN DE CONSOLIDACIÓN FISCAL. ENTIDADES dependientes/Cooperativas integrantes del grupo. Participación directa e indirecta al ﬁ nal del ejercicio %. 8
A82: 76 | B82: 1100 | C82: 5 | D82: Num | E82: ENTIDADES DEL GRUPO EN RÉGIMEN DE CONSOLIDACIÓN FISCAL. ENTIDADES dependientes/Cooperativas integrantes del grupo. % derechos de voto. 8
A83: 77 | B83: 1105 | C83: 16 | D83: An | E83: ENTIDADES DEL GRUPO EN RÉGIMEN DE CONSOLIDACIÓN FISCAL. ENTIDADES dependientes/Cooperativas integrantes del grupo. Código seguro de identificación de presentación de la declaración individual. 8
A84: 78 | B84: 1121 | C84: 1 | D84: Num | E84: ENTIDADES DEL GRUPO EN RÉGIMEN DE CONSOLIDACIÓN FISCAL. ENTIDADES dependientes/Cooperativas integrantes del grupo. Declaración individual únicamente a Hacienda Foral(*). 8 | F84: [0,1]
A85: 79 | B85: 1122 | C85: 40 | D85: An | E85: ENTIDADES DEL GRUPO EN RÉGIMEN DE CONSOLIDACIÓN FISCAL. ENTIDADES dependientes/Cooperativas integrantes del grupo. Denominación social. 9
A86: 80 | B86: 1162 | C86: 9 | D86: An | E86: ENTIDADES DEL GRUPO EN RÉGIMEN DE CONSOLIDACIÓN FISCAL. ENTIDADES dependientes/Cooperativas integrantes del grupo. NIF. 9
A87: 81 | B87: 1171 | C87: 40 | D87: An | E87: ENTIDADES DEL GRUPO EN RÉGIMEN DE CONSOLIDACIÓN FISCAL. ENTIDADES dependientes/Cooperativas integrantes del grupo. Domicilio ﬁscal. 9
A88: 82 | B88: 1211 | C88: 8 | D88: Num | E88: ENTIDADES DEL GRUPO EN RÉGIMEN DE CONSOLIDACIÓN FISCAL. ENTIDADES dependientes/Cooperativas integrantes del grupo. Fecha de incorporación al grupo. 9 (AAAAMMDD)
A89: 83 | B89: 1219 | C89: 5 | D89: Num | E89: ENTIDADES DEL GRUPO EN RÉGIMEN DE CONSOLIDACIÓN FISCAL. ENTIDADES dependientes/Cooperativas integrantes del grupo. Participación directa e indirecta al ﬁ nal del ejercicio %. 9
A90: 84 | B90: =B89+C89 -> 1224 | C90: 5 | D90: Num | E90: ENTIDADES DEL GRUPO EN RÉGIMEN DE CONSOLIDACIÓN FISCAL. ENTIDADES dependientes/Cooperativas integrantes del grupo. % derechos de voto. 9
A91: 85 | B91: 1229 | C91: 16 | D91: An | E91: ENTIDADES DEL GRUPO EN RÉGIMEN DE CONSOLIDACIÓN FISCAL. ENTIDADES dependientes/Cooperativas integrantes del grupo. Código seguro de identificación de presentación de la declaración individual. 9
A92: 86 | B92: 1245 | C92: 1 | D92: Num | E92: ENTIDADES DEL GRUPO EN RÉGIMEN DE CONSOLIDACIÓN FISCAL. ENTIDADES dependientes/Cooperativas integrantes del grupo. Declaración individual únicamente a Hacienda Foral(*). 9 | F92: [0,1]
A93: 87 | B93: 1246 | C93: 40 | D93: An | E93: ENTIDADES DEL GRUPO EN RÉGIMEN DE CONSOLIDACIÓN FISCAL. ENTIDADES dependientes/Cooperativas integrantes del grupo. Denominación social. 10
A94: 88 | B94: 1286 | C94: 9 | D94: An | E94: ENTIDADES DEL GRUPO EN RÉGIMEN DE CONSOLIDACIÓN FISCAL. ENTIDADES dependientes/Cooperativas integrantes del grupo. NIF. 10
A95: 89 | B95: 1295 | C95: 40 | D95: An | E95: ENTIDADES DEL GRUPO EN RÉGIMEN DE CONSOLIDACIÓN FISCAL. ENTIDADES dependientes/Cooperativas integrantes del grupo. Domicilio ﬁscal. 10
A96: 90 | B96: 1335 | C96: 8 | D96: Num | E96: ENTIDADES DEL GRUPO EN RÉGIMEN DE CONSOLIDACIÓN FISCAL. ENTIDADES dependientes/Cooperativas integrantes del grupo. Fecha de incorporación al grupo. 10 (AAAAMMDD)
A97: 91 | B97: 1343 | C97: 5 | D97: Num | E97: ENTIDADES DEL GRUPO EN RÉGIMEN DE CONSOLIDACIÓN FISCAL. ENTIDADES dependientes/Cooperativas integrantes del grupo. Participación directa e indirecta al ﬁ nal del ejercicio %. 10
A98: 92 | B98: 1348 | C98: 5 | D98: Num | E98: ENTIDADES DEL GRUPO EN RÉGIMEN DE CONSOLIDACIÓN FISCAL. ENTIDADES dependientes/Cooperativas integrantes del grupo. % derechos de voto. 10
A99: 93 | B99: 1353 | C99: 16 | D99: An | E99: ENTIDADES DEL GRUPO EN RÉGIMEN DE CONSOLIDACIÓN FISCAL. ENTIDADES dependientes/Cooperativas integrantes del grupo. Código seguro de identificación de presentación de la declaración individual. 10
A100: 94 | B100: 1369 | C100: 1 | D100: Num | E100: ENTIDADES DEL GRUPO EN RÉGIMEN DE CONSOLIDACIÓN FISCAL. ENTIDADES dependientes/Cooperativas integrantes del grupo. Declaración individual únicamente a Hacienda Foral(*). 10 | F100: [0,1]
A101: 95 | B101: 1370 | C101: 40 | D101: An | E101: ENTIDADES DEL GRUPO EN RÉGIMEN DE CONSOLIDACIÓN FISCAL. ENTIDADES dependientes/Cooperativas integrantes del grupo. Denominación social. 11
A102: 96 | B102: 1410 | C102: 9 | D102: An | E102: ENTIDADES DEL GRUPO EN RÉGIMEN DE CONSOLIDACIÓN FISCAL. ENTIDADES dependientes/Cooperativas integrantes del grupo. NIF. 11
A103: 97 | B103: 1419 | C103: 40 | D103: An | E103: ENTIDADES DEL GRUPO EN RÉGIMEN DE CONSOLIDACIÓN FISCAL. ENTIDADES dependientes/Cooperativas integrantes del grupo. Domicilio ﬁscal. 11
A104: 98 | B104: 1459 | C104: 8 | D104: Num | E104: ENTIDADES DEL GRUPO EN RÉGIMEN DE CONSOLIDACIÓN FISCAL. ENTIDADES dependientes/Cooperativas integrantes del grupo. Fecha de incorporación al grupo. 11 (AAAAMMDD)
A105: 99 | B105: 1467 | C105: 5 | D105: Num | E105: ENTIDADES DEL GRUPO EN RÉGIMEN DE CONSOLIDACIÓN FISCAL. ENTIDADES dependientes/Cooperativas integrantes del grupo. Participación directa e indirecta al ﬁ nal del ejercicio %. 11
A106: 100 | B106: 1472 | C106: 5 | D106: Num | E106: ENTIDADES DEL GRUPO EN RÉGIMEN DE CONSOLIDACIÓN FISCAL. ENTIDADES dependientes/Cooperativas integrantes del grupo. % derechos de voto. 11
A107: 101 | B107: 1477 | C107: 16 | D107: An | E107: ENTIDADES DEL GRUPO EN RÉGIMEN DE CONSOLIDACIÓN FISCAL. ENTIDADES dependientes/Cooperativas integrantes del grupo. Código seguro de identificación de presentación de la declaración individual. 11
A108: 102 | B108: 1493 | C108: 1 | D108: Num | E108: ENTIDADES DEL GRUPO EN RÉGIMEN DE CONSOLIDACIÓN FISCAL. ENTIDADES dependientes/Cooperativas integrantes del grupo. Declaración individual únicamente a Hacienda Foral(*). 11 | F108: [0,1]
A109: 103 | B109: 1494 | C109: 40 | D109: An | E109: ENTIDADES DEL GRUPO EN RÉGIMEN DE CONSOLIDACIÓN FISCAL. ENTIDADES dependientes/Cooperativas integrantes del grupo. Denominación social. 12
A110: 104 | B110: 1534 | C110: 9 | D110: An | E110: ENTIDADES DEL GRUPO EN RÉGIMEN DE CONSOLIDACIÓN FISCAL. ENTIDADES dependientes/Cooperativas integrantes del grupo. NIF. 12
A111: 105 | B111: 1543 | C111: 40 | D111: An | E111: ENTIDADES DEL GRUPO EN RÉGIMEN DE CONSOLIDACIÓN FISCAL. ENTIDADES dependientes/Cooperativas integrantes del grupo. Domicilio ﬁscal. 12
A112: 106 | B112: 1583 | C112: 8 | D112: Num | E112: ENTIDADES DEL GRUPO EN RÉGIMEN DE CONSOLIDACIÓN FISCAL. ENTIDADES dependientes/Cooperativas integrantes del grupo. Fecha de incorporación al grupo. 12 (AAAAMMDD)
A113: 107 | B113: 1591 | C113: 5 | D113: Num | E113: ENTIDADES DEL GRUPO EN RÉGIMEN DE CONSOLIDACIÓN FISCAL. ENTIDADES dependientes/Cooperativas integrantes del grupo. Participación directa e indirecta al ﬁ nal del ejercicio %. 12
A114: 108 | B114: 1596 | C114: 5 | D114: Num | E114: ENTIDADES DEL GRUPO EN RÉGIMEN DE CONSOLIDACIÓN FISCAL. ENTIDADES dependientes/Cooperativas integrantes del grupo. % derechos de voto. 12
A115: 109 | B115: 1601 | C115: 16 | D115: An | E115: ENTIDADES DEL GRUPO EN RÉGIMEN DE CONSOLIDACIÓN FISCAL. ENTIDADES dependientes/Cooperativas integrantes del grupo. Código seguro de identificación de presentación de la declaración individual. 12
A116: 110 | B116: 1617 | C116: 1 | D116: Num | E116: ENTIDADES DEL GRUPO EN RÉGIMEN DE CONSOLIDACIÓN FISCAL. ENTIDADES dependientes/Cooperativas integrantes del grupo. Declaración individual únicamente a Hacienda Foral(*). 12 | F116: [0,1]
A117: 111 | B117: 1618 | C117: 40 | D117: An | E117: ENTIDADES DEL GRUPO EN RÉGIMEN DE CONSOLIDACIÓN FISCAL. ENTIDADES dependientes/Cooperativas integrantes del grupo. Denominación social. 13
A118: 112 | B118: 1658 | C118: 9 | D118: An | E118: ENTIDADES DEL GRUPO EN RÉGIMEN DE CONSOLIDACIÓN FISCAL. NIF . 13
A119: 113 | B119: 1667 | C119: 40 | D119: An | E119: ENTIDADES DEL GRUPO EN RÉGIMEN DE CONSOLIDACIÓN FISCAL. ENTIDADES dependientes/Cooperativas integrantes del grupo. Domicilio ﬁscal. 13
A120: 114 | B120: 1707 | C120: 8 | D120: Num | E120: ENTIDADES DEL GRUPO EN RÉGIMEN DE CONSOLIDACIÓN FISCAL. Fecha de incorporación al grupo. 13
A121: 115 | B121: 1715 | C121: 5 | D121: Num | E121: ENTIDADES DEL GRUPO EN RÉGIMEN DE CONSOLIDACIÓN FISCAL. ENTIDADES dependientes/Cooperativas integrantes del grupo. Participación directa e indirecta al ﬁ nal del ejercicio %. 13
A122: 116 | B122: 1720 | C122: 5 | D122: Num | E122: ENTIDADES DEL GRUPO EN RÉGIMEN DE CONSOLIDACIÓN FISCAL. ENTIDADES dependientes/Cooperativas integrantes del grupo. % derechos de voto. 13
A123: 117 | B123: 1725 | C123: 16 | D123: An | E123: ENTIDADES DEL GRUPO EN RÉGIMEN DE CONSOLIDACIÓN FISCAL. ENTIDADES dependientes/Cooperativas integrantes del grupo. Código seguro de identificación de presentación de la declaración individual. 13
A124: 118 | B124: 1741 | C124: 1 | D124: Num | E124: ENTIDADES DEL GRUPO EN RÉGIMEN DE CONSOLIDACIÓN FISCAL. ENTIDADES dependientes/Cooperativas integrantes del grupo. Declaración individual únicamente a Hacienda Foral(*). 13 | F124: [0,1]
A125: 119 | B125: 1742 | C125: 40 | D125: An | E125: ENTIDADES DEL GRUPO EN RÉGIMEN DE CONSOLIDACIÓN FISCAL. ENTIDADES dependientes/Cooperativas integrantes del grupo. Denominación social. 14
A126: 120 | B126: 1782 | C126: 9 | D126: An | E126: ENTIDADES DEL GRUPO EN RÉGIMEN DE CONSOLIDACIÓN FISCAL. ENTIDADES dependientes/Cooperativas integrantes del grupo. NIF. 14
A127: 121 | B127: 1791 | C127: 40 | D127: An | E127: ENTIDADES DEL GRUPO EN RÉGIMEN DE CONSOLIDACIÓN FISCAL. ENTIDADES dependientes/Cooperativas integrantes del grupo. Domicilio ﬁscal. 14
A128: 122 | B128: 1831 | C128: 8 | D128: Num | E128: ENTIDADES DEL GRUPO EN RÉGIMEN DE CONSOLIDACIÓN FISCAL. ENTIDADES dependientes/Cooperativas integrantes del grupo. Fecha de incorporación al grupo. 14 (AAAAMMDD)
A129: 123 | B129: 1839 | C129: 5 | D129: Num | E129: ENTIDADES DEL GRUPO EN RÉGIMEN DE CONSOLIDACIÓN FISCAL. ENTIDADES dependientes/Cooperativas integrantes del grupo. Participación directa e indirecta al ﬁ nal del ejercicio %. 14
A130: 124 | B130: 1844 | C130: 5 | D130: Num | E130: ENTIDADES DEL GRUPO EN RÉGIMEN DE CONSOLIDACIÓN FISCAL. ENTIDADES dependientes/Cooperativas integrantes del grupo. % derechos de voto. 14
A131: 125 | B131: 1849 | C131: 16 | D131: An | E131: ENTIDADES DEL GRUPO EN RÉGIMEN DE CONSOLIDACIÓN FISCAL. ENTIDADES dependientes/Cooperativas integrantes del grupo. Código seguro de identificación de presentación de la declaración individual. 14
A132: 126 | B132: 1865 | C132: 1 | D132: Num | E132: ENTIDADES DEL GRUPO EN RÉGIMEN DE CONSOLIDACIÓN FISCAL. ENTIDADES dependientes/Cooperativas integrantes del grupo. Declaración individual únicamente a Hacienda Foral(*). 14 | F132: [0,1]
A133: 127 | B133: 1866 | C133: 40 | D133: An | E133: ENTIDADES DEL GRUPO EN RÉGIMEN DE CONSOLIDACIÓN FISCAL. ENTIDADES dependientes/Cooperativas integrantes del grupo. Denominación social. 15
A134: 128 | B134: 1906 | C134: 9 | D134: An | E134: ENTIDADES DEL GRUPO EN RÉGIMEN DE CONSOLIDACIÓN FISCAL. ENTIDADES dependientes/Cooperativas integrantes del grupo. NIF. 15
A135: 129 | B135: 1915 | C135: 40 | D135: An | E135: ENTIDADES DEL GRUPO EN RÉGIMEN DE CONSOLIDACIÓN FISCAL. ENTIDADES dependientes/Cooperativas integrantes del grupo. Domicilio ﬁscal. 15
A136: 130 | B136: 1955 | C136: 8 | D136: Num | E136: ENTIDADES DEL GRUPO EN RÉGIMEN DE CONSOLIDACIÓN FISCAL. ENTIDADES dependientes/Cooperativas integrantes del grupo. Fecha de incorporación al grupo. 15 (AAAAMMDD)
A137: 131 | B137: 1963 | C137: 5 | D137: Num | E137: ENTIDADES DEL GRUPO EN RÉGIMEN DE CONSOLIDACIÓN FISCAL. ENTIDADES dependientes/Cooperativas integrantes del grupo. Participación directa e indirecta al ﬁ nal del ejercicio %. 15
A138: 132 | B138: 1968 | C138: 5 | D138: Num | E138: ENTIDADES DEL GRUPO EN RÉGIMEN DE CONSOLIDACIÓN FISCAL. ENTIDADES dependientes/Cooperativas integrantes del grupo. % derechos de voto. 15
A139: 133 | B139: 1973 | C139: 16 | D139: An | E139: ENTIDADES DEL GRUPO EN RÉGIMEN DE CONSOLIDACIÓN FISCAL. ENTIDADES dependientes/Cooperativas integrantes del grupo. Código seguro de identificación de presentación de la declaración individual. 15
A140: 134 | B140: 1989 | C140: 1 | D140: Num | E140: ENTIDADES DEL GRUPO EN RÉGIMEN DE CONSOLIDACIÓN FISCAL. ENTIDADES dependientes/Cooperativas integrantes del grupo. Declaración individual únicamente a Hacienda Foral(*). 15 | F140: [0,1]
A141: 135 | B141: 1990 | C141: 40 | D141: An | E141: ENTIDADES DEL GRUPO EN RÉGIMEN DE CONSOLIDACIÓN FISCAL. ENTIDADES dependientes/Cooperativas integrantes del grupo. Denominación social. 16
A142: =A141+1 -> 136 | B142: 2030 | C142: 9 | D142: An | E142: ENTIDADES DEL GRUPO EN RÉGIMEN DE CONSOLIDACIÓN FISCAL. ENTIDADES dependientes/Cooperativas integrantes del grupo. NIF. 16
A143: 137 | B143: 2039 | C143: 40 | D143: An | E143: ENTIDADES DEL GRUPO EN RÉGIMEN DE CONSOLIDACIÓN FISCAL. ENTIDADES dependientes/Cooperativas integrantes del grupo. Domicilio ﬁscal. 16
A144: 138 | B144: 2079 | C144: 8 | D144: Num | E144: ENTIDADES DEL GRUPO EN RÉGIMEN DE CONSOLIDACIÓN FISCAL. ENTIDADES dependientes/Cooperativas integrantes del grupo. Fecha de incorporación al grupo. 16 (AAAAMMDD)
A145: 139 | B145: 2087 | C145: 5 | D145: Num | E145: ENTIDADES DEL GRUPO EN RÉGIMEN DE CONSOLIDACIÓN FISCAL. ENTIDADES dependientes/Cooperativas integrantes del grupo. Participación directa e indirecta al ﬁ nal del ejercicio %. 16
A146: 140 | B146: 2092 | C146: 5 | D146: Num | E146: ENTIDADES DEL GRUPO EN RÉGIMEN DE CONSOLIDACIÓN FISCAL. ENTIDADES dependientes/Cooperativas integrantes del grupo. % derechos de voto. 16
A147: 141 | B147: 2097 | C147: 16 | D147: An | E147: ENTIDADES DEL GRUPO EN RÉGIMEN DE CONSOLIDACIÓN FISCAL. ENTIDADES dependientes/Cooperativas integrantes del grupo. Código seguro de identificación de presentación de la declaración individual. 16
A148: 142 | B148: 2113 | C148: 1 | D148: Num | E148: ENTIDADES DEL GRUPO EN RÉGIMEN DE CONSOLIDACIÓN FISCAL. ENTIDADES dependientes/Cooperativas integrantes del grupo. Declaración individual únicamente a Hacienda Foral(*). 16 | F148: [0,1]
A149: 143 | B149: 2114 | C149: 40 | D149: An | E149: ENTIDADES DEL GRUPO EN RÉGIMEN DE CONSOLIDACIÓN FISCAL. ENTIDADES dependientes/Cooperativas integrantes del grupo. Denominación social. 17
A150: 144 | B150: 2154 | C150: 9 | D150: An | E150: ENTIDADES DEL GRUPO EN RÉGIMEN DE CONSOLIDACIÓN FISCAL. ENTIDADES dependientes/Cooperativas integrantes del grupo. NIF. 17
A151: 145 | B151: 2163 | C151: 40 | D151: An | E151: ENTIDADES DEL GRUPO EN RÉGIMEN DE CONSOLIDACIÓN FISCAL. ENTIDADES dependientes/Cooperativas integrantes del grupo. Domicilio ﬁscal. 17
A152: 146 | B152: 2203 | C152: 8 | D152: Num | E152: ENTIDADES DEL GRUPO EN RÉGIMEN DE CONSOLIDACIÓN FISCAL. ENTIDADES dependientes/Cooperativas integrantes del grupo. Fecha de incorporación al grupo. 17 (AAAAMMDD)
A153: 147 | B153: 2211 | C153: 5 | D153: Num | E153: ENTIDADES DEL GRUPO EN RÉGIMEN DE CONSOLIDACIÓN FISCAL. ENTIDADES dependientes/Cooperativas integrantes del grupo. Participación directa e indirecta al ﬁ nal del ejercicio %. 17
A154: 148 | B154: =B153+C153 -> 2216 | C154: 5 | D154: Num | E154: ENTIDADES DEL GRUPO EN RÉGIMEN DE CONSOLIDACIÓN FISCAL. ENTIDADES dependientes/Cooperativas integrantes del grupo. % derechos de voto. 17
A155: 149 | B155: 2221 | C155: 16 | D155: An | E155: ENTIDADES DEL GRUPO EN RÉGIMEN DE CONSOLIDACIÓN FISCAL. ENTIDADES dependientes/Cooperativas integrantes del grupo. Código seguro de identificación de presentación de la declaración individual. 17
A156: 150 | B156: 2237 | C156: 1 | D156: Num | E156: ENTIDADES DEL GRUPO EN RÉGIMEN DE CONSOLIDACIÓN FISCAL. ENTIDADES dependientes/Cooperativas integrantes del grupo. Declaración individual únicamente a Hacienda Foral(*). 17 | F156: [0,1]
A157: 151 | B157: 2238 | C157: 40 | D157: An | E157: ENTIDADES DEL GRUPO EN RÉGIMEN DE CONSOLIDACIÓN FISCAL. ENTIDADES dependientes/Cooperativas integrantes del grupo. Denominación social. 18
A158: 152 | B158: 2278 | C158: 9 | D158: An | E158: ENTIDADES DEL GRUPO EN RÉGIMEN DE CONSOLIDACIÓN FISCAL. ENTIDADES dependientes/Cooperativas integrantes del grupo. NIF. 18
A159: 153 | B159: 2287 | C159: 40 | D159: An | E159: ENTIDADES DEL GRUPO EN RÉGIMEN DE CONSOLIDACIÓN FISCAL. ENTIDADES dependientes/Cooperativas integrantes del grupo. Domicilio ﬁscal. 18
A160: 154 | B160: 2327 | C160: 8 | D160: Num | E160: ENTIDADES DEL GRUPO EN RÉGIMEN DE CONSOLIDACIÓN FISCAL. ENTIDADES dependientes/Cooperativas integrantes del grupo. Fecha de incorporación al grupo. 18 (AAAAMMDD)
A161: 155 | B161: 2335 | C161: 5 | D161: Num | E161: ENTIDADES DEL GRUPO EN RÉGIMEN DE CONSOLIDACIÓN FISCAL. ENTIDADES dependientes/Cooperativas integrantes del grupo. Participación directa e indirecta al ﬁ nal del ejercicio %. 18
A162: 156 | B162: 2340 | C162: 5 | D162: Num | E162: ENTIDADES DEL GRUPO EN RÉGIMEN DE CONSOLIDACIÓN FISCAL. ENTIDADES dependientes/Cooperativas integrantes del grupo. % derechos de voto. 18
A163: 157 | B163: 2345 | C163: 16 | D163: An | E163: ENTIDADES DEL GRUPO EN RÉGIMEN DE CONSOLIDACIÓN FISCAL. ENTIDADES dependientes/Cooperativas integrantes del grupo. Código seguro de identificación de presentación de la declaración individual. 18
A164: 158 | B164: 2361 | C164: 1 | D164: Num | E164: ENTIDADES DEL GRUPO EN RÉGIMEN DE CONSOLIDACIÓN FISCAL. ENTIDADES dependientes/Cooperativas integrantes del grupo. Declaración individual únicamente a Hacienda Foral(*). 18 | F164: [0,1]
A165: 159 | B165: 2362 | C165: 40 | D165: An | E165: ENTIDADES DEL GRUPO EN RÉGIMEN DE CONSOLIDACIÓN FISCAL. ENTIDADES dependientes/Cooperativas integrantes del grupo. Denominación social. 19
A166: 160 | B166: 2402 | C166: 9 | D166: An | E166: ENTIDADES DEL GRUPO EN RÉGIMEN DE CONSOLIDACIÓN FISCAL. ENTIDADES dependientes/Cooperativas integrantes del grupo. NIF. 19
A167: 161 | B167: 2411 | C167: 40 | D167: An | E167: ENTIDADES DEL GRUPO EN RÉGIMEN DE CONSOLIDACIÓN FISCAL. ENTIDADES dependientes/Cooperativas integrantes del grupo. Domicilio ﬁscal. 19
A168: 162 | B168: 2451 | C168: 8 | D168: Num | E168: ENTIDADES DEL GRUPO EN RÉGIMEN DE CONSOLIDACIÓN FISCAL. ENTIDADES dependientes/Cooperativas integrantes del grupo. Fecha de incorporación al grupo. 19 (AAAAMMDD)
A169: 163 | B169: 2459 | C169: 5 | D169: Num | E169: ENTIDADES DEL GRUPO EN RÉGIMEN DE CONSOLIDACIÓN FISCAL. ENTIDADES dependientes/Cooperativas integrantes del grupo. Participación directa e indirecta al ﬁ nal del ejercicio %. 19
A170: 164 | B170: 2464 | C170: 5 | D170: Num | E170: ENTIDADES DEL GRUPO EN RÉGIMEN DE CONSOLIDACIÓN FISCAL. ENTIDADES dependientes/Cooperativas integrantes del grupo. % derechos de voto. 19
A171: 165 | B171: 2469 | C171: 16 | D171: An | E171: ENTIDADES DEL GRUPO EN RÉGIMEN DE CONSOLIDACIÓN FISCAL. ENTIDADES dependientes/Cooperativas integrantes del grupo. Código seguro de identificación de presentación de la declaración individual. 19
A172: 166 | B172: 2485 | C172: 1 | D172: Num | E172: ENTIDADES DEL GRUPO EN RÉGIMEN DE CONSOLIDACIÓN FISCAL. ENTIDADES dependientes/Cooperativas integrantes del grupo. Declaración individual únicamente a Hacienda Foral(*). 19 | F172: [0,1]
A173: 167 | B173: 2486 | C173: 40 | D173: An | E173: ENTIDADES DEL GRUPO EN RÉGIMEN DE CONSOLIDACIÓN FISCAL. ENTIDADES dependientes/Cooperativas integrantes del grupo. Denominación social. 20
A174: 168 | B174: 2526 | C174: 9 | D174: An | E174: ENTIDADES DEL GRUPO EN RÉGIMEN DE CONSOLIDACIÓN FISCAL. ENTIDADES dependientes/Cooperativas integrantes del grupo. NIF. 20
A175: 169 | B175: 2535 | C175: 40 | D175: An | E175: ENTIDADES DEL GRUPO EN RÉGIMEN DE CONSOLIDACIÓN FISCAL. ENTIDADES dependientes/Cooperativas integrantes del grupo. Domicilio ﬁscal. 20
A176: 170 | B176: 2575 | C176: 8 | D176: Num | E176: ENTIDADES DEL GRUPO EN RÉGIMEN DE CONSOLIDACIÓN FISCAL. ENTIDADES dependientes/Cooperativas integrantes del grupo. Fecha de incorporación al grupo. 20 (AAAAMMDD)
A177: 171 | B177: 2583 | C177: 5 | D177: Num | E177: ENTIDADES DEL GRUPO EN RÉGIMEN DE CONSOLIDACIÓN FISCAL. ENTIDADES dependientes/Cooperativas integrantes del grupo. Participación directa e indirecta al ﬁ nal del ejercicio %. 20
A178: 172 | B178: 2588 | C178: 5 | D178: num | E178: ENTIDADES DEL GRUPO EN RÉGIMEN DE CONSOLIDACIÓN FISCAL. ENTIDADES dependientes/Cooperativas integrantes del grupo. % derechos de voto. 20
A179: 173 | B179: 2593 | C179: 16 | D179: An | E179: ENTIDADES DEL GRUPO EN RÉGIMEN DE CONSOLIDACIÓN FISCAL. ENTIDADES dependientes/Cooperativas integrantes del grupo. Código seguro de identificación de presentación de la declaración individual. 20
A180: 174 | B180: 2609 | C180: 1 | D180: Num | E180: ENTIDADES DEL GRUPO EN RÉGIMEN DE CONSOLIDACIÓN FISCAL. ENTIDADES dependientes/Cooperativas integrantes del grupo. Declaración individual únicamente a Hacienda Foral(*). 20 | F180: [0,1]
A181: 175 | B181: 2610 | C181: 12 | D181: An | E181: Fin de registro | F181: </T22002000>
A182: Total: | C182: =B181+C181-1 -> 2621
E184: * IMPORTANTE: El fichero de la declaración no puede superar las 2999 páginas.

Sheet T22002001
B1: Agencia Tributaria
A3: =+T22001000!A3 -> Modelo 220 | C3: =+T22001000!C3 -> Diseño de registro. 2019
A4: =+T22001000!A4 -> Versión 1.9 | C4: Impuesto Sobre Sociedades. Régimen de consolidación Fiscal. ENTIDADES QUE NO FORMEN PARTE DEL GRUPO FISCAL(*), A TRAVÉS DE LAS CUALES SE ALCANZA LA PARTICIPACIÓN Y DERECHOS DE VOTO EN OTRAS SOCIEDADES DEL GRUPO
A6: Nº | B6: Posic. | C6: Lon | D6: Tipo | E6: Descripción | F6: Contenido
A7: 1 | B7: 1 | C7: 2 | D7: An | E7: Inicio del identificador de modelo y página. | F7: <T
A8: =+A7+1 -> 2 | B8: =C7+B7 -> 3 | C8: 3 | D8: Num | E8: Modelo. | F8: 220
A9: 3 | B9: 6 | C9: 2 | D9: An | E9: Página. | F9: 02
A10: 4 | B10: 8 | C10: 1 | D10: An | E10: Letra | F10: 0
A11: 5 | B11: 9 | C11: 2 | D11: Num | E11: Hoja | F11: 01
A12: 6 | B12: 11 | C12: 1 | D12: An | E12: Fin de identificador de modelo y página. Constante ">". | F12: >
A13: 7 | B13: 12 | C13: 1 | D13: An | E13: Indicador de página complementaria. (Admite 99 complementrias)* | F13: [' ',C]
A14: =A13+1 -> 8 | B14: =B13+C13 -> 13 | C14: 3 | D14: Num | E14: Número de orden de la página complementaria
A15: 9 | B15: 16 | C15: 40 | D15: An | E15: ENTIDADES QUE NO FORMEN PARTE DEL GRUPO FISCAL(*), A TRAVÉS DE LAS CUALES SE ALCANZA LA PARTICIPACIÓN Y DERECHOS DE VOTO EN OTRAS SOCIEDADES DEL GRUPO. Entidad partícipe. Nombre o Razón social(*). 1
A16: 10 | B16: 56 | C16: 15 | D16: An | E16: ENTIDADES QUE NO FORMEN PARTE DEL GRUPO FISCAL(*), A TRAVÉS DE LAS CUALES SE ALCANZA LA PARTICIPACIÓN Y DERECHOS DE VOTO EN OTRAS SOCIEDADES DEL GRUPO. Entidad partícipe. Nº identificación. 1
A17: 11 | B17: 71 | C17: 15 | D17: An | E17: ENTIDADES QUE NO FORMEN PARTE DEL GRUPO FISCAL(*), A TRAVÉS DE LAS CUALES SE ALCANZA LA PARTICIPACIÓN Y DERECHOS DE VOTO EN OTRAS SOCIEDADES DEL GRUPO. Entidad partícipe. País. 1
A18: 12 | B18: 86 | C18: 2 | D18: A | E18: ENTIDADES QUE NO FORMEN PARTE DEL GRUPO FISCAL(*), A TRAVÉS DE LAS CUALES SE ALCANZA LA PARTICIPACIÓN Y DERECHOS DE VOTO EN OTRAS SOCIEDADES DEL GRUPO. Entidad partícipe. País (Código ISO). 1
A19: 13 | B19: 88 | C19: 40 | D19: An | E19: ENTIDADES QUE NO FORMEN PARTE DEL GRUPO FISCAL(*), A TRAVÉS DE LAS CUALES SE ALCANZA LA PARTICIPACIÓN Y DERECHOS DE VOTO EN OTRAS SOCIEDADES DEL GRUPO. Entidad participada(**). Nombre o Razón social(*). 1
A20: 14 | B20: 128 | C20: 15 | D20: An | E20: ENTIDADES QUE NO FORMEN PARTE DEL GRUPO FISCAL(*), A TRAVÉS DE LAS CUALES SE ALCANZA LA PARTICIPACIÓN Y DERECHOS DE VOTO EN OTRAS SOCIEDADES DEL GRUPO. Entidad participada(**). Nº identificación. 1
A21: 15 | B21: 143 | C21: 15 | D21: An | E21: ENTIDADES QUE NO FORMEN PARTE DEL GRUPO FISCAL(*), A TRAVÉS DE LAS CUALES SE ALCANZA LA PARTICIPACIÓN Y DERECHOS DE VOTO EN OTRAS SOCIEDADES DEL GRUPO. Entidad participada(**). País. 1
A22: 16 | B22: 158 | C22: 2 | D22: An | E22: ENTIDADES QUE NO FORMEN PARTE DEL GRUPO FISCAL(*), A TRAVÉS DE LAS CUALES SE ALCANZA LA PARTICIPACIÓN Y DERECHOS DE VOTO EN OTRAS SOCIEDADES DEL GRUPO. Entidad participada(**). País (Código ISO). 1
A23: 17 | B23: 160 | C23: 5 | D23: Num | E23: ENTIDADES QUE NO FORMEN PARTE DEL GRUPO FISCAL(*), A TRAVÉS DE LAS CUALES SE ALCANZA LA PARTICIPACIÓN Y DERECHOS DE VOTO EN OTRAS SOCIEDADES DEL GRUPO. Entidad participada(**). Participación directa (%). 1
A24: 18 | B24: 165 | C24: 40 | D24: An | E24: ENTIDADES QUE NO FORMEN PARTE DEL GRUPO FISCAL(*), A TRAVÉS DE LAS CUALES SE ALCANZA LA PARTICIPACIÓN Y DERECHOS DE VOTO EN OTRAS SOCIEDADES DEL GRUPO. Entidad partícipe. Nombre o Razón social(*). 2
A25: 19 | B25: 205 | C25: 15 | D25: An | E25: ENTIDADES QUE NO FORMEN PARTE DEL GRUPO FISCAL(*), A TRAVÉS DE LAS CUALES SE ALCANZA LA PARTICIPACIÓN Y DERECHOS DE VOTO EN OTRAS SOCIEDADES DEL GRUPO. Entidad partícipe. Nº identificación. 2
A26: 20 | B26: 220 | C26: 15 | D26: An | E26: ENTIDADES QUE NO FORMEN PARTE DEL GRUPO FISCAL(*), A TRAVÉS DE LAS CUALES SE ALCANZA LA PARTICIPACIÓN Y DERECHOS DE VOTO EN OTRAS SOCIEDADES DEL GRUPO. Entidad partícipe. País. 2
A27: 21 | B27: 235 | C27: 2 | D27: A | E27: ENTIDADES QUE NO FORMEN PARTE DEL GRUPO FISCAL(*), A TRAVÉS DE LAS CUALES SE ALCANZA LA PARTICIPACIÓN Y DERECHOS DE VOTO EN OTRAS SOCIEDADES DEL GRUPO. Entidad partícipe. País (Código ISO). 2
A28: 22 | B28: 237 | C28: 40 | D28: An | E28: ENTIDADES QUE NO FORMEN PARTE DEL GRUPO FISCAL(*), A TRAVÉS DE LAS CUALES SE ALCANZA LA PARTICIPACIÓN Y DERECHOS DE VOTO EN OTRAS SOCIEDADES DEL GRUPO. Entidad participada(**). Nombre o Razón social(*). 2
A29: 23 | B29: 277 | C29: 15 | D29: An | E29: ENTIDADES QUE NO FORMEN PARTE DEL GRUPO FISCAL(*), A TRAVÉS DE LAS CUALES SE ALCANZA LA PARTICIPACIÓN Y DERECHOS DE VOTO EN OTRAS SOCIEDADES DEL GRUPO. Entidad participada(**). Nº identificación. 2
A30: 24 | B30: 292 | C30: 15 | D30: An | E30: ENTIDADES QUE NO FORMEN PARTE DEL GRUPO FISCAL(*), A TRAVÉS DE LAS CUALES SE ALCANZA LA PARTICIPACIÓN Y DERECHOS DE VOTO EN OTRAS SOCIEDADES DEL GRUPO. Entidad participada(**). País. 2
A31: 25 | B31: 307 | C31: 2 | D31: An | E31: ENTIDADES QUE NO FORMEN PARTE DEL GRUPO FISCAL(*), A TRAVÉS DE LAS CUALES SE ALCANZA LA PARTICIPACIÓN Y DERECHOS DE VOTO EN OTRAS SOCIEDADES DEL GRUPO. Entidad participada(**). País (Código ISO). 2
A32: 26 | B32: 309 | C32: 5 | D32: Num | E32: ENTIDADES QUE NO FORMEN PARTE DEL GRUPO FISCAL(*), A TRAVÉS DE LAS CUALES SE ALCANZA LA PARTICIPACIÓN Y DERECHOS DE VOTO EN OTRAS SOCIEDADES DEL GRUPO. Entidad participada(**). Participación directa (%). 2
A33: 27 | B33: 314 | C33: 40 | D33: An | E33: ENTIDADES QUE NO FORMEN PARTE DEL GRUPO FISCAL(*), A TRAVÉS DE LAS CUALES SE ALCANZA LA PARTICIPACIÓN Y DERECHOS DE VOTO EN OTRAS SOCIEDADES DEL GRUPO. Entidad partícipe. Nombre o Razón social(*). 3
A34: 28 | B34: 354 | C34: 15 | D34: An | E34: ENTIDADES QUE NO FORMEN PARTE DEL GRUPO FISCAL(*), A TRAVÉS DE LAS CUALES SE ALCANZA LA PARTICIPACIÓN Y DERECHOS DE VOTO EN OTRAS SOCIEDADES DEL GRUPO. Entidad partícipe. Nº identificación. 3
A35: 29 | B35: 369 | C35: 15 | D35: An | E35: ENTIDADES QUE NO FORMEN PARTE DEL GRUPO FISCAL(*), A TRAVÉS DE LAS CUALES SE ALCANZA LA PARTICIPACIÓN Y DERECHOS DE VOTO EN OTRAS SOCIEDADES DEL GRUPO. Entidad partícipe. País. 3
A36: 30 | B36: 384 | C36: 2 | D36: A | E36: ENTIDADES QUE NO FORMEN PARTE DEL GRUPO FISCAL(*), A TRAVÉS DE LAS CUALES SE ALCANZA LA PARTICIPACIÓN Y DERECHOS DE VOTO EN OTRAS SOCIEDADES DEL GRUPO. Entidad partícipe. País (Código ISO). 3
A37: 31 | B37: 386 | C37: 40 | D37: An | E37: ENTIDADES QUE NO FORMEN PARTE DEL GRUPO FISCAL(*), A TRAVÉS DE LAS CUALES SE ALCANZA LA PARTICIPACIÓN Y DERECHOS DE VOTO EN OTRAS SOCIEDADES DEL GRUPO. Entidad participada(**). Nombre o Razón social(*). 3
A38: 32 | B38: 426 | C38: 15 | D38: An | E38: ENTIDADES QUE NO FORMEN PARTE DEL GRUPO FISCAL(*), A TRAVÉS DE LAS CUALES SE ALCANZA LA PARTICIPACIÓN Y DERECHOS DE VOTO EN OTRAS SOCIEDADES DEL GRUPO. Entidad participada(**). Nº identificación. 3
A39: 33 | B39: 441 | C39: 15 | D39: An | E39: ENTIDADES QUE NO FORMEN PARTE DEL GRUPO FISCAL(*), A TRAVÉS DE LAS CUALES SE ALCANZA LA PARTICIPACIÓN Y DERECHOS DE VOTO EN OTRAS SOCIEDADES DEL GRUPO. Entidad participada(**). País. 3
A40: 34 | B40: 456 | C40: 2 | D40: An | E40: ENTIDADES QUE NO FORMEN PARTE DEL GRUPO FISCAL(*), A TRAVÉS DE LAS CUALES SE ALCANZA LA PARTICIPACIÓN Y DERECHOS DE VOTO EN OTRAS SOCIEDADES DEL GRUPO. Entidad participada(**). País (Código ISO). 3
A41: 35 | B41: 458 | C41: 5 | D41: Num | E41: ENTIDADES QUE NO FORMEN PARTE DEL GRUPO FISCAL(*), A TRAVÉS DE LAS CUALES SE ALCANZA LA PARTICIPACIÓN Y DERECHOS DE VOTO EN OTRAS SOCIEDADES DEL GRUPO. Entidad participada(**). Participación directa (%). 3
A42: 36 | B42: 463 | C42: 40 | D42: An | E42: ENTIDADES QUE NO FORMEN PARTE DEL GRUPO FISCAL(*), A TRAVÉS DE LAS CUALES SE ALCANZA LA PARTICIPACIÓN Y DERECHOS DE VOTO EN OTRAS SOCIEDADES DEL GRUPO. Entidad partícipe. Nombre o Razón social(*). 4
A43: 37 | B43: 503 | C43: 15 | D43: An | E43: ENTIDADES QUE NO FORMEN PARTE DEL GRUPO FISCAL(*), A TRAVÉS DE LAS CUALES SE ALCANZA LA PARTICIPACIÓN Y DERECHOS DE VOTO EN OTRAS SOCIEDADES DEL GRUPO. Entidad partícipe. Nº identificación. 4
A44: 38 | B44: 518 | C44: 15 | D44: An | E44: ENTIDADES QUE NO FORMEN PARTE DEL GRUPO FISCAL(*), A TRAVÉS DE LAS CUALES SE ALCANZA LA PARTICIPACIÓN Y DERECHOS DE VOTO EN OTRAS SOCIEDADES DEL GRUPO. Entidad partícipe. País. 4
A45: 39 | B45: 533 | C45: 2 | D45: A | E45: ENTIDADES QUE NO FORMEN PARTE DEL GRUPO FISCAL(*), A TRAVÉS DE LAS CUALES SE ALCANZA LA PARTICIPACIÓN Y DERECHOS DE VOTO EN OTRAS SOCIEDADES DEL GRUPO. Entidad partícipe. País (Código ISO). 4
A46: 40 | B46: 535 | C46: 40 | D46: An | E46: ENTIDADES QUE NO FORMEN PARTE DEL GRUPO FISCAL(*), A TRAVÉS DE LAS CUALES SE ALCANZA LA PARTICIPACIÓN Y DERECHOS DE VOTO EN OTRAS SOCIEDADES DEL GRUPO. Entidad participada(**). Nombre o Razón social(*). 4
A47: 41 | B47: 575 | C47: 15 | D47: An | E47: ENTIDADES QUE NO FORMEN PARTE DEL GRUPO FISCAL(*), A TRAVÉS DE LAS CUALES SE ALCANZA LA PARTICIPACIÓN Y DERECHOS DE VOTO EN OTRAS SOCIEDADES DEL GRUPO. Entidad participada(**). Nº identificación. 4
A48: 42 | B48: 590 | C48: 15 | D48: An | E48: ENTIDADES QUE NO FORMEN PARTE DEL GRUPO FISCAL(*), A TRAVÉS DE LAS CUALES SE ALCANZA LA PARTICIPACIÓN Y DERECHOS DE VOTO EN OTRAS SOCIEDADES DEL GRUPO. Entidad participada(**). País. 4
A49: 43 | B49: 605 | C49: 2 | D49: An | E49: ENTIDADES QUE NO FORMEN PARTE DEL GRUPO FISCAL(*), A TRAVÉS DE LAS CUALES SE ALCANZA LA PARTICIPACIÓN Y DERECHOS DE VOTO EN OTRAS SOCIEDADES DEL GRUPO. Entidad participada(**). País (Código ISO). 4
A50: 44 | B50: 607 | C50: 5 | D50: Num | E50: ENTIDADES QUE NO FORMEN PARTE DEL GRUPO FISCAL(*), A TRAVÉS DE LAS CUALES SE ALCANZA LA PARTICIPACIÓN Y DERECHOS DE VOTO EN OTRAS SOCIEDADES DEL GRUPO. Entidad participada(**). Participación directa (%). 4
A51: 45 | B51: 612 | C51: 40 | D51: An | E51: ENTIDADES QUE NO FORMEN PARTE DEL GRUPO FISCAL(*), A TRAVÉS DE LAS CUALES SE ALCANZA LA PARTICIPACIÓN Y DERECHOS DE VOTO EN OTRAS SOCIEDADES DEL GRUPO. Entidad partícipe. Nombre o Razón social(*). 5
A52: 46 | B52: 652 | C52: 15 | D52: An | E52: ENTIDADES QUE NO FORMEN PARTE DEL GRUPO FISCAL(*), A TRAVÉS DE LAS CUALES SE ALCANZA LA PARTICIPACIÓN Y DERECHOS DE VOTO EN OTRAS SOCIEDADES DEL GRUPO. Entidad partícipe. Nº identificación. 5
A53: 47 | B53: 667 | C53: 15 | D53: An | E53: ENTIDADES QUE NO FORMEN PARTE DEL GRUPO FISCAL(*), A TRAVÉS DE LAS CUALES SE ALCANZA LA PARTICIPACIÓN Y DERECHOS DE VOTO EN OTRAS SOCIEDADES DEL GRUPO. Entidad partícipe. País. 5
A54: 48 | B54: 682 | C54: 2 | D54: A | E54: ENTIDADES QUE NO FORMEN PARTE DEL GRUPO FISCAL(*), A TRAVÉS DE LAS CUALES SE ALCANZA LA PARTICIPACIÓN Y DERECHOS DE VOTO EN OTRAS SOCIEDADES DEL GRUPO. Entidad partícipe. País (Código ISO). 5
A55: 49 | B55: 684 | C55: 40 | D55: An | E55: ENTIDADES QUE NO FORMEN PARTE DEL GRUPO FISCAL(*), A TRAVÉS DE LAS CUALES SE ALCANZA LA PARTICIPACIÓN Y DERECHOS DE VOTO EN OTRAS SOCIEDADES DEL GRUPO. Entidad participada(**). Nombre o Razón social(*). 5
A56: 50 | B56: 724 | C56: 15 | D56: An | E56: ENTIDADES QUE NO FORMEN PARTE DEL GRUPO FISCAL(*), A TRAVÉS DE LAS CUALES SE ALCANZA LA PARTICIPACIÓN Y DERECHOS DE VOTO EN OTRAS SOCIEDADES DEL GRUPO. Entidad participada(**). Nº identificación. 5
A57: 51 | B57: 739 | C57: 15 | D57: An | E57: ENTIDADES QUE NO FORMEN PARTE DEL GRUPO FISCAL(*), A TRAVÉS DE LAS CUALES SE ALCANZA LA PARTICIPACIÓN Y DERECHOS DE VOTO EN OTRAS SOCIEDADES DEL GRUPO. Entidad participada(**). País. 5
A58: 52 | B58: 754 | C58: 2 | D58: An | E58: ENTIDADES QUE NO FORMEN PARTE DEL GRUPO FISCAL(*), A TRAVÉS DE LAS CUALES SE ALCANZA LA PARTICIPACIÓN Y DERECHOS DE VOTO EN OTRAS SOCIEDADES DEL GRUPO. Entidad participada(**). País (Código ISO). 5
A59: 53 | B59: 756 | C59: 5 | D59: Num | E59: ENTIDADES QUE NO FORMEN PARTE DEL GRUPO FISCAL(*), A TRAVÉS DE LAS CUALES SE ALCANZA LA PARTICIPACIÓN Y DERECHOS DE VOTO EN OTRAS SOCIEDADES DEL GRUPO. Entidad participada(**). Participación directa (%). 5
A60: 54 | B60: 761 | C60: 40 | D60: An | E60: ENTIDADES QUE NO FORMEN PARTE DEL GRUPO FISCAL(*), A TRAVÉS DE LAS CUALES SE ALCANZA LA PARTICIPACIÓN Y DERECHOS DE VOTO EN OTRAS SOCIEDADES DEL GRUPO. Entidad partícipe. Nombre o Razón social(*). 6
A61: 55 | B61: 801 | C61: 15 | D61: An | E61: ENTIDADES QUE NO FORMEN PARTE DEL GRUPO FISCAL(*), A TRAVÉS DE LAS CUALES SE ALCANZA LA PARTICIPACIÓN Y DERECHOS DE VOTO EN OTRAS SOCIEDADES DEL GRUPO. Entidad partícipe. Nº identificación. 6
A62: 56 | B62: 816 | C62: 15 | D62: An | E62: ENTIDADES QUE NO FORMEN PARTE DEL GRUPO FISCAL(*), A TRAVÉS DE LAS CUALES SE ALCANZA LA PARTICIPACIÓN Y DERECHOS DE VOTO EN OTRAS SOCIEDADES DEL GRUPO. Entidad partícipe. País. 6
A63: 57 | B63: 831 | C63: 2 | D63: A | E63: ENTIDADES QUE NO FORMEN PARTE DEL GRUPO FISCAL(*), A TRAVÉS DE LAS CUALES SE ALCANZA LA PARTICIPACIÓN Y DERECHOS DE VOTO EN OTRAS SOCIEDADES DEL GRUPO. Entidad partícipe. País (Código ISO). 6
A64: 58 | B64: 833 | C64: 40 | D64: An | E64: ENTIDADES QUE NO FORMEN PARTE DEL GRUPO FISCAL(*), A TRAVÉS DE LAS CUALES SE ALCANZA LA PARTICIPACIÓN Y DERECHOS DE VOTO EN OTRAS SOCIEDADES DEL GRUPO. Entidad participada(**). Nombre o Razón social(*). 6
A65: 59 | B65: 873 | C65: 15 | D65: An | E65: ENTIDADES QUE NO FORMEN PARTE DEL GRUPO FISCAL(*), A TRAVÉS DE LAS CUALES SE ALCANZA LA PARTICIPACIÓN Y DERECHOS DE VOTO EN OTRAS SOCIEDADES DEL GRUPO. Entidad participada(**). Nº identificación. 6
A66: 60 | B66: 888 | C66: 15 | D66: An | E66: ENTIDADES QUE NO FORMEN PARTE DEL GRUPO FISCAL(*), A TRAVÉS DE LAS CUALES SE ALCANZA LA PARTICIPACIÓN Y DERECHOS DE VOTO EN OTRAS SOCIEDADES DEL GRUPO. Entidad participada(**). País. 6
A67: 61 | B67: 903 | C67: 2 | D67: An | E67: ENTIDADES QUE NO FORMEN PARTE DEL GRUPO FISCAL(*), A TRAVÉS DE LAS CUALES SE ALCANZA LA PARTICIPACIÓN Y DERECHOS DE VOTO EN OTRAS SOCIEDADES DEL GRUPO. Entidad participada(**). País (Código ISO). 6
A68: 62 | B68: 905 | C68: 5 | D68: Num | E68: ENTIDADES QUE NO FORMEN PARTE DEL GRUPO FISCAL(*), A TRAVÉS DE LAS CUALES SE ALCANZA LA PARTICIPACIÓN Y DERECHOS DE VOTO EN OTRAS SOCIEDADES DEL GRUPO. Entidad participada(**). Participación directa (%). 6
A69: 63 | B69: 910 | C69: 40 | D69: An | E69: ENTIDADES QUE NO FORMEN PARTE DEL GRUPO FISCAL(*), A TRAVÉS DE LAS CUALES SE ALCANZA LA PARTICIPACIÓN Y DERECHOS DE VOTO EN OTRAS SOCIEDADES DEL GRUPO. Entidad partícipe. Nombre o Razón social(*). 7
A70: 64 | B70: 950 | C70: 15 | D70: An | E70: ENTIDADES QUE NO FORMEN PARTE DEL GRUPO FISCAL(*), A TRAVÉS DE LAS CUALES SE ALCANZA LA PARTICIPACIÓN Y DERECHOS DE VOTO EN OTRAS SOCIEDADES DEL GRUPO. Entidad partícipe. Nº identificación. 7
A71: 65 | B71: 965 | C71: 15 | D71: An | E71: ENTIDADES QUE NO FORMEN PARTE DEL GRUPO FISCAL(*), A TRAVÉS DE LAS CUALES SE ALCANZA LA PARTICIPACIÓN Y DERECHOS DE VOTO EN OTRAS SOCIEDADES DEL GRUPO. Entidad partícipe. País. 7
A72: 66 | B72: 980 | C72: 2 | D72: A | E72: ENTIDADES QUE NO FORMEN PARTE DEL GRUPO FISCAL(*), A TRAVÉS DE LAS CUALES SE ALCANZA LA PARTICIPACIÓN Y DERECHOS DE VOTO EN OTRAS SOCIEDADES DEL GRUPO. Entidad partícipe. País (Código ISO). 7
A73: 67 | B73: 982 | C73: 40 | D73: An | E73: ENTIDADES QUE NO FORMEN PARTE DEL GRUPO FISCAL(*), A TRAVÉS DE LAS CUALES SE ALCANZA LA PARTICIPACIÓN Y DERECHOS DE VOTO EN OTRAS SOCIEDADES DEL GRUPO. Entidad participada(**). Nombre o Razón social(*). 7
A74: 68 | B74: 1022 | C74: 15 | D74: An | E74: ENTIDADES QUE NO FORMEN PARTE DEL GRUPO FISCAL(*), A TRAVÉS DE LAS CUALES SE ALCANZA LA PARTICIPACIÓN Y DERECHOS DE VOTO EN OTRAS SOCIEDADES DEL GRUPO. Entidad participada(**). Nº identificación. 7
A75: 69 | B75: 1037 | C75: 15 | D75: An | E75: ENTIDADES QUE NO FORMEN PARTE DEL GRUPO FISCAL(*), A TRAVÉS DE LAS CUALES SE ALCANZA LA PARTICIPACIÓN Y DERECHOS DE VOTO EN OTRAS SOCIEDADES DEL GRUPO. Entidad participada(**). País. 7
A76: 70 | B76: 1052 | C76: 2 | D76: An | E76: ENTIDADES QUE NO FORMEN PARTE DEL GRUPO FISCAL(*), A TRAVÉS DE LAS CUALES SE ALCANZA LA PARTICIPACIÓN Y DERECHOS DE VOTO EN OTRAS SOCIEDADES DEL GRUPO. Entidad participada(**). País (Código ISO). 7
A77: 71 | B77: 1054 | C77: 5 | D77: Num | E77: ENTIDADES QUE NO FORMEN PARTE DEL GRUPO FISCAL(*), A TRAVÉS DE LAS CUALES SE ALCANZA LA PARTICIPACIÓN Y DERECHOS DE VOTO EN OTRAS SOCIEDADES DEL GRUPO. Entidad participada(**). Participación directa (%). 7
A78: 72 | B78: =B77+C77 -> 1059 | C78: 12 | D78: An | E78: Fin de registro | F78: </T22002001>
A79: Total: | C79: =B78+C78-1 -> 1070
E81: * IMPORTANTE: El fichero de la declaración no puede superar las 2999 páginas.

Sheet T22003A00
B1: Agencia Tributaria
A3: =+T22001000!A3 -> Modelo 220 | C3: =+T22001000!C3 -> Diseño de registro. 2019
A4: =+T22001000!A4 -> Versión 1.9 | C4: Impuesto Sobre Sociedades. Régimen de consolidación Fiscal. GRUPO GENERAL. BALANCE CONSOLIDADO: ACTIVO
A6: Nº | B6: Posic. | C6: Lon | D6: Tipo | E6: Descripción | F6: Contenido
A7: 1 | B7: 1 | C7: 2 | D7: An | E7: Inicio del identificador de modelo y página. | F7: <T
A8: =+A7+1 -> 2 | B8: =C7+B7 -> 3 | C8: 3 | D8: Num | E8: Modelo. | F8: 220
A9: 3 | B9: 6 | C9: 2 | D9: An | E9: Página. | F9: 03
A10: 4 | B10: 8 | C10: 1 | D10: An | E10: Letra | F10: A
A11: 5 | B11: 9 | C11: 2 | D11: Num | E11: Hoja | F11: 00
A12: 6 | B12: 11 | C12: 1 | D12: An | E12: Fin de identificador de modelo y página. Constante ">". | F12: >
A13: 7 | B13: 12 | C13: 1 | D13: An | E13: Indicador de página complementaria.
A14: =A13+1 -> 8 | B14: =B13+C13 -> 13 | C14: 3 | D14: Num | E14: Número de orden de la página complementaria
A15: 9 | B15: 16 | C15: 17 | D15: N | E15: ACTIVO. ACTIVO NO CORRIENTE [00101]
A16: 10 | B16: 33 | C16: 17 | D16: N | E16: ACTIVO. Inmovilizado intangible [00102]
A17: 11 | B17: 50 | C17: 17 | D17: N | E17: ACTIVO. Inmovilizado intangible. Fondo de comercio de consolidación [00106]
A18: =A17+1 -> 12 | B18: =B17+C17 -> 67 | C18: 17 | D18: N | E18: ACTIVO. Inmovilizado intangible. Investigación [00734]
A19: =A18+1 -> 13 | B19: =B18+C18 -> 84 | C19: 17 | D19: N | E19: ACTIVO. Inmovilizado intangible. Propiedad intelectual [00700]
A20: =A19+1 -> 14 | B20: =B19+C19 -> 101 | C20: 17 | D20: N | E20: ACTIVO. Inmovilizado intangible. Otro inmovilizado intangible [00110]
A21: 15 | B21: 118 | C21: 17 | D21: N | E21: ACTIVO. Inmovilizado material [00111]
A22: 16 | B22: 135 | C22: 17 | D22: N | E22: ACTIVO. Inmovilizado material. Terrenos y construcciones [00112]
A23: 17 | B23: 152 | C23: 17 | D23: N | E23: ACTIVO. Inmovilizado material. Instalaciones técnicas y otro inmovilizado material [00113]
A24: 18 | B24: 169 | C24: 17 | D24: N | E24: ACTIVO. Inmovilizado material. Inmovilizado en curso y anticipos [00114]
A25: 19 | B25: 186 | C25: 17 | D25: N | E25: ACTIVO. Inversiones inmobiliarias [00115]
A26: 20 | B26: 203 | C26: 17 | D26: N | E26: ACTIVO. Inversiones en empresas del grupo y asociadas a largo plazo [00118]
A27: 21 | B27: 220 | C27: 17 | D27: N | E27: ACTIVO. Inversiones en empresas del grupo y asociadas a largo plazo. Instrumentos de patrimonio [00119]
A28: 22 | B28: 237 | C28: 17 | D28: N | E28: ACTIVO. Inversiones en empresas del grupo y asociadas a largo plazo. Resto [00125]
A29: 23 | B29: 254 | C29: 17 | D29: N | E29: ACTIVO. Inversiones ﬁnancieras a largo plazo [00126]
A30: 24 | B30: 271 | C30: 17 | D30: N | E30: ACTIVO. Inversiones ﬁnancieras a largo plazo. Instrumentos de patrimonio [00127]
A31: 25 | B31: 288 | C31: 17 | D31: N | E31: ACTIVO. Inversiones ﬁnancieras a largo plazo. Resto [00133]
A32: 26 | B32: 305 | C32: 17 | D32: N | E32: ACTIVO.Activos por impuesto diferido [00134]
A33: 27 | B33: 322 | C33: 17 | D33: N | E33: ACTIVO.Deudores comerciales no corrientes [00135]
A34: =A33+1 -> 28 | B34: =B33+C33 -> 339 | C34: 17 | D34: N | E34: ACTIVO.ACTIVO CORRIENTE [00136]
A35: 29 | B35: 356 | C35: 17 | D35: N | E35: ACTIVO.Activos no corrientes mantenidos para la venta [00137]
A36: 30 | B36: 373 | C36: 17 | D36: N | E36: ACTIVO.Existencias [00138]
A37: 31 | B37: =B36+C36 -> 390 | C37: 17 | D37: N | E37: ACTIVO. Derechos de emisión de gases de efecto invernadero. [00701]
A38: 32 | B38: 407 | C38: 17 | D38: N | E38: ACTIVO. Otros. [00761]
A39: 33 | B39: 424 | C39: 17 | D39: N | E39: ACTIVO.Deudores comerciales y otras cuentas a cobrar [00149]
A40: 34 | B40: 441 | C40: 17 | D40: N | E40: ACTIVO.Deudores comerciales y otras cuentas a cobrar. Clientes por ventas y prestaciones de servicios [00150]
A41: =A40+1 -> 35 | B41: =B40+C40 -> 458 | C41: 17 | D41: N | E41: ACTIVO.Deudores comerciales y otras cuentas a cobrar. Activos por impuesto corriente [00156]
A42: 36 | B42: 475 | C42: 17 | D42: N | E42: ACTIVO.Deudores comerciales y otras cuentas a cobrar. Otros deudores [00159]
A43: 37 | B43: 492 | C43: 17 | D43: N | E43: ACTIVO.Inversiones en empresas del grupo no consolidadas y asociadas a corto plazo [00160]
A44: =A43+1 -> 38 | B44: =B43+C43 -> 509 | C44: 17 | D44: N | E44: ACTIVO. Inversiones en empresas del grupo no consolidadas y asociadas a corto plazo. Instrumentos de patrimonio [00161]
A45: 39 | B45: 526 | C45: 17 | D45: N | E45: ACTIVO. Inversiones en empresas del grupo no consolidadas y asociadas a corto plazo. Resto [00167]
A46: 40 | B46: 543 | C46: 17 | D46: N | E46: ACTIVO.Inversiones ﬁnancieras a corto plazo [00168]
A47: 41 | B47: 560 | C47: 17 | D47: N | E47: ACTIVO.Inversiones ﬁnancieras a corto plazo. Instrumentos de patrimonio [00169]
A48: 42 | B48: 577 | C48: 17 | D48: N | E48: ACTIVO.Inversiones ﬁnancieras a corto plazo. Resto [00175]
A49: 43 | B49: 594 | C49: 17 | D49: N | E49: ACTIVO.Periodiﬁcaciones a corto plazo [00176]
A50: 44 | B50: 611 | C50: 17 | D50: N | E50: ACTIVO.Efectivo y otros activos líquidos equivalentes [00177]
A51: =A50+1 -> 45 | B51: =B50+C50 -> 628 | C51: 17 | D51: N | E51: ACTIVO.TOTAL ACTIVO [00180]
A52: 46 | B52: 645 | C52: 12 | D52: An | E52: Fin de registro. | F52: </T22003A00>
A53: Total: | C53: =B52+C52-1 -> 656
E55: A partir de este momento el campo <Hoja> debe tomar el valor, 00 para el grupo general, 01 para el grupo de entidades de crédito y 02 para el grupo de entidades aseguradoras

Sheet T22003B00
B1: Agencia Tributaria
A3: =+T22001000!A3 -> Modelo 220 | C3: =+T22001000!C3 -> Diseño de registro. 2019
A4: =+T22001000!A4 -> Versión 1.9 | C4: Impuesto Sobre Sociedades. Régimen de consolidación Fiscal. GRUPO GENERAL. BALANCE CONSOLIDADO: PATRIMONIO NETO Y PASIVO
A6: Nº | B6: Posic. | C6: Lon | D6: Tipo | E6: Descripción | F6: Contenido
A7: 1 | B7: 1 | C7: 2 | D7: An | E7: Inicio del identificador de modelo y página. | F7: <T
A8: =+A7+1 -> 2 | B8: =C7+B7 -> 3 | C8: 3 | D8: Num | E8: Modelo. | F8: 220
A9: 3 | B9: 6 | C9: 2 | D9: An | E9: Página. | F9: 03
A10: 4 | B10: 8 | C10: 1 | D10: An | E10: Letra | F10: B
A11: 5 | B11: 9 | C11: 2 | D11: Num | E11: Hoja | F11: 00
A12: 6 | B12: 11 | C12: 1 | D12: An | E12: Fin de identificador de modelo y página. Constante ">". | F12: >
A13: 7 | B13: 12 | C13: 1 | D13: An | E13: Indicador de página complementaria.
A14: =A13+1 -> 8 | B14: =B13+C13 -> 13 | C14: 3 | D14: Num | E14: Número de orden de la página complementaria
A15: 9 | B15: 16 | C15: 17 | D15: N | E15: PATRIMONIO NETO [00185]
A16: 10 | B16: 33 | C16: 17 | D16: N | E16: Fondos propios [00186]
A17: 11 | B17: 50 | C17: 17 | D17: N | E17: Capital [00187]
A18: =A17+1 -> 12 | B18: =B17+C17 -> 67 | C18: 17 | D18: N | E18: Capital. Capital escriturado [00188]
A19: =A18+1 -> 13 | B19: =B18+C18 -> 84 | C19: 17 | D19: N | E19: Capital. Capital no exigido [00189]
A20: =A19+1 -> 14 | B20: =B19+C19 -> 101 | C20: 17 | D20: N | E20: Prima de emisión [00190]
A21: 15 | B21: 118 | C21: 17 | D21: N | E21: Reservas [00191]
A22: 16 | B22: =B21+C21 -> 135 | C22: 17 | D22: N | E22: Reserva legal y estatutaria [00003]
A23: 17 | B23: 152 | C23: 17 | D23: N | E23: Reservas. Reserva de revalorización [00702]
A24: =A23+1 -> 18 | B24: =B23+C23 -> 169 | C24: 17 | D24: N | E24: Reserva de capitalización [00752]
A25: 19 | B25: 186 | C25: 17 | D25: N | E25: Reserva de nivelación [00753]
A26: 20 | B26: 203 | C26: 17 | D26: N | E26: Reservas. Otras reservas [00750]
A27: =A26+1 -> 21 | B27: =B26+C26 -> 220 | C27: 17 | D27: N | E27: (Acciones y participaciones de la sociedad dominante) [00194]
A28: 22 | B28: 237 | C28: 17 | D28: N | E28: Otras aportaciones de socios [00198]
A29: 23 | B29: 254 | C29: 17 | D29: N | E29: Resultado del ejercicio atribuido a la sociedad dominante [00199]
A30: =A29+1 -> 24 | B30: =B29+C29 -> 271 | C30: 17 | D30: N | E30: (Dividendo a cuenta) [00200]
A31: 25 | B31: 288 | C31: 17 | D31: N | E31: Otros instrumentos de patrimonio neto [00201]
A32: 26 | B32: 305 | C32: 17 | D32: N | E32: Ajustes por cambios de valor [00202]
A33: 27 | B33: 322 | C33: 17 | D33: N | E33: Subvenciones, donaciones y legados recibidos [00209]
A34: 28 | B34: 339 | C34: 17 | D34: N | E34: Socios externos [00236]
A35: 29 | B35: 356 | C35: 17 | D35: N | E35: PASIVO NO CORRIENTE [00210]
A36: 30 | B36: 373 | C36: 17 | D36: N | E36: Provisiones a largo plazo [00211]
A37: 31 | B37: 390 | C37: 17 | D37: N | E37: Deudas a largo plazo [00216]
A38: 32 | B38: 407 | C38: 17 | D38: N | E38: Deudas a largo plazo. Obligaciones y otros valores negociables [00217]
A39: 33 | B39: 424 | C39: 17 | D39: N | E39: Deudas a largo plazo. Deudas con entidades de crédito [00218]
A40: 34 | B40: 441 | C40: 17 | D40: N | E40: Deudas a largo plazo. Acreedores por arrendamiento ﬁnanciero [00219]
A41: 35 | B41: 458 | C41: 17 | D41: N | E41: Deudas a largo plazo. Otros pasivos ﬁnancieros [00222]
A42: 36 | B42: 475 | C42: 17 | D42: N | E42: Deudas con empresas del grupo no consolidadas y asociadas a largo plazo [00223]
A43: 37 | B43: 492 | C43: 17 | D43: N | E43: Pasivos por impuesto diferido [00224]
A44: 38 | B44: 509 | C44: 17 | D44: N | E44: Periodiﬁcaciones a largo plazo [00225]
A45: 39 | B45: 526 | C45: 17 | D45: N | E45: Acreedores comerciales no corrientes [00226]
A46: 40 | B46: 543 | C46: 17 | D46: N | E46: Deuda con características especiales a largo plazo [00227]
A47: =A46+1 -> 41 | B47: =B46+C46 -> 560 | C47: 17 | D47: N | E47: PASIVO CORRIENTE [00228]
A48: 42 | B48: 577 | C48: 17 | D48: N | E48: Pasivos vinculados con activos no corrientes mantenidos para la venta [00229]
A49: 43 | B49: 594 | C49: 17 | D49: N | E49: Provisiones a corto plazo [00230]
A50: =A49+1 -> 44 | B50: =B49+C49 -> 611 | C50: 17 | D50: N | E50: Procisiones por derechos de emisión de gases de efecto invernadero [00735]
A51: =A50+1 -> 45 | B51: =B50+C50 -> 628 | C51: 17 | D51: N | E51: Otras provisiones [00736]
A52: =A51+1 -> 46 | B52: =B51+C51 -> 645 | C52: 17 | D52: N | E52: Deudas a corto plazo [00231]
A53: 47 | B53: 662 | C53: 17 | D53: N | E53: Deudas a corto plazo. Obligaciones y otros valores negociables [00232]
A54: 48 | B54: 679 | C54: 17 | D54: N | E54: Deudas a corto plazo. Deudas con entidades de crédito [00233]
A55: 49 | B55: 696 | C55: 17 | D55: N | E55: Deudas a corto plazo. Acreedores por arrendamiento ﬁnanciero [00234]
A56: 50 | B56: 713 | C56: 17 | D56: N | E56: Deudas a corto plazo. Otros pasivos ﬁnancieros [00237]
A57: 51 | B57: 730 | C57: 17 | D57: N | E57: Deudas con empresas del grupo y asociadas a corto plazo [00238]
A58: 52 | B58: 747 | C58: 17 | D58: N | E58: Acreedores comerciales y otras cuentas a pagar [00239]
A59: 53 | B59: 764 | C59: 17 | D59: N | E59: Acreedores comerciales y otras cuentas a pagar. Proveedores [00240]
A60: =A59+1 -> 54 | B60: =B59+C59 -> 781 | C60: 17 | D60: N | E60: Acreedores comerciales y otras cuentas a pagar. Pasivos por impuesto corriente [00246]
A61: 55 | B61: 798 | C61: 17 | D61: N | E61: Acreedores comerciales y otras cuentas a pagar. Otros acreedores [00249]
A62: 56 | B62: 815 | C62: 17 | D62: N | E62: Periodiﬁcaciones a corto plazo [00250]
A63: 57 | B63: 832 | C63: 17 | D63: N | E63: Deuda con características especiales a corto plazo [00251]
A64: 58 | B64: 849 | C64: 17 | D64: N | E64: TOTAL PATRIMONIO NETO Y PASIVO [00252]
A65: 59 | B65: 866 | C65: 12 | D65: An | E65: Fin de registro. | F65: </T22003B00>
A66: Total: | C66: =B65+C65-1 -> 877

Sheet T22004A00
B1: Agencia Tributaria
A3: =+T22001000!A3 -> Modelo 220 | C3: =+T22001000!C3 -> Diseño de registro. 2019
A4: =+T22001000!A4 -> Versión 1.9 | C4: Impuesto Sobre Sociedades. Régimen de consolidación Fiscal. GRUPO GENERAL. CUENTA DE PÉRDIDAS Y GANANCIAS CONSOLIDADA (I)
A6: Nº | B6: Posic. | C6: Lon | D6: Tipo | E6: Descripción | F6: Contenido
A7: 1 | B7: 1 | C7: 2 | D7: An | E7: Inicio del identificador de modelo y página. | F7: <T
A8: =+A7+1 -> 2 | B8: =C7+B7 -> 3 | C8: 3 | D8: Num | E8: Modelo. | F8: 220
A9: 3 | B9: 6 | C9: 2 | D9: An | E9: Página. | F9: 04
A10: 4 | B10: 8 | C10: 1 | D10: An | E10: Letra | F10: A
A11: 5 | B11: 9 | C11: 2 | D11: Num | E11: Hoja | F11: 00
A12: 6 | B12: 11 | C12: 1 | D12: An | E12: Fin de identificador de modelo y página. Constante ">". | F12: >
A13: 7 | B13: 12 | C13: 1 | D13: An | E13: Indicador de página complementaria.
A14: =A13+1 -> 8 | B14: =B13+C13 -> 13 | C14: 3 | D14: Num | E14: Número de orden de la página complementaria
A15: 9 | B15: 16 | C15: 17 | D15: N | E15: OPERACIONES CONTINUADAS. Importe neto de la cifra de negocios [00255]
A16: 10 | B16: 33 | C16: 17 | D16: N | E16: OPERACIONES CONTINUADAS. Ventas [00256]
A17: 11 | B17: 50 | C17: 17 | D17: N | E17: OPERACIONES CONTINUADAS. Importe neto de la cifra de negocios. Prestaciones de servicios [00257]
A18: 12 | B18: 67 | C18: 17 | D18: N | E18: OPERACIONES CONTINUADAS. Importe neto de la cifra de negocios. Ingresos de carácter financiero de las entidades concesionarias de infraestructuras públicas [00004]
A19: 13 | B19: 84 | C19: 17 | D19: N | E19: OPERACIONES CONTINUADAS. Importe neto de la cifra de negocios. Ingresos de carácter financiero de las socidades holding [00705]
A20: =A19+1 -> 14 | B20: =B19+C19 -> 101 | C20: 17 | D20: N | E20: OPERACIONES CONTINUADAS. Importe neto de la cifra de negocios. De participaciones en instrumentos de patrimonio [00706]
A21: =A20+1 -> 15 | B21: =B20+C20 -> 118 | C21: 17 | D21: N | E21: OPERACIONES CONTINUADAS. Importe neto de la cifra de negocios. De valores negociables y otros instrumentos financieros [00707]
A22: =A21+1 -> 16 | B22: =B21+C21 -> 135 | C22: 17 | D22: N | E22: OPERACIONES CONTINUADAS. Importe neto de la cifra de negocios. Resto [00708]
A23: =A22+1 -> 17 | B23: =B22+C22 -> 152 | C23: 17 | D23: N | E23: OPERACIONES CONTINUADAS. Importe neto de la cifra de negocios. Variación de existencias de productos terminados y en curso de fabricación [00258]
A24: 18 | B24: 169 | C24: 17 | D24: N | E24: OPERACIONES CONTINUADAS. Trabajos realizados por la empresa para su activo [00259]
A25: 19 | B25: 186 | C25: 17 | D25: N | E25: OPERACIONES CONTINUADAS. Aprovisionamientos [00260]
A26: 20 | B26: 203 | C26: 17 | D26: N | E26: OPERACIONES CONTINUADAS. Aprovisionamientos. Consumo de mercaderías [00261]
A27: 21 | B27: =B26+C26 -> 220 | C27: 17 | D27: N | E27: OPERACIONES CONTINUADAS. Aprovisionamientos. Consumo de mercaderías. Compra de mercaderias [00754]
A28: 22 | B28: 237 | C28: 17 | D28: N | E28: OPERACIONES CONTINUADAS. Aprovisionamientos. Consumo de mercaderías. Variación de existencias [00755]
A29: 23 | B29: 254 | C29: 17 | D29: N | E29: OPERACIONES CONTINUADAS. Aprovisionamientos. Consumo de materias primas y otras materias consumibles [00262]
A30: =A29+1 -> 24 | B30: =B29+C29 -> 271 | C30: 17 | D30: N | E30: OPERACIONES CONTINUADAS. Compra de materias primas y otras materias consumibles [00759]
A31: 25 | B31: 288 | C31: 17 | D31: N | E31: OPERACIONES CONTINUADAS. Variación de materias primas y otras materias consumibles [00760]
A32: 26 | B32: 305 | C32: 17 | D32: N | E32: OPERACIONES CONTINUADAS. Aprovisionamientos. Trabajos realizados por otras empresas [00263]
A33: 27 | B33: 322 | C33: 17 | D33: N | E33: OPERACIONES CONTINUADAS. Aprovisionamientos. Deterioro de mercaderías, materias primas y otros aprovisionamientos [00264]
A34: 28 | B34: 339 | C34: 17 | D34: N | E34: OPERACIONES CONTINUADAS. Otros ingresos de explotación [00265]
A35: 29 | B35: 356 | C35: 17 | D35: N | E35: OPERACIONES CONTINUADAS. Otros ingresos de explotación. Ingresos accesorios y otros de gestión corriente [00266]
A36: 30 | B36: 373 | C36: 17 | D36: N | E36: OPERACIONES CONTINUADAS. Otros ingresos de explotación. Ingresos accesorios y otros de gestión corriente. Ingresos por arrendamientos [00267]
A37: 31 | B37: 390 | C37: 17 | D37: N | E37: OPERACIONES CONTINUADAS. Otros ingresos de explotación. Ingresos accesorios y otros de gestión corriente. Resto [00268]
A38: 32 | B38: 407 | C38: 17 | D38: N | E38: OPERACIONES CONTINUADAS. Otros ingresos de explotación. Subvenciones de explotación incorporadas al resultado del ejercicio [00269]
A39: 33 | B39: 424 | C39: 17 | D39: N | E39: OPERACIONES CONTINUADAS. Gastos de personal [00270]
A40: 34 | B40: 441 | C40: 17 | D40: N | E40: OPERACIONES CONTINUADAS. Gastos de personal. Sueldos, salarios y asimilados [00271]
A41: =A40+1 -> 35 | B41: =B40+C40 -> 458 | C41: 17 | D41: N | E41: OPERACIONES CONTINUADAS. Gastos de personal. Cargas sociales [00272]
A42: =A41+1 -> 36 | B42: =B41+C41 -> 475 | C42: 17 | D42: N | E42: OPERACIONES CONTINUADAS. Gastos de personal. Indemnizaciones [00273]
A43: 37 | B43: 492 | C43: 17 | D43: N | E43: OPERACIONES CONTINUADAS. Gastos de personal. Seguridad Social a cargo de la empresa [00274]
A44: 38 | B44: 509 | C44: 17 | D44: N | E44: OPERACIONES CONTINUADAS. Gastos de personal. Retribuciones a largo plazo mediante sistemas de aportación o prestación deﬁnida [00275]
A45: 39 | B45: 526 | C45: 17 | D45: N | E45: OPERACIONES CONTINUADAS. Gastos de personal. Retribuciones mediante instrumentos de patrimonio [00276]
A46: 40 | B46: 543 | C46: 17 | D46: N | E46: OPERACIONES CONTINUADAS.Gastos de personal. Otros gastos sociales [00277]
A47: 41 | B47: 560 | C47: 17 | D47: N | E47: OPERACIONES CONTINUADAS. Gastos de personal. Provisiones [00278]
A48: 42 | B48: 577 | C48: 17 | D48: N | E48: OPERACIONES CONTINUADAS. Otros gastos de explotación [00279]
A49: =A48+1 -> 43 | B49: =B48+C48 -> 594 | C49: 17 | D49: N | E49: OPERACIONES CONTINUADAS. Otros gastos de explotación. Pérdidas, deterioro y variación de provisiones por operaciones comerciales [00282]
A50: 44 | B50: 611 | C50: 17 | D50: N | E50: OPERACIONES CONTINUADAS. Otros gastos de explotación. Otros gastos de gestión corriente [00283]
A51: =A50+1 -> 45 | B51: =B50+C50 -> 628 | C51: 17 | D51: N | E51: OPERACIONES CONTINUADAS. Otros gastos de explotación. Gastos por emisión de gases de efecto invernadero [00709]
A52: =A51+1 -> 46 | B52: =B51+C51 -> 645 | C52: 17 | D52: N | E52: OPERACIONES CONTINUADAS. Amortización del inmovilizado [00284]
A53: 47 | B53: 662 | C53: 17 | D53: N | E53: OPERACIONES CONTINUADAS. Imputación de subvenciones de inmovilizado no ﬁnanciero y otras [00285]
A54: 48 | B54: 679 | C54: 17 | D54: N | E54: OPERACIONES CONTINUADAS. Excesos de provisiones [00286]
A55: 49 | B55: 696 | C55: 17 | D55: N | E55: OPERACIONES CONTINUADAS. Deterioro y resultado por enajenaciones del inmovilizado [00287]
A56: 50 | B56: 713 | C56: 17 | D56: N | E56: OPERACIONES CONTINUADAS. Deterioro y resultado por enajenaciones del inmovilizado. Deterioro y pérdidas [00288]
A57: 51 | B57: 730 | C57: 17 | D57: N | E57: OPERACIONES CONTINUADAS. Deterioro y resultado por enajenaciones del inmovilizado. Deterioro y pérdidas. Deterioros [00289]
A58: 52 | B58: 747 | C58: 17 | D58: N | E58: OPERACIONES CONTINUADAS. Deterioro y resultado por enajenaciones del inmovilizado. Deterioro y pérdidas. Reversión de deterioros [00290]
A59: 53 | B59: 764 | C59: 17 | D59: N | E59: OPERACIONES CONTINUADAS. Deterioro y resultado por enajenaciones del inmovilizado. Resultados por enajenaciones y otras [00291]
A60: 54 | B60: 781 | C60: 17 | D60: N | E60: OPERACIONES CONTINUADAS.Deterioro y resultado por enajenaciones del inmovilizado. Resultados por enajenaciones y otras. Beneﬁcios [00292]
A61: 55 | B61: 798 | C61: 17 | D61: N | E61: OPERACIONES CONTINUADAS. Deterioro y resultado por enajenaciones del inmovilizado. Resultados por enajenaciones y otras. Pérdidas [00293]
A62: 56 | B62: 815 | C62: 17 | D62: N | E62: OPERACIONES CONTINUADAS. Resultado por la pérdida de control de participaciones consolidadas [00244]
A63: =A62+1 -> 57 | B63: =B62+C62 -> 832 | C63: 17 | D63: N | E63: OPERACIONES CONTINUADAS. Resultado por la pérdida de control de participaciones consolidadas. Resultado por la pérdida de control de una dependiente [00329]
A64: =A63+1 -> 58 | B64: =B63+C63 -> 849 | C64: 17 | D64: N | E64: OPERACIONES CONTINUADAS. Resultado por la pérdida de control de participaciones consolidadas. Resultado atribuido a la participación retenida [00330]
A65: =A64+1 -> 59 | B65: =B64+C64 -> 866 | C65: 17 | D65: N | E65: OPERACIONES CONTINUADAS. Diferencia negativa de combinaciones de negocios [00294]
A66: 60 | B66: 883 | C66: 17 | D66: N | E66: OPERACIONES CONTINUADAS. Otros resultados [00295]
A67: 61 | B67: 900 | C67: 17 | D67: N | E67: OPERACIONES CONTINUADAS. RESULTADO DE EXPLOTACIÓN [00296]
A68: 62 | B68: 917 | C68: 12 | D68: An | E68: Fin de registro. | F68: </T22004A00>
A69: Total: | C69: =B68+C68-1 -> 928

Sheet T22004B00
B1: Agencia Tributaria
A3: =+T22001000!A3 -> Modelo 220 | C3: =+T22001000!C3 -> Diseño de registro. 2019
A4: =+T22001000!A4 -> Versión 1.9 | C4: Impuesto Sobre Sociedades. Régimen de consolidación Fiscal. GRUPO GENERAL. CUENTA DE PÉRDIDAS Y GANANCIAS CONSOLIDADA (II)
A6: Nº | B6: Posic. | C6: Lon | D6: Tipo | E6: Descripción | F6: Contenido
A7: 1 | B7: 1 | C7: 2 | D7: An | E7: Inicio del identificador de modelo y página. | F7: <T
A8: =+A7+1 -> 2 | B8: =C7+B7 -> 3 | C8: 3 | D8: Num | E8: Modelo. | F8: 220
A9: 3 | B9: 6 | C9: 2 | D9: An | E9: Página. | F9: 04
A10: 4 | B10: 8 | C10: 1 | D10: An | E10: Letra | F10: B
A11: 5 | B11: 9 | C11: 2 | D11: Num | E11: Hoja | F11: 00
A12: 6 | B12: 11 | C12: 1 | D12: An | E12: Fin de identificador de modelo y página. Constante ">". | F12: >
A13: 7 | B13: 12 | C13: 1 | D13: An | E13: Indicador de página complementaria.
A14: =A13+1 -> 8 | B14: =B13+C13 -> 13 | C14: 3 | D14: Num | E14: Número de orden de la página complementaria
A15: 9 | B15: 16 | C15: 17 | D15: N | E15: OPERACIONES CONTINUADAS (cont.). Ingresos ﬁnancieros [00297]
A16: 10 | B16: 33 | C16: 17 | D16: N | E16: OPERACIONES CONTINUADAS (cont.). Ingresos ﬁnancieros. De participaciones en instrumentos de patrimonio [00298]
A17: =A16+1 -> 11 | B17: =B16+C16 -> 50 | C17: 17 | D17: N | E17: OPERACIONES CONTINUADAS (cont.). Ingresos ﬁnancieros. De valores negociables y otros instrumentos ﬁnancieros [00301]
A18: =A17+1 -> 12 | B18: =B17+C17 -> 67 | C18: 17 | D18: N | E18: OPERACIONES CONTINUADAS (cont.). Ingresos ﬁnancieros. Imputación de subvenciones, donaciones y legados de carácter ﬁnanciero [000304]
A19: 13 | B19: 84 | C19: 17 | D19: N | E19: OPERACIONES CONTINUADAS (cont.). Gastos ﬁnancieros [00305]
A20: =A19+1 -> 14 | B20: =B19+C19 -> 101 | C20: 17 | D20: N | E20: OPERACIONES CONTINUADAS (cont.). Gastos ﬁnancieros. Por deudas con empresas del grupo asociadas [00306]
A21: =A20+1 -> 15 | B21: =B20+C20 -> 118 | C21: 17 | D21: N | E21: OPERACIONES CONTINUADAS (cont.). Gastos ﬁnancieros. Por deudas con terceros [00307]
A22: =A21+1 -> 16 | B22: =B21+C21 -> 135 | C22: 17 | D22: N | E22: OPERACIONES CONTINUADAS (cont.). Gastos ﬁnancieros. Por actuación de provisiones [00308]
A23: =A22+1 -> 17 | B23: =B22+C22 -> 152 | C23: 17 | D23: N | E23: OPERACIONES CONTINUADAS (cont.). Variación de valor razonable en instrumentos ﬁnancieros [00309]
A24: 18 | B24: 169 | C24: 17 | D24: N | E24: OPERACIONES CONTINUADAS (cont.). Variación de valor razonable en instrumentos ﬁnancieros. Variación de valor razonable en instrumentos ﬁnancieros. Cartera de negociación y otros [00310]
A25: 19 | B25: 186 | C25: 17 | D25: N | E25: OPERACIONES CONTINUADAS (cont.). Imputación al resultado del ejercicio por activos ﬁnancieros disponibles para la venta [00311]
A26: 20 | B26: 203 | C26: 17 | D26: N | E26: OPERACIONES CONTINUADAS (cont.). Diferencias de cambio [00312]
A27: 21 | B27: 220 | C27: 17 | D27: N | E27: OPERACIONES CONTINUADAS (cont.). Deterioro y resultado por enajenaciones de instrumentos ﬁnancieros [00313]
A28: 22 | B28: 237 | C28: 17 | D28: N | E28: OPERACIONES CONTINUADAS (cont.). Deterioro y resultado por enajenaciones de instrumentos ﬁnancieros. Deterioros y pérdidas [00314]
A29: 23 | B29: 254 | C29: 17 | D29: N | E29: OPERACIONES CONTINUADAS (cont.). Deterioro y resultado por enajenaciones de instrumentos ﬁnancieros. Deterioros y pérdidas.Deterioros, empresas del grupo, asociadas y vinculadas [00315]
A30: 24 | B30: 271 | C30: 17 | D30: N | E30: OPERACIONES CONTINUADAS (cont.). Deterioro y resultado por enajenaciones de instrumentos ﬁnancieros.Deterioros y pérdidas. Deterioros, otras empresas [00316]
A31: 25 | B31: 288 | C31: 17 | D31: N | E31: OPERACIONES CONTINUADAS (cont.). Deterioro y resultado por enajenaciones de instrumentos ﬁnancieros. Deterioros y pérdidas. Reversión de deterioros, empresas del grupo, asociadas y vinculadas [00317]
A32: 26 | B32: 305 | C32: 17 | D32: N | E32: OPERACIONES CONTINUADAS (cont.). Deterioro y resultado por enajenaciones de instrumentos ﬁnancieros. Deterioros y pérdidas. Reversión de deterioros, otras empresas [00318]
A33: 27 | B33: 322 | C33: 17 | D33: N | E33: OPERACIONES CONTINUADAS (cont.). Deterioro y resultado por enajenaciones de instrumentos ﬁnancieros. Resultados por enajenaciones y otras [00319]
A34: 28 | B34: 339 | C34: 17 | D34: N | E34: OPERACIONES CONTINUADAS (cont.). Resultados por enajenaciones y otras. Beneﬁcios, empresas del grupo asociadas y vinculadas [00320]
A35: 29 | B35: 356 | C35: 17 | D35: N | E35: OPERACIONES CONTINUADAS (cont.). Resultados por enajenaciones y otras. Beneﬁcios, empresas del grupo no consolidadas y asociadas a largo plazo. Beneﬁ cios, otras empresas [00321]
A36: 30 | B36: 373 | C36: 17 | D36: N | E36: OPERACIONES CONTINUADAS (cont.). Resultados por enajenaciones y otras. Beneﬁcios, empresas del grupo no consolidadas y asociadas a largo plazo.Pérdidas, empresas del grupo asociadas y vinculadas [00322]
A37: 31 | B37: 390 | C37: 17 | D37: N | E37: OPERACIONES CONTINUADAS (cont.). Resultados por enajenaciones y otras. Beneﬁcios, empresas del grupo no consolidadas y asociadas a largo plazo.Pérdidas, otras empresas [00323]
A38: =A37+1 -> 32 | B38: =B37+C37 -> 407 | C38: 17 | D38: N | E38: OPERACIONES CONTINUADAS (cont.). Otros ingresos y gastos de carácter financiero [00360]
A39: =A38+1 -> 33 | B39: =B38+C38 -> 424 | C39: 17 | D39: N | E39: OPERACIONES CONTINUADAS (cont.). Otros ingresos y gastos de carácter financiero. Incorporación al activo de gastos financieros [00361]
A40: =A39+1 -> 34 | B40: =B39+C39 -> 441 | C40: 17 | D40: N | E40: OPERACIONES CONTINUADAS (cont.). Otros ingresos y gastos de carácter financiero. Ingresos financieros derivados de convenios de acreedores [00362]
A41: =A40+1 -> 35 | B41: =B40+C40 -> 458 | C41: 17 | D41: N | E41: OPERACIONES CONTINUADAS (cont.). Otros ingresos y gastos de carácter financiero. Resto de ingresos y gastos [00363]
A42: =A41+1 -> 36 | B42: =B41+C41 -> 475 | C42: 17 | D42: N | E42: OPERACIONES CONTINUADAS (cont.). RESULTADO FINANCIERO [00324]
A43: 37 | B43: 492 | C43: 17 | D43: N | E43: OPERACIONES CONTINUADAS (cont.). RESULTADO ANTES DE IMPUESTOS [00325]
A44: 38 | B44: 509 | C44: 17 | D44: N | E44: OPERACIONES CONTINUADAS (cont.). Impuestos sobre beneﬁcios [00326]
A45: 39 | B45: 526 | C45: 17 | D45: N | E45: OPERACIONES CONTINUADAS (cont.). RESULTADO DEL EJERCICIO PROCEDENTE DE OPERACIONES CONTINUADAS [00327]
A46: 40 | B46: 543 | C46: 17 | D46: N | E46: OPERACIONES INTERRUMPIDAS. RESULTADO DEL EJERCICIO PROCEDENTE DE OPERACIONES INTERRUMPIDAS NETO DE IMPUESTOS. [00328]
A47: 41 | B47: 560 | C47: 17 | D47: N | E47: RESULTADO CONSOLIDADO DEL EJERCICIO. [000500]
A48: 42 | B48: 577 | C48: 17 | D48: N | E48: RESULTADO CONSOLIDADO DEL EJERCICIO.Resultado atribuido a la sociedad dominante. [00247]
A49: 43 | B49: 594 | C49: 17 | D49: N | E49: RESULTADO CONSOLIDADO DEL EJERCICIO.Resultado atribuido a socios externos. [00248]
A50: 44 | B50: 611 | C50: 12 | D50: An | E50: Fin de ejercicio. | F50: </T22004B00>
A51: Total: | C51: =B50+C50-1 -> 622

Sheet T22005A00
B1: Agencia Tributaria
A3: =+T22001000!A3 -> Modelo 220 | C3: =+T22001000!C3 -> Diseño de registro. 2019
A4: =+T22001000!A4 -> Versión 1.9 | C4: Impuesto Sobre Sociedades. Régimen de consolidación Fiscal. GRUPO GENERAL. ESTADO DE CAMBIOS EN EL PATRIMONIO NETO: ESTADO DE INGRESOS Y GASTOS RECONOCIDOS CONSOLIDADO
A6: Nº | B6: Posic. | C6: Lon | D6: Tipo | E6: Descripción | F6: Contenido
A7: 1 | B7: 1 | C7: 2 | D7: An | E7: Inicio del identificador de modelo y página. | F7: <T
A8: =+A7+1 -> 2 | B8: =C7+B7 -> 3 | C8: 3 | D8: Num | E8: Modelo. | F8: 220
A9: 3 | B9: 6 | C9: 2 | D9: An | E9: Página. | F9: 05
A10: 4 | B10: 8 | C10: 1 | D10: An | E10: Letra | F10: A
A11: 5 | B11: 9 | C11: 2 | D11: Num | E11: Hoja | F11: 00
A12: 6 | B12: 11 | C12: 1 | D12: An | E12: Fin de identificador de modelo y página. Constante ">". | F12: >
A13: 7 | B13: 12 | C13: 1 | D13: An | E13: Indicador de página complementaria.
A14: =A13+1 -> 8 | B14: =B13+C13 -> 13 | C14: 3 | D14: Num | E14: Número de orden de la página complementaria
A15: 9 | B15: 16 | C15: 17 | D15: N | E15: Resultado consolidado del ejercicio [00500]
A16: 10 | B16: 33 | C16: 17 | D16: N | E16: INGRESOS Y GASTOS IMPUTADOS DIRECTAMENTE EN EL PATRIMONIO NETO CONSOLIDADO. Por valoración de instrumentos ﬁ nancieros [00336]
A17: 11 | B17: 50 | C17: 17 | D17: N | E17: INGRESOS Y GASTOS IMPUTADOS DIRECTAMENTE EN EL PATRIMONIO NETO CONSOLIDADO. Por valoración de instrumentos ﬁnancieros. Activos ﬁnancieros disponibles para la venta [00337]
A18: 12 | B18: 67 | C18: 17 | D18: N | E18: INGRESOS Y GASTOS IMPUTADOS DIRECTAMENTE EN EL PATRIMONIO NETO CONSOLIDADO. Por valoración de instrumentos ﬁnancieros. Otros ingresos / gastos [00338]
A19: 13 | B19: 84 | C19: 17 | D19: N | E19: INGRESOS Y GASTOS IMPUTADOS DIRECTAMENTE EN EL PATRIMONIO NETO CONSOLIDADO. Por coberturas de ﬂ ujos de efectivo [00339]
A20: 14 | B20: 101 | C20: 17 | D20: N | E20: INGRESOS Y GASTOS IMPUTADOS DIRECTAMENTE EN EL PATRIMONIO NETO CONSOLIDADO. Subvenciones, donaciones y legados recibidos [00340]
A21: 15 | B21: 118 | C21: 17 | D21: N | E21: INGRESOS Y GASTOS IMPUTADOS DIRECTAMENTE EN EL PATRIMONIO NETO CONSOLIDADO. Por ganancias y pérdidas actuariales y otros ajustes [00341]
A22: 16 | B22: 135 | C22: 17 | D22: N | E22: INGRESOS Y GASTOS IMPUTADOS DIRECTAMENTE EN EL PATRIMONIO NETO CONSOLIDADO. Por activos no corrientes y pasivos vinculados, mantenidos para la venta [00342]
A23: =A22+1 -> 17 | B23: =B22+C22 -> 152 | C23: 17 | D23: N | E23: INGRESOS Y GASTOS IMPUTADOS DIRECTAMENTE EN EL PATRIMONIO NETO CONSOLIDADO. Efecto impositivo [00344]
A24: 18 | B24: 169 | C24: 17 | D24: N | E24: INGRESOS Y GASTOS IMPUTADOS DIRECTAMENTE EN EL PATRIMONIO NETO CONSOLIDADO. Total ingresos y gastos imputados directamente en el patrimonio neto consolidado [00345]
A25: 19 | B25: 186 | C25: 17 | D25: N | E25: TRANSFERENCIAS A LA CUENTA DE PÉRDIDAS Y GANANCIAS CONSOLIDADA. Por valoración de instrumentos ﬁnancieros [00346]
A26: 20 | B26: 203 | C26: 17 | D26: N | E26: TRANSFERENCIAS A LA CUENTA DE PÉRDIDAS Y GANANCIAS CONSOLIDADA. Por valoración de instrumentos ﬁnancieros. Activos ﬁ nancieros disponibles para la venta [00347]
A27: 21 | B27: 220 | C27: 17 | D27: N | E27: TRANSFERENCIAS A LA CUENTA DE PÉRDIDAS Y GANANCIAS CONSOLIDADA. Por valoración de instrumentos ﬁnancieros. Otros ingresos / gastos [00348]
A28: 22 | B28: 237 | C28: 17 | D28: N | E28: TRANSFERENCIAS A LA CUENTA DE PÉRDIDAS Y GANANCIAS CONSOLIDADA. Por coberturas de ﬂ ujos de efectivo [00349]
A29: 23 | B29: 254 | C29: 17 | D29: N | E29: TRANSFERENCIAS A LA CUENTA DE PÉRDIDAS Y GANANCIAS CONSOLIDADA. Subvenciones, donaciones y legados recibidos [00350]
A30: 24 | B30: 271 | C30: 17 | D30: N | E30: TRANSFERENCIAS A LA CUENTA DE PÉRDIDAS Y GANANCIAS CONSOLIDADA. Por activos no corrientes y pasivos vinculados, mantenidos para la venta [00351]
A31: =A30+1 -> 25 | B31: =B30+C30 -> 288 | C31: 17 | D31: N | E31: TRANSFERENCIAS A LA CUENTA DE PÉRDIDAS Y GANANCIAS CONSOLIDADA. Efecto impositivo [00353]
A32: 26 | B32: 305 | C32: 17 | D32: N | E32: TRANSFERENCIAS A LA CUENTA DE PÉRDIDAS Y GANANCIAS CONSOLIDADA. Total transferencia a la cuenta de pérdidas y ganancias consolidada [00354]
A33: 27 | B33: 322 | C33: 17 | D33: N | E33: TOTAL DE INGRESOS Y GASTOS CONSOLIDADOS RECONOCIDOS [00355]
A34: =A33+1 -> 28 | B34: =B33+C33 -> 339 | C34: 17 | D34: N | E34: TOTAL DE INGRESOS Y GASTOS CONSOLIDADOS RECONOCIDOS.Total de ingresos y gastos atribuidos a la sociedad dominante [00333]
A35: =A34+1 -> 29 | B35: =B34+C34 -> 356 | C35: 17 | D35: N | E35: TOTAL DE INGRESOS Y GASTOS CONSOLIDADOS RECONOCIDOS. Total de ingresos y gastos atribuidos a socios externos [00334]
A36: =A35+1 -> 30 | B36: =B35+C35 -> 373 | C36: 12 | D36: An | E36: Fin de registro. | F36: </T22005A00>
A37: Total: | C37: =B36+C36-1 -> 384

Sheet T22005B00
B1: Agencia Tributaria
A3: =+T22001000!A3 -> Modelo 220 | C3: =+T22001000!C3 -> Diseño de registro. 2019
A4: =+T22001000!A4 -> Versión 1.9 | C4: Impuesto Sobre Sociedades. Régimen de consolidación Fiscal. GRUPO GENERAL. ESTADO DE CAMBIOS EN EL PATRIMONIO NETO: ESTADO TOTAL DE CAMBIOS EN EL PATRIMONIO NETO CONSOLIDADO (I)
A6: Nº | B6: Posic. | C6: Lon | D6: Tipo | E6: Descripción | F6: Contenido
A7: 1 | B7: 1 | C7: 2 | D7: An | E7: Inicio del identificador de modelo y página. | F7: <T
A8: =+A7+1 -> 2 | B8: =C7+B7 -> 3 | C8: 3 | D8: Num | E8: Modelo. | F8: 220
A9: 3 | B9: 6 | C9: 2 | D9: An | E9: Página. | F9: 05
A10: 4 | B10: 8 | C10: 1 | D10: An | E10: Letra | F10: B
A11: 5 | B11: 9 | C11: 2 | D11: Num | E11: Hoja | F11: 00
A12: 6 | B12: 11 | C12: 1 | D12: An | E12: Fin de identificador de modelo y página. Constante ">". | F12: >
A13: 7 | B13: 12 | C13: 1 | D13: An | E13: Indicador de página complementaria.
A14: =A13+1 -> 8 | B14: =B13+C13 -> 13 | C14: 3 | D14: Num | E14: Número de orden de la página complementaria
A15: 9 | B15: 16 | C15: 17 | D15: N | E15: SALDO, FINAL DEL EJERCICIO ANTERIOR. Capital [00380]
A16: 10 | B16: 33 | C16: 17 | D16: N | E16: SALDO, FINAL DEL EJERCICIO ANTERIOR. Prima de emisión [00382]
A17: 11 | B17: 50 | C17: 17 | D17: N | E17: SALDO, FINAL DEL EJERCICIO ANTERIOR. Reservas y result. ejercicios anteriores [00383]
A18: 12 | B18: 67 | C18: 17 | D18: N | E18: SALDO, FINAL DEL EJERCICIO ANTERIOR. (Acciones propias y de la soc. dominante) [00384]
A19: 13 | B19: 84 | C19: 17 | D19: N | E19: SALDO, FINAL DEL EJERCICIO ANTERIOR. Otras aportaciones de socios o mutualistas [00386]
A20: 14 | B20: 101 | C20: 17 | D20: N | E20: SALDO, FINAL DEL EJERCICIO ANTERIOR. Resultado del ejercicio atribuido a soc. dominante [00387]
A21: 15 | B21: 118 | C21: 17 | D21: N | E21: SALDO, FINAL DEL EJERCICIO ANTERIOR. Ajustes por cambio de criterio de ejercicios anteriores . Capital [00394]
A22: 16 | B22: 135 | C22: 17 | D22: N | E22: SALDO, FINAL DEL EJERCICIO ANTERIOR. Ajustes por cambio de criterio de ejercicios anteriores . Prima de emisión [00396]
A23: 17 | B23: 152 | C23: 17 | D23: N | E23: SALDO, FINAL DEL EJERCICIO ANTERIOR. Ajustes por cambio de criterio de ejercicios anteriores . Reservas y result. ejercicios anteriores [00397]
A24: 18 | B24: 169 | C24: 17 | D24: N | E24: SALDO, FINAL DEL EJERCICIO ANTERIOR. Ajustes por cambio de criterio de ejercicios anteriores . (Acciones propias y de la soc. dominante) [00398]
A25: 19 | B25: 186 | C25: 17 | D25: N | E25: SALDO, FINAL DEL EJERCICIO ANTERIOR.Ajustes por cambio de criterio de ejercicios anteriores . Otras aportaciones de socios o mutualistas [00400]
A26: 20 | B26: 203 | C26: 17 | D26: N | E26: SALDO, FINAL DEL EJERCICIO ANTERIOR.Ajustes por cambio de criterio de ejercicios anteriores. Resultado del ejercicio atribuido a soc. dominante [00401]
A27: 21 | B27: 220 | C27: 17 | D27: N | E27: SALDO, FINAL DEL EJERCICIO ANTERIOR. Ajustes por errores de ejercicios anteriores . Capital [00408]
A28: 22 | B28: 237 | C28: 17 | D28: N | E28: SALDO, FINAL DEL EJERCICIO ANTERIOR. Ajustes por errores de ejercicios anteriores. Prima de emisión [00410]
A29: 23 | B29: 254 | C29: 17 | D29: N | E29: SALDO, FINAL DEL EJERCICIO ANTERIOR. Ajustes por errores de ejercicios anteriores. Reservas y result. ejercicios anteriores [00411]
A30: 24 | B30: 271 | C30: 17 | D30: N | E30: SALDO, FINAL DEL EJERCICIO ANTERIOR.Ajustes por errores de ejercicios anteriores . (Acciones propias y de la soc. dominante) [00412]
A31: 25 | B31: 288 | C31: 17 | D31: N | E31: SALDO, FINAL DEL EJERCICIO ANTERIOR.Ajustes por errores de ejercicios anteriores. Otras aportaciones de socios o mutualistas [00414]
A32: 26 | B32: 305 | C32: 17 | D32: N | E32: SALDO, FINAL DEL EJERCICIO ANTERIOR.Ajustes por errores de ejercicios anteriores. Resultado del ejercicio atribuido a soc. dominante [00415]
A33: 27 | B33: 322 | C33: 17 | D33: N | E33: SALDO AJUSTADO, INICIO DEL EJERCICIO . Capital [00422]
A34: 28 | B34: 339 | C34: 17 | D34: N | E34: SALDO AJUSTADO, INICIO DEL EJERCICIO . Prima de emisión [00424]
A35: 29 | B35: 356 | C35: 17 | D35: N | E35: SALDO AJUSTADO, INICIO DEL EJERCICIO .Reservas y result. ejercicios anteriores [00425]
A36: 30 | B36: 373 | C36: 17 | D36: N | E36: SALDO AJUSTADO, INICIO DEL EJERCICIO . (Acciones propias y de la soc. dominante) [00426]
A37: 31 | B37: 390 | C37: 17 | D37: N | E37: SALDO AJUSTADO, INICIO DEL EJERCICIO . Otras aportaciones de socios o mutualistas [00428]
A38: 32 | B38: 407 | C38: 17 | D38: N | E38: SALDO AJUSTADO, INICIO DEL EJERCICIO . Resultado del ejercicio atribuido a soc. dominante [00429]
A39: 33 | B39: 424 | C39: 17 | D39: N | E39: SALDO AJUSTADO, INICIO DEL EJERCICIO. Total ingresos y gastos consolidados reconocidos. Capital [00436]
A40: 34 | B40: 441 | C40: 17 | D40: N | E40: SALDO AJUSTADO, INICIO DEL EJERCICIO. Total ingresos y gastos consolidados reconocidos. Prima de emisión [00438]
A41: 35 | B41: 458 | C41: 17 | D41: N | E41: SALDO AJUSTADO, INICIO DEL EJERCICIO. Total ingresos y gastos consolidados reconocidos. ejercicios anteriores. Reservas y result. ejercicios anteriores [00439]
A42: 36 | B42: 475 | C42: 17 | D42: N | E42: SALDO AJUSTADO, INICIO DEL EJERCICIO. Total ingresos y gastos consolidados reconocidos. (Acciones propias y de la soc. dominante) [00440]
A43: 37 | B43: 492 | C43: 17 | D43: N | E43: SALDO AJUSTADO, INICIO DEL EJERCICIO. Total ingresos y gastos consolidados reconocidos. Otras aportaciones de socios o mutualistas [00442]
A44: 38 | B44: 509 | C44: 17 | D44: N | E44: SALDO AJUSTADO, INICIO DEL EJERCICIO. Total ingresos y gastos consolidados reconocidos. Resultado del ejercicio atribuido a soc. dominante [00443]
A45: 39 | B45: 526 | C45: 17 | D45: N | E45: SALDO AJUSTADO, INICIO DEL EJERCICIO. Operaciones con socios o propietarios. Capital [00506]
A46: =A45+1 -> 40 | B46: =B45+C45 -> 543 | C46: 17 | D46: N | E46: SALDO AJUSTADO, INICIO DEL EJERCICIO. Operaciones con socios o propietarios. Prima de emisión [00508]
A47: 41 | B47: 560 | C47: 17 | D47: N | E47: SALDO AJUSTADO, INICIO DEL EJERCICIO. Operaciones con socios o propietarios. Reservas y result. ejercicios anteriores [00509]
A48: 42 | B48: 577 | C48: 17 | D48: N | E48: SALDO AJUSTADO, INICIO DEL EJERCICIO. Operaciones con socios o propietarios. (Acciones propias y de la soc. dominante) [00510]
A49: 43 | B49: 594 | C49: 17 | D49: N | E49: SALDO AJUSTADO, INICIO DEL EJERCICIO. Operaciones con socios o propietarios. Otras aportaciones de socios o mutualistas [00512]
A50: 44 | B50: 611 | C50: 17 | D50: N | E50: SALDO AJUSTADO, INICIO DEL EJERCICIO. Operaciones con socios o propietarios. Resultado del ejercicio atribuido a soc. dominante [00513]
A51: 45 | B51: 628 | C51: 17 | D51: N | E51: SALDO AJUSTADO, INICIO DEL EJERCICIO. Operaciones con socios o propietarios.Aumentos (reducciones) de capital. Capital [00520]
A52: 46 | B52: 645 | C52: 17 | D52: N | E52: SALDO AJUSTADO, INICIO DEL EJERCICIO. Operaciones con socios o propietarios. Aumentos (reducciones) de capital. Prima de emisión [00522]
A53: 47 | B53: 662 | C53: 17 | D53: N | E53: SALDO AJUSTADO, INICIO DEL EJERCICIO. Operaciones con socios o propietarios. Aumentos (reducciones) de capital. Reservas y result. ejercicios anteriores [00523]
A54: 48 | B54: 679 | C54: 17 | D54: N | E54: SALDO AJUSTADO, INICIO DEL EJERCICIO. Operaciones con socios o propietarios. Aumentos (reducciones) de capital. (Acciones propias y de la soc. dominante) [00524]
A55: 49 | B55: 696 | C55: 17 | D55: N | E55: SALDO AJUSTADO, INICIO DEL EJERCICIO. Operaciones con socios o propietarios. Aumentos (reducciones) de capitalOtras aportaciones de socios o mutualistas [00526]
A56: 50 | B56: 713 | C56: 17 | D56: N | E56: SALDO AJUSTADO, INICIO DEL EJERCICIO. Operaciones con socios o propietarios. Aumentos (reducciones) de capital. Resultado del ejercicio atribuido a soc. dominante [00527]
A57: 51 | B57: 730 | C57: 17 | D57: N | E57: SALDO AJUSTADO, INICIO DEL EJERCICIO. Operaciones con socios o propietarios.Conversión de pasivos ﬁnancieros en patrimonio neto. Capital [00548]
A58: 52 | B58: 747 | C58: 17 | D58: N | E58: SALDO AJUSTADO, INICIO DEL EJERCICIO. Operaciones con socios o propietarios. Conversión de pasivos ﬁnancieros en patrimonio neto. Prima de emisión [00550]
A59: 53 | B59: 764 | C59: 17 | D59: N | E59: SALDO AJUSTADO, INICIO DEL EJERCICIO. Operaciones con socios o propietarios. Conversión de pasivos ﬁnancieros en patrimonio neto.. Reservas y result. ejercicios anteriores [00551]
A60: 54 | B60: 781 | C60: 17 | D60: N | E60: SALDO AJUSTADO, INICIO DEL EJERCICIO. Operaciones con socios o propietarios. Conversión de pasivos ﬁnancieros en patrimonio neto.. (Acciones propias y de la soc. dominante) [00552]
A61: 55 | B61: 798 | C61: 17 | D61: N | E61: SALDO AJUSTADO, INICIO DEL EJERCICIO. Operaciones con socios o propietarios.Conversión de pasivos ﬁnancieros en patrimonio neto. Otras aportaciones de socios o mutualistas [00554]
A62: 56 | B62: 815 | C62: 17 | D62: N | E62: SALDO AJUSTADO, INICIO DEL EJERCICIO. Operaciones con socios o propietarios. Conversión de pasivos ﬁnancieros en patrimonio neto. Resultado del ejercicio atribuido a soc. dominante [00555]
A63: 57 | B63: 832 | C63: 17 | D63: N | E63: SALDO AJUSTADO, INICIO DEL EJERCICIO. Operaciones con socios o propietarios.(-) Distribución de dividendos. Capital [00562]
A64: 58 | B64: 849 | C64: 17 | D64: N | E64: SALDO AJUSTADO, INICIO DEL EJERCICIO. Operaciones con socios o propietarios. (-) Distribución de dividendos. Prima de emisión [00564]
A65: 59 | B65: 866 | C65: 17 | D65: N | E65: SALDO AJUSTADO, INICIO DEL EJERCICIO. Operaciones con socios o propietarios. (-) Distribución de dividendos. Reservas y result. ejercicios anteriores [00565]
A66: 60 | B66: 883 | C66: 17 | D66: N | E66: SALDO AJUSTADO, INICIO DEL EJERCICIO. Operaciones con socios o propietarios.(-) Distribución de dividendos. (Acciones propias y de la soc. dominante) [00566]
A67: 61 | B67: 900 | C67: 17 | D67: N | E67: SALDO AJUSTADO, INICIO DEL EJERCICIO. Operaciones con socios o propietarios.(-) Distribución de dividendos. Otras aportaciones de socios o mutualistas [00568]
A68: 62 | B68: 917 | C68: 17 | D68: N | E68: SALDO AJUSTADO, INICIO DEL EJERCICIO. Operaciones con socios o propietarios. (-) Distribución de dividendos. Resultado del ejercicio atribuido a soc. dominante [00569]
A69: 63 | B69: 934 | C69: 17 | D69: N | E69: SALDO AJUSTADO, INICIO DEL EJERCICIO. Operaciones con socios o propietarios.Operaciones con acciones o participaciones de la sociedad dominante (netas). Capital [00576]
A70: 64 | B70: 951 | C70: 17 | D70: N | E70: SALDO AJUSTADO, INICIO DEL EJERCICIO. Operaciones con socios o propietarios. Operaciones con acciones o participaciones de la sociedad dominante (netas). Prima de emisión [00578]
A71: 65 | B71: 968 | C71: 17 | D71: N | E71: SALDO AJUSTADO, INICIO DEL EJERCICIO. Operaciones con socios o propietarios.Operaciones con acciones o participaciones de la sociedad dominante (netas). Reservas y result. ejercicios anteriores [00579]
A72: 66 | B72: 985 | C72: 17 | D72: N | E72: SALDO AJUSTADO, INICIO DEL EJERCICIO. Operaciones con socios o propietarios.Operaciones con acciones o participaciones de la sociedad dominante (netas). (Acciones propias y de la soc. dominante) [00580]
A73: 67 | B73: 1002 | C73: 17 | D73: N | E73: SALDO AJUSTADO, INICIO DEL EJERCICIO. Operaciones con socios o propietarios.Operaciones con acciones o participaciones de la sociedad dominante (netas). Otras aportaciones de socios o mutualistas [00582]
A74: 68 | B74: 1019 | C74: 17 | D74: N | E74: SALDO AJUSTADO, INICIO DEL EJERCICIO. Operaciones con socios o propietarios. Operaciones con acciones o participaciones de la sociedad dominante (netas). Resultado del ejercicio atribuido a soc. dominante [00583]
A75: 69 | B75: 1036 | C75: 17 | D75: N | E75: SALDO AJUSTADO, INICIO DEL EJERCICIO. Operaciones con socios o propietarios.Incremento (reducción) de patrimonio neto resultante de una combinación de negocios. Capital [00590]
A76: 70 | B76: 1053 | C76: 17 | D76: N | E76: SALDO AJUSTADO, INICIO DEL EJERCICIO. Operaciones con socios o propietarios. Incremento (reducción) de patrimonio neto resultante de una combinación de negocios. Prima de emisión [00592]
A77: 71 | B77: 1070 | C77: 17 | D77: N | E77: SALDO AJUSTADO, INICIO DEL EJERCICIO. Operaciones con socios o propietarios.Incremento (reducción) de patrimonio neto resultante de una combinación de negocios. Operaciones con socios o propietarios [00593]
A78: =A77+1 -> 72 | B78: =B77+C77 -> 1087 | C78: 17 | D78: N | E78: SALDO AJUSTADO, INICIO DEL EJERCICIO. Operaciones con socios o propietarios.Incremento (reducción) de patrimonio neto resultante de una combinación de negocios. (Acciones propias y de la soc. dominante) [00594]
A79: 73 | B79: 1104 | C79: 17 | D79: N | E79: SALDO AJUSTADO, INICIO DEL EJERCICIO. Operaciones con socios o propietarios.Incremento (reducción) de patrimonio neto resultante de una combinación de negocios. Otras aportaciones de socios o mutualistas [00596]
A80: 74 | B80: 1121 | C80: 17 | D80: N | E80: SALDO AJUSTADO, INICIO DEL EJERCICIO. Operaciones con socios o propietarios. Incremento (reducción) de patrimonio neto resultante de una combinación de negocios. Resultado del ejercicio atribuido a soc. dominante [00597]
A81: 75 | B81: 1138 | C81: 17 | D81: N | E81: SALDO AJUSTADO, INICIO DEL EJERCICIO. Operaciones con socios o propietarios.Adquisiciones (ventas) de participaciones de socios externos. Capital [00591]
A82: 76 | B82: 1155 | C82: 17 | D82: N | E82: SALDO AJUSTADO, INICIO DEL EJERCICIO. Operaciones con socios o propietarios. Adquisiciones (ventas) de participaciones de socios externos. Prima de emisión [00536]
A83: 77 | B83: 1172 | C83: 17 | D83: N | E83: SALDO AJUSTADO, INICIO DEL EJERCICIO. Operaciones con socios o propietarios.Adquisiciones (ventas) de participaciones de socios externos.Reservas y result. ejercicios anteriores [00595]
A84: 78 | B84: 1189 | C84: 17 | D84: N | E84: SALDO AJUSTADO, INICIO DEL EJERCICIO. Operaciones con socios o propietarios.Adquisiciones (ventas) de participaciones de socios externos. (Acciones propias y de la soc. dominante) [00538]
A85: 79 | B85: 1206 | C85: 17 | D85: N | E85: SALDO AJUSTADO, INICIO DEL EJERCICIO. Operaciones con socios o propietarios.Adquisiciones (ventas) de participaciones de socios externos. Otras aportaciones de socios o mutualistas [00540]
A86: 80 | B86: 1223 | C86: 17 | D86: N | E86: SALDO AJUSTADO, INICIO DEL EJERCICIO. Operaciones con socios o propietarios. Adquisiciones (ventas) de participaciones de socios externos. Resultado del ejercicio atribuido a soc. dominante [00541]
A87: 81 | B87: 1240 | C87: 17 | D87: N | E87: SALDO AJUSTADO, INICIO DEL EJERCICIO. Operaciones con socios o propietarios.Otras operaciones con socios o propietarios. Capital [00604]
A88: 82 | B88: 1257 | C88: 17 | D88: N | E88: SALDO AJUSTADO, INICIO DEL EJERCICIO. Operaciones con socios o propietarios. Otras operaciones con socios o propietarios. Prima de emisión [00606]
A89: 83 | B89: 1274 | C89: 17 | D89: N | E89: SALDO AJUSTADO, INICIO DEL EJERCICIO. Operaciones con socios o propietarios.Otras operaciones con socios o propietarios. Reservas y result. ejercicios anteriores [00607]
A90: 84 | B90: 1291 | C90: 17 | D90: N | E90: SALDO AJUSTADO, INICIO DEL EJERCICIO. Operaciones con socios o propietarios.Otras operaciones con socios o propietarios. (Acciones propias y de la soc. dominante) [00608]
A91: 85 | B91: 1308 | C91: 17 | D91: N | E91: SALDO AJUSTADO, INICIO DEL EJERCICIO. Operaciones con socios o propietarios.Otras operaciones con socios o propietarios. Otras aportaciones de socios o mutualistas [00610]
A92: 86 | B92: 1325 | C92: 17 | D92: N | E92: SALDO AJUSTADO, INICIO DEL EJERCICIO. Operaciones con socios o propietarios.Otras operaciones con socios o propietarios. Resultado del ejercicio atribuido a soc. dominante [00611]
A93: 87 | B93: 1342 | C93: 17 | D93: N | E93: SALDO AJUSTADO, INICIO DEL EJERCICIO. Otras variaciones del patrimonio neto. Capital [00618]
A94: 88 | B94: 1359 | C94: 17 | D94: N | E94: SALDO AJUSTADO, INICIO DEL EJERCICIO. Otras variaciones del patrimonio neto. Prima de emisión [00620]
A95: 89 | B95: 1376 | C95: 17 | D95: N | E95: SALDO AJUSTADO, INICIO DEL EJERCICIO. Otras variaciones del patrimonio neto. Reservas y result. ejercicios anteriores [00621]
A96: 90 | B96: 1393 | C96: 17 | D96: N | E96: SALDO AJUSTADO, INICIO DEL EJERCICIO. Otras variaciones del patrimonio neto. (Acciones propias y de la soc. dominante) [00622]
A97: 91 | B97: 1410 | C97: 17 | D97: N | E97: SALDO AJUSTADO, INICIO DEL EJERCICIO. Otras variaciones del patrimonio neto. Otras aportaciones de socios o mutualistas [00624]
A98: 92 | B98: 1427 | C98: 17 | D98: N | E98: SALDO AJUSTADO, INICIO DEL EJERCICIO. Otras variaciones del patrimonio neto. Resultado del ejercicio atribuido a soc. dominante [00625]
A99: =A98+1 -> 93 | B99: =B98+C98 -> 1444 | C99: 17 | D99: N | E99: SALDO AJUSTADO, INICIO DEL EJERCICIO. Mantenimiento de la reserva de revalorización. Capital [00710]
A100: 94 | B100: 1461 | C100: 17 | D100: N | E100: SALDO AJUSTADO, INICIO DEL EJERCICIO. Mantenimiento de la reserva de revalorización. Prima de emisión [00711]
A101: 95 | B101: 1478 | C101: 17 | D101: N | E101: SALDO AJUSTADO, INICIO DEL EJERCICIO. Mantenimiento de la reserva de revalorización. Reservas y Result. Ejercicios anteriores [00712]
A102: 96 | B102: 1495 | C102: 17 | D102: N | E102: SALDO AJUSTADO, INICIO DEL EJERCICIO. Mantenimiento de la reserva de revalorización. (Acciones propias y de la soc. dominante) [00713]
A103: 97 | B103: 1512 | C103: 17 | D103: N | E103: SALDO AJUSTADO, INICIO DEL EJERCICIO. Mantenimiento de la reserva de revalorización. Otras aportaciones de socios o mutualistas [00714]
A104: 98 | B104: 1529 | C104: 17 | D104: N | E104: SALDO AJUSTADO, INICIO DEL EJERCICIO. Mantenimiento de la reserva de revalorización. Resultado del ejercicio atribuido a la soc. dominante [00715]
A105: 99 | B105: 1546 | C105: 17 | D105: N | E105: SALDO AJUSTADO, INICIO DEL EJERCICIO. Otras variaciones. Capital [00722]
A106: 100 | B106: 1563 | C106: 17 | D106: N | E106: SALDO AJUSTADO, INICIO DEL EJERCICIO. Otras variaciones. Prima de emisión [00723]
A107: 101 | B107: 1580 | C107: 17 | D107: N | E107: SALDO AJUSTADO, INICIO DEL EJERCICIO. Otras variaciones. Reservas y result. Ejercicios anteriores [00724]
A108: 102 | B108: 1597 | C108: 17 | D108: N | E108: SALDO AJUSTADO, INICIO DEL EJERCICIO. Otras variaciones. (Acciones propias y de la soc. dominante) [00725]
A109: 103 | B109: 1614 | C109: 17 | D109: N | E109: SALDO AJUSTADO, INICIO DEL EJERCICIO. Otras variaciones. Otras aportaciones de socios o mutualistas [00726]
A110: 104 | B110: 1631 | C110: 17 | D110: N | E110: SALDO AJUSTADO, INICIO DEL EJERCICIO. Otras variaciones. Resultado del ejercicio atribuído a soc. dominante [00727]
A111: 105 | B111: 1648 | C111: 17 | D111: N | E111: SALDO, FINAL DEL EJERCICIO. Capital [00632]
A112: 106 | B112: 1665 | C112: 17 | D112: N | E112: SALDO, FINAL DEL EJERCICIO. Prima de emisión [00634]
A113: 107 | B113: 1682 | C113: 17 | D113: N | E113: SALDO, FINAL DEL EJERCICIO. Reservas y result. ejercicios anteriores [00635]
A114: 108 | B114: 1699 | C114: 17 | D114: N | E114: SALDO, FINAL DEL EJERCICIO. (Acciones propias y de la soc. dominante) [00636]
A115: 109 | B115: 1716 | C115: 17 | D115: N | E115: SALDO AJUSTADO, INICIO DEL EJERCICIO. Otras aportaciones de socios o mutualistas [00638]
A116: 110 | B116: 1733 | C116: 17 | D116: N | E116: SALDO, FINAL DEL EJERCICIO. Resultado del ejercicio atribuido a soc. dominante [00639]
A117: 111 | B117: 1750 | C117: 12 | D117: An | E117: Fin de registro. | F117: </T22005B00>
A118: Total: | C118: =B117+C117-1 -> 1761

Sheet T22005C00
B1: Agencia Tributaria
A3: =+T22001000!A3 -> Modelo 220 | C3: =+T22001000!C3 -> Diseño de registro. 2019
A4: =+T22001000!A4 -> Versión 1.9 | C4: Impuesto Sobre Sociedades. Régimen de consolidación Fiscal. GRUPO GENERAL. ESTADO DE CAMBIOS EN EL PATRIMONIO NETO: ESTADO TOTAL DE CAMBIOS EN EL PATRIMONIO NETO CONSOLIDADO (II)
A6: Nº | B6: Posic. | C6: Lon | D6: Tipo | E6: Descripción | F6: Contenido
A7: 1 | B7: 1 | C7: 2 | D7: An | E7: Inicio del identificador de modelo y página. | F7: <T
A8: =+A7+1 -> 2 | B8: =C7+B7 -> 3 | C8: 3 | D8: Num | E8: Modelo. | F8: 220
A9: 3 | B9: 6 | C9: 2 | D9: An | E9: Página. | F9: 05
A10: 4 | B10: 8 | C10: 1 | D10: An | E10: Letra | F10: C
A11: 5 | B11: 9 | C11: 2 | D11: Num | E11: Hoja | F11: 00
A12: 6 | B12: 11 | C12: 1 | D12: An | E12: Fin de identificador de modelo y página. Constante ">". | F12: >
A13: 7 | B13: 12 | C13: 1 | D13: An | E13: Indicador de página complementaria.
A14: =A13+1 -> 8 | B14: =B13+C13 -> 13 | C14: 3 | D14: Num | E14: Número de orden de la página complementaria
A15: 9 | B15: 16 | C15: 17 | D15: N | E15: SALDO, FINAL DEL EJERCICIO ANTERIOR. (Dividendo a cuenta) [00388]
A16: 10 | B16: 33 | C16: 17 | D16: N | E16: SALDO, FINAL DEL EJERCICIO ANTERIOR. Otros instrumentos de patrimonio neto [00389]
A17: 11 | B17: 50 | C17: 17 | D17: N | E17: SALDO, FINAL DEL EJERCICIO ANTERIOR. Ajustes por cambios de valor [00390]
A18: 12 | B18: 67 | C18: 17 | D18: N | E18: SALDO, FINAL DEL EJERCICIO ANTERIOR. Subvenciones, donaciones y legados recibidos [00392]
A19: 13 | B19: 84 | C19: 17 | D19: N | E19: SALDO, FINAL DEL EJERCICIO ANTERIOR. Socios externos [00157]
A20: 14 | B20: 101 | C20: 17 | D20: N | E20: SALDO, FINAL DEL EJERCICIO ANTERIOR. Total [00393]
A21: 15 | B21: 118 | C21: 17 | D21: N | E21: SALDO, FINAL DEL EJERCICIO ANTERIOR. Ajustes por cambio de criterio de ejercicios anteriores. (Dividendo a cuenta) [00402]
A22: 16 | B22: 135 | C22: 17 | D22: N | E22: SALDO, FINAL DEL EJERCICIO ANTERIOR.Ajustes por cambio de criterio de ejercicios anteriores. Otros instrumentos de patrimonio neto [00403]
A23: 17 | B23: 152 | C23: 17 | D23: N | E23: SALDO, FINAL DEL EJERCICIO ANTERIOR. Ajustes por cambio de criterio de ejercicios anteriores. Ajustes por cambios de valor [00404]
A24: 18 | B24: 169 | C24: 17 | D24: N | E24: SALDO, FINAL DEL EJERCICIO ANTERIOR. Ajustes por cambio de criterio de ejercicios anteriores. Subvenciones, donaciones y legados recibidos [00406]
A25: 19 | B25: 186 | C25: 17 | D25: N | E25: SALDO, FINAL DEL EJERCICIO ANTERIOR. Ajustes por cambio de criterio de ejercicios anteriores. Socios externos [00158]
A26: 20 | B26: 203 | C26: 17 | D26: N | E26: SALDO, FINAL DEL EJERCICIO ANTERIOR. Ajustes por cambio de criterio de ejercicios anteriores. Total [00407]
A27: 21 | B27: 220 | C27: 17 | D27: N | E27: SALDO, FINAL DEL EJERCICIO ANTERIOR. Ajustes por errores de ejercicios anteriores. (Dividendo a cuenta) [00416]
A28: 22 | B28: 237 | C28: 17 | D28: N | E28: SALDO, FINAL DEL EJERCICIO ANTERIOR.Ajustes por errores del ejercicios anteriores. Otros instrumentos de patrimonio neto [00417]
A29: 23 | B29: 254 | C29: 17 | D29: N | E29: SALDO, FINAL DEL EJERCICIO ANTERIOR. Ajustes por errores de ejercicios anteriores. Ajustes por cambios de valor [00418]
A30: 24 | B30: 271 | C30: 17 | D30: N | E30: SALDO, FINAL DEL EJERCICIO ANTERIOR. Ajustes por errores de ejercicios anteriores. Subvenciones, donaciones y legados recibidos [00420]
A31: 25 | B31: 288 | C31: 17 | D31: N | E31: SALDO, FINAL DEL EJERCICIO ANTERIOR. Ajustes por errores de ejercicios anteriores. Socios externos [00381]
A32: 26 | B32: 305 | C32: 17 | D32: N | E32: SALDO, FINAL DEL EJERCICIO ANTERIOR. Ajustes por errores de ejercicios anteriores. Total [00421]
A33: 27 | B33: 322 | C33: 17 | D33: N | E33: SALDO AJUSTADO, INICIO DEL EJERCICIO. (Dividendo a cuenta) [00430]
A34: 28 | B34: 339 | C34: 17 | D34: N | E34: SALDO AJUSTADO, INICIO DEL EJERCICIO. Otros instrumentos de patrimonio neto [00431]
A35: 29 | B35: 356 | C35: 17 | D35: N | E35: SALDO AJUSTADO, INICIO DEL EJERCICIO. Ajustes por cambios de valor [00432]
A36: 30 | B36: 373 | C36: 17 | D36: N | E36: SALDO AJUSTADO, INICIO DEL EJERCICIO. Subvenciones, donaciones y legados recibidos [00434]
A37: 31 | B37: 390 | C37: 17 | D37: N | E37: SALDO AJUSTADO, INICIO DEL EJERCICIO. Socios externos [00163]
A38: 32 | B38: 407 | C38: 17 | D38: N | E38: SALDO AJUSTADO, INICIO DEL EJERCICIO. Total [00435]
A39: 33 | B39: 424 | C39: 17 | D39: N | E39: SALDO AJUSTADO, INICIO DEL EJERCICIO. Total ingresos y gastos consolidados reconocidos. (Dividendo a cuenta) [00444]
A40: 34 | B40: 441 | C40: 17 | D40: N | E40: SALDO AJUSTADO, INICIO DEL EJERCICIO. Total ingresos y gastos consolidados reconocidos. Otros instrumentos de patrimonio neto [00445]
A41: 35 | B41: 458 | C41: 17 | D41: N | E41: SALDO AJUSTADO, INICIO DEL EJERCICIO. Total ingresos y gastos consolidados reconocidos. Ajustes por cambios de valor [00446]
A42: 36 | B42: 475 | C42: 17 | D42: N | E42: SALDO AJUSTADO, INICIO DEL EJERCICIO. Total ingresos y gastos consolidados reconocidos. Subvenciones, donaciones y legados recibidos [00448]
A43: 37 | B43: 492 | C43: 17 | D43: N | E43: SALDO AJUSTADO, INICIO DEL EJERCICIO. Total ingresos y gastos consolidados reconocidos. Socios externos [00164]
A44: 38 | B44: 509 | C44: 17 | D44: N | E44: SALDO AJUSTADO, INICIO DEL EJERCICIO. Total ingresos y gastos consolidados reconocidos. Total [00449]
A45: 39 | B45: 526 | C45: 17 | D45: N | E45: SALDO AJUSTADO, INICIO DEL EJERCICIO. Operaciones con socios o propietarios. (Dividendo a cuenta) [00514]
A46: =A45+1 -> 40 | B46: =B45+C45 -> 543 | C46: 17 | D46: N | E46: SALDO AJUSTADO, INICIO DEL EJERCICIO. Operaciones con socios o propietarios. Otros instrumentos de patrimonio neto [00515]
A47: 41 | B47: 560 | C47: 17 | D47: N | E47: SALDO AJUSTADO, INICIO DEL EJERCICIO. Operaciones con socios o propietarios. Ajustes por cambios de valor [00516]
A48: 42 | B48: 577 | C48: 17 | D48: N | E48: SALDO AJUSTADO, INICIO DEL EJERCICIO. Operaciones con socios o propietarios. Subvenciones, donaciones y legados recibidos [00518]
A49: 43 | B49: 594 | C49: 17 | D49: N | E49: SALDO AJUSTADO, INICIO DEL EJERCICIO. Operaciones con socios o propietarios. Socios externos [00165]
A50: 44 | B50: 611 | C50: 17 | D50: N | E50: SALDO AJUSTADO, INICIO DEL EJERCICIO. Operaciones con socios o propietarios. Total [00519]
A51: 45 | B51: 628 | C51: 17 | D51: N | E51: SALDO AJUSTADO, INICIO DEL EJERCICIO. Operaciones con socios o propietarios. Aumentos (reducciones) de capital. (Dividendo a cuenta) [00528]
A52: 46 | B52: 645 | C52: 17 | D52: N | E52: SALDO AJUSTADO, INICIO DEL EJERCICIO. Operaciones con socios o propietarios.Aumentos (reducciones) de capital. Otros instrumentos de patrimonio neto [00529]
A53: 47 | B53: 662 | C53: 17 | D53: N | E53: SALDO AJUSTADO, INICIO DEL EJERCICIO. Operaciones con socios o propietarios. Aumentos (reducciones) de capital. Ajustes por cambios de valor [00530]
A54: 48 | B54: 679 | C54: 17 | D54: N | E54: SALDO AJUSTADO, INICIO DEL EJERCICIO. Operaciones con socios o propietarios. Aumentos (reducciones) de capital. Subvenciones, donaciones y legados recibidos [00532]
A55: 49 | B55: 696 | C55: 17 | D55: N | E55: SALDO AJUSTADO, INICIO DEL EJERCICIO. Operaciones con socios o propietarios. Aumentos (reducciones) de capital. Socios externos [00166]
A56: 50 | B56: 713 | C56: 17 | D56: N | E56: SALDO AJUSTADO, INICIO DEL EJERCICIO. Operaciones con socios o propietarios. Aumentos (reducciones) de capital. Total [00533]
A57: 51 | B57: 730 | C57: 17 | D57: N | E57: SALDO AJUSTADO, INICIO DEL EJERCICIO. Operaciones con socios o propietarios. Conversión de pasivos ﬁ nancieros en patrimonio neto. (Dividendo a cuenta) [00556]
A58: 52 | B58: 747 | C58: 17 | D58: N | E58: SALDO AJUSTADO, INICIO DEL EJERCICIO. Operaciones con socios o propietarios.Conversión de pasivos ﬁ nancieros en patrimonio neto. Otros instrumentos de patrimonio neto [00557]
A59: 53 | B59: 764 | C59: 17 | D59: N | E59: SALDO AJUSTADO, INICIO DEL EJERCICIO. Operaciones con socios o propietarios. Conversión de pasivos ﬁ nancieros en patrimonio neto. Ajustes por cambios de valor [00558]
A60: 54 | B60: 781 | C60: 17 | D60: N | E60: SALDO AJUSTADO, INICIO DEL EJERCICIO. Operaciones con socios o propietarios. Conversión de pasivos ﬁ nancieros en patrimonio neto. Subvenciones, donaciones y legados recibidos [00560]
A61: 55 | B61: 798 | C61: 17 | D61: N | E61: SALDO AJUSTADO, INICIO DEL EJERCICIO. Operaciones con socios o propietarios.. Conversión de pasivos ﬁ nancieros en patrimonio neto. Socios externos [00385]
A62: 56 | B62: 815 | C62: 17 | D62: N | E62: SALDO AJUSTADO, INICIO DEL EJERCICIO. Operaciones con socios o propietarios.. Conversión de pasivos ﬁ nancieros en patrimonio neto. Total [00561]
A63: 57 | B63: 832 | C63: 17 | D63: N | E63: SALDO AJUSTADO, INICIO DEL EJERCICIO. Operaciones con socios o propietarios. (-) Distribución de dividendos . (Dividendo a cuenta) [00570]
A64: 58 | B64: 849 | C64: 17 | D64: N | E64: SALDO AJUSTADO, INICIO DEL EJERCICIO. Operaciones con socios o propietarios.(-) Distribución de dividendos . Otros instrumentos de patrimonio neto [00571]
A65: 59 | B65: 866 | C65: 17 | D65: N | E65: SALDO AJUSTADO, INICIO DEL EJERCICIO. Operaciones con socios o propietarios. (-) Distribución de dividendos . Ajustes por cambios de valor [00572]
A66: 60 | B66: 883 | C66: 17 | D66: N | E66: SALDO AJUSTADO, INICIO DEL EJERCICIO. Operaciones con socios o propietarios. (-) Distribución de dividendos. Subvenciones, donaciones y legados recibidos [00574]
A67: 61 | B67: 900 | C67: 17 | D67: N | E67: SALDO AJUSTADO, INICIO DEL EJERCICIO. Operaciones con socios o propietarios. (-) Distribución de dividendos . Socios externos [00171]
A68: 62 | B68: 917 | C68: 17 | D68: N | E68: SALDO AJUSTADO, INICIO DEL EJERCICIO. Operaciones con socios o propietarios. (-) Distribución de dividendos . Total [00575]
A69: 63 | B69: 934 | C69: 17 | D69: N | E69: SALDO AJUSTADO, INICIO DEL EJERCICIO. Operaciones con socios o propietarios. Operaciones con acciones o participaciones de la sociedad dominante (netas). (Dividendo a cuenta) [00584]
A70: 64 | B70: 951 | C70: 17 | D70: N | E70: SALDO AJUSTADO, INICIO DEL EJERCICIO. Operaciones con socios o propietarios.Operaciones con acciones o participaciones de la sociedad dominante (netas). Otros instrumentos de patrimonio neto [00585]
A71: 65 | B71: 968 | C71: 17 | D71: N | E71: SALDO AJUSTADO, INICIO DEL EJERCICIO. Operaciones con socios o propietarios. Operaciones con acciones o participaciones de la sociedad dominante (netas). Ajustes por cambios de valor [00586]
A72: 66 | B72: 985 | C72: 17 | D72: N | E72: SALDO AJUSTADO, INICIO DEL EJERCICIO. Operaciones con socios o propietarios. Operaciones con acciones o participaciones de la sociedad dominante (netas). Subvenciones, donaciones y legados recibidos [00588]
A73: 67 | B73: 1002 | C73: 17 | D73: N | E73: SALDO AJUSTADO, INICIO DEL EJERCICIO. Operaciones con socios o propietarios. Operaciones con acciones o participaciones de la sociedad dominante (netas). Socios externos [00172]
A74: 68 | B74: 1019 | C74: 17 | D74: N | E74: SALDO AJUSTADO, INICIO DEL EJERCICIO. Operaciones con socios o propietarios. Operaciones con acciones o participaciones de la sociedad dominante (netas). Total [00589]
A75: 69 | B75: 1036 | C75: 17 | D75: N | E75: SALDO AJUSTADO, INICIO DEL EJERCICIO. Operaciones con socios o propietarios. Incremento (reducción) de patrimonio neto resultante de una combinación de negocios. (Dividendo a cuenta) [00598]
A76: 70 | B76: 1053 | C76: 17 | D76: N | E76: SALDO AJUSTADO, INICIO DEL EJERCICIO. Operaciones con socios o propietarios.Incremento (reducción) de patrimonio neto resultante de una combinación de negocios. Otros instrumentos de patrimonio neto [00599]
A77: 71 | B77: 1070 | C77: 17 | D77: N | E77: SALDO AJUSTADO, INICIO DEL EJERCICIO. Operaciones con socios o propietarios. Incremento (reducción) de patrimonio neto resultante de una combinación de negocios. Ajustes por cambios de valor [00600]
A78: =A77+1 -> 72 | B78: =B77+C77 -> 1087 | C78: 17 | D78: N | E78: SALDO AJUSTADO, INICIO DEL EJERCICIO. Operaciones con socios o propietarios. Incremento (reducción) de patrimonio neto resultante de una combinación de negocios. Subvenciones, donaciones y legados recibidos [00602]
A79: 73 | B79: 1104 | C79: 17 | D79: N | E79: SALDO AJUSTADO, INICIO DEL EJERCICIO. Operaciones con socios o propietarios. Incremento (reducción) de patrimonio neto resultante de una combinación de negocios. Socios externos [00173]
A80: 74 | B80: 1121 | C80: 17 | D80: N | E80: SALDO AJUSTADO, INICIO DEL EJERCICIO. Operaciones con socios o propietarios. Incremento (reducción) de patrimonio neto resultante de una combinación de negocios. Total [00603]
A81: 75 | B81: 1138 | C81: 17 | D81: N | E81: SALDO AJUSTADO, INICIO DEL EJERCICIO. Operaciones con socios o propietarios. Adquisiciones (ventas) de participaciones de socios externos. (Dividendo a cuenta) [00542]
A82: 76 | B82: 1155 | C82: 17 | D82: N | E82: SALDO AJUSTADO, INICIO DEL EJERCICIO. Operaciones con socios o propietarios.Adquisiciones (ventas) de participaciones de socios externos. Otros instrumentos de patrimonio neto [00543]
A83: 77 | B83: 1172 | C83: 17 | D83: N | E83: SALDO AJUSTADO, INICIO DEL EJERCICIO. Operaciones con socios o propietarios. Adquisiciones (ventas) de participaciones de socios externos. Ajustes por cambios de valor [00615]
A84: 78 | B84: 1189 | C84: 17 | D84: N | E84: SALDO AJUSTADO, INICIO DEL EJERCICIO. Operaciones con socios o propietarios. Adquisiciones (ventas) de participaciones de socios externos. Subvenciones, donaciones y legados recibidos [00546]
A85: 79 | B85: 1206 | C85: 17 | D85: N | E85: SALDO AJUSTADO, INICIO DEL EJERCICIO. Operaciones con socios o propietarios. Adquisiciones (ventas) de participaciones de socios externos. Socios externos [00174]
A86: 80 | B86: 1223 | C86: 17 | D86: N | E86: SALDO AJUSTADO, INICIO DEL EJERCICIO. Operaciones con socios o propietarios. Adquisiciones (ventas) de participaciones de socios externos. Total [00399]
A87: 81 | B87: 1240 | C87: 17 | D87: N | E87: SALDO AJUSTADO, INICIO DEL EJERCICIO. Operaciones con socios o propietarios. Otras operaciones con socios o propietarios. (Dividendo a cuenta) [00612]
A88: 82 | B88: 1257 | C88: 17 | D88: N | E88: SALDO AJUSTADO, INICIO DEL EJERCICIO. Operaciones con socios o propietarios.Otras operaciones con socios o propietarios. Otros instrumentos de patrimonio neto [00613]
A89: 83 | B89: 1274 | C89: 17 | D89: N | E89: SALDO AJUSTADO, INICIO DEL EJERCICIO. Operaciones con socios o propietarios. Otras operaciones con socios o propietarios. Ajustes por cambios de valor [00614]
A90: 84 | B90: 1291 | C90: 17 | D90: N | E90: SALDO AJUSTADO, INICIO DEL EJERCICIO. Operaciones con socios o propietarios. Otras operaciones con socios o propietarios. Subvenciones, donaciones y legados recibidos [00616]
A91: 85 | B91: 1308 | C91: 17 | D91: N | E91: SALDO AJUSTADO, INICIO DEL EJERCICIO. Operaciones con socios o propietarios. Otras operaciones con socios o propietarios. Socios externos [00391]
A92: 86 | B92: 1325 | C92: 17 | D92: N | E92: SALDO AJUSTADO, INICIO DEL EJERCICIO. Operaciones con socios o propietarios. Otras operaciones con socios o propietarios. Total [00617]
A93: 87 | B93: 1342 | C93: 17 | D93: N | E93: SALDO AJUSTADO, INICIO DEL EJERCICIO. Otras variaciones del patrimonio neto. (Dividendo a cuenta) [00626]
A94: 88 | B94: 1359 | C94: 17 | D94: N | E94: SALDO AJUSTADO, INICIO DEL EJERCICIO. Otras variaciones del patrimonio neto. Otros instrumentos de patrimonio neto [00627]
A95: 89 | B95: 1376 | C95: 17 | D95: N | E95: SALDO AJUSTADO, INICIO DEL EJERCICIO. Otras variaciones del patrimonio neto. Ajustes por cambios de valor [00628]
A96: 90 | B96: 1393 | C96: 17 | D96: N | E96: SALDO AJUSTADO, INICIO DEL EJERCICIO. Otras variaciones del patrimonio neto. Subvenciones, donaciones y legados recibidos [00630]
A97: 91 | B97: 1410 | C97: 17 | D97: N | E97: SALDO AJUSTADO, INICIO DEL EJERCICIO. Otras variaciones del patrimonio neto. Socios externos [00652]
A98: 92 | B98: 1427 | C98: 17 | D98: N | E98: SALDO AJUSTADO, INICIO DEL EJERCICIO. Otras variaciones del patrimonio neto. Total [00631]
A99: =A98+1 -> 93 | B99: =B98+C98 -> 1444 | C99: 17 | D99: N | E99: SALDO AJUSTADO, INICIO DEL EJERCICIO. Movimiento de reservas de revalorización. (Dividendo a cuenta) [00716]
A100: 94 | B100: =B99+C99 -> 1461 | C100: 17 | D100: N | E100: SALDO AJUSTADO, INICIO DEL EJERCICIO. Movimiento de reservas de revalorización. Otros instrumentos de patrimonio neto [00717]
A101: 95 | B101: =B100+C100 -> 1478 | C101: 17 | D101: N | E101: SALDO AJUSTADO, INICIO DEL EJERCICIO. Movimiento de reservas de revalorización. Ajustes por cambios de valor [00718]
A102: 96 | B102: 1495 | C102: 17 | D102: N | E102: SALDO AJUSTADO, INICIO DEL EJERCICIO. Movimiento de reservas de revalorización. Subvenciones, donaciones y legados recibidos [00719]
A103: 97 | B103: 1512 | C103: 17 | D103: N | E103: SALDO AJUSTADO, INICIO DEL EJERCICIO. Movimiento de reservas de revalorización. Socios externos [00720]
A104: 98 | B104: 1529 | C104: 17 | D104: N | E104: SALDO AJUSTADO, INICIO DEL EJERCICIO. Movimiento de reservas de revalorización. Total [00721]
A105: 99 | B105: 1546 | C105: 17 | D105: N | E105: SALDO AJUSTADO, INICIO DEL EJERCICIO. Otras variaciones. (Dividendo a cuenta) [00728]
A106: 100 | B106: 1563 | C106: 17 | D106: N | E106: SALDO AJUSTADO, INICIO DEL EJERCICIO. Otras variaciones. Otros instrumentos de patrimonio neto [00729]
A107: 101 | B107: 1580 | C107: 17 | D107: N | E107: SALDO AJUSTADO, INICIO DEL EJERCICIO. Otras variaciones. Ajustes por cambios de valor [00730]
A108: 102 | B108: 1597 | C108: 17 | D108: N | E108: SALDO AJUSTADO, INICIO DEL EJERCICIO. Otras variaciones. Subvensiones, donaciones y legados recibidos [00731]
A109: 103 | B109: 1614 | C109: 17 | D109: N | E109: SALDO AJUSTADO, INICIO DEL EJERCICIO. Otras variaciones. Socios externos [00732]
A110: 104 | B110: 1631 | C110: 17 | D110: N | E110: SALDO AJUSTADO, INICIO DEL EJERCICIO. Otras variaciones. Total [00733]
A111: 105 | B111: 1648 | C111: 17 | D111: N | E111: SALDO, FINAL DEL EJERCICIO (Dividendo a cuenta) [00640]
A112: 106 | B112: 1665 | C112: 17 | D112: N | E112: SALDO, FINAL DEL EJERCICIO. Otras variaciones del patrimonio neto. Otros instrumentos de patrimonio neto [00641]
A113: 107 | B113: 1682 | C113: 17 | D113: N | E113: SALDO, FINAL DEL EJERCICIO. Ajustes por cambios de valor [00642]
A114: 108 | B114: 1699 | C114: 17 | D114: N | E114: SALDO, FINAL DEL EJERCICIO. Subvenciones, donaciones y legados recibidos [00644]
A115: 109 | B115: 1716 | C115: 17 | D115: N | E115: SALDO, FINAL DEL EJERCICIO. Otras variaciones del patrimonio neto. Socios externos [00395]
A116: 110 | B116: 1733 | C116: 17 | D116: N | E116: SALDO, FINAL DEL EJERCICIO. Total [00645]
A117: 111 | B117: 1750 | C117: 12 | D117: An | E117: Fin de ejercicio. | F117: </T22005C00>
A118: Total: | C118: =B117+C117-1 -> 1761

Sheet T22003A01
B1: Agencia Tributaria
A3: =+T22001000!A3 -> Modelo 220 | C3: =+T22001000!C3 -> Diseño de registro. 2019
A4: =+T22001000!A4 -> Versión 1.9 | C4: Impuesto Sobre Sociedades. Régimen de consolidación Fiscal. GRUPO DE ENTIDADES DE CRÉDITO. BALANCE CONSOLIDADO: ACTIVO
A6: Nº | B6: Posic. | C6: Lon | D6: Tipo | E6: Descripción | F6: Contenido
A7: 1 | B7: 1 | C7: 2 | D7: An | E7: Inicio del identificador de modelo y página. | F7: <T
A8: =+A7+1 -> 2 | B8: =C7+B7 -> 3 | C8: 3 | D8: Num | E8: Modelo. | F8: 220
A9: 3 | B9: 6 | C9: 2 | D9: An | E9: Página. | F9: 03
A10: 4 | B10: 8 | C10: 1 | D10: An | E10: Letra | F10: A
A11: 5 | B11: 9 | C11: 2 | D11: Num | E11: Hoja | F11: 01
A12: 6 | B12: 11 | C12: 1 | D12: An | E12: Fin de identificador de modelo y página. Constante ">". | F12: >
A13: 7 | B13: 12 | C13: 1 | D13: An | E13: Indicador de página complementaria.
A14: =A13+1 -> 8 | B14: =B13+C13 -> 13 | C14: 3 | D14: Num | E14: Número de orden de la página complementaria
A15: 9 | B15: 16 | C15: 17 | D15: N | E15: ACTIVO. Efectivo, saldos en efectivo en bancos centrales y otros depósitos a la vista. [00101]
A16: 10 | B16: 33 | C16: 17 | D16: N | E16: ACTIVO. Activos financieros mantenidos para negociar. [00102]
A17: 11 | B17: 50 | C17: 17 | D17: N | E17: ACTIVO. Derivados. [00103]
A18: 12 | B18: 67 | C18: 17 | D18: N | E18: ACTIVO. Instrumentos de patrimonio. [00104]
A19: 13 | B19: 84 | C19: 17 | D19: N | E19: ACTIVO. Valores representativos de deuda. [00105]
A20: 14 | B20: 101 | C20: 17 | D20: N | E20: ACTIVO. Préstamos y anticipos. [00106]
A21: 15 | B21: 118 | C21: 17 | D21: N | E21: ACTIVO. Préstamos y anticipos. Bancos centrales. [00107]
A22: 16 | B22: 135 | C22: 17 | D22: N | E22: ACTIVO. Préstamos y anticipos. Entidades de crédito. [00108]
A23: 17 | B23: 152 | C23: 17 | D23: N | E23: ACTIVO. Préstamos y anticipos. Clientela. [00109]
A24: 18 | B24: 169 | C24: 17 | D24: N | E24: ACTIVO. Pro memoria: prestados o entregados como garantía con derecho de venta o pignoración. [00750]
A25: =A24+1 -> 19 | B25: 186 | C25: 17 | D25: N | E25: ACTIVO. Activos financieros no destinados a negociación valorados obligatoriamente a valor razonable con cambios en resultados. [00615]
A26: 20 | B26: 203 | C26: 17 | D26: N | E26: ACTIVO. Instrumentos de patrimonio. [00616]
A27: 21 | B27: 220 | C27: 17 | D27: N | E27: ACTIVO. Valores representativos de deuda. [00617]
A28: 22 | B28: 237 | C28: 17 | D28: N | E28: ACTIVO. Préstamos y anticipos. [00618]
A29: 23 | B29: 254 | C29: 17 | D29: N | E29: ACTIVO. Bancos centrales. [00619]
A30: 24 | B30: 271 | C30: 17 | D30: N | E30: ACTIVO. Entidades de crédito. [00620]
A31: 25 | B31: 288 | C31: 17 | D31: N | E31: ACTIVO. Clientela. [00621]
A32: 26 | B32: 305 | C32: 17 | D32: N | E32: ACTIVO. Pro memoria: prestados o entregados como garantía con derecho de venta o pignoración. [00622]
A33: 27 | B33: 322 | C33: 17 | D33: N | E33: ACTIVO. Activos financieros designados a valor razonable con cambios en resultados. [00110]
A34: =A33+1 -> 28 | B34: 339 | C34: 17 | D34: N | E34: ACTIVO. Valores representativos de deuda. [00112]
A35: 29 | B35: 356 | C35: 17 | D35: N | E35: ACTIVO. Préstamos y anticipos. [00113]
A36: 30 | B36: 373 | C36: 17 | D36: N | E36: ACTIVO. Préstamos y anticipos. Bancos centrales.[00114]
A37: 31 | B37: 390 | C37: 17 | D37: N | E37: ACTIVO. Préstamos y anticipos. Entidades de crédito. [00115]
A38: 32 | B38: 407 | C38: 17 | D38: N | E38: ACTIVO. Préstamos y anticipos. Clientela. [00116]
A39: 33 | B39: 424 | C39: 17 | D39: N | E39: ACTIVO. Pro memoria: prestados o entregados como garantía con derecho de venta o pignoración. [00751]
A40: 34 | B40: 441 | C40: 17 | D40: N | E40: ACTIVO. Activos financieros a valor razonable con cambios en otro resultado global. [00623]
A41: 35 | B41: 458 | C41: 17 | D41: N | E41: ACTIVO. Instrumentos de patrimonio. [00624]
A42: 36 | B42: 475 | C42: 17 | D42: N | E42: ACTIVO. Valores representativos de deuda. [00625]
A43: 37 | B43: 492 | C43: 17 | D43: N | E43: ACTIVO. Préstamos y anticipos. [00626]
A44: 38 | B44: 509 | C44: 17 | D44: N | E44: ACTIVO. Bancos centrales. [00627]
A45: 39 | B45: 526 | C45: 17 | D45: N | E45: ACTIVO. Entidades de crédito. [00628]
A46: 40 | B46: 543 | C46: 17 | D46: N | E46: ACTIVO. Clientela. [00629]
A47: 41 | B47: 560 | C47: 17 | D47: N | E47: ACTIVO. Pro memoria: prestados o entregados como garantía con derecho de venta o pignoración. [00630]
A48: 42 | B48: 577 | C48: 17 | D48: N | E48: ACTIVO. Activos financieros a coste amortizado. [00631]
A49: 43 | B49: 594 | C49: 17 | D49: N | E49: ACTIVO. Valores representativos de deuda. [00632]
A50: 44 | B50: 611 | C50: 17 | D50: N | E50: ACTIVO. Préstamos y anticipos. [00633]
A51: 45 | B51: 628 | C51: 17 | D51: N | E51: ACTIVO. Bancos centrales. [00634]
A52: 46 | B52: 645 | C52: 17 | D52: N | E52: ACTIVO. Entidades de crédito. [00635]
A53: 47 | B53: 662 | C53: 17 | D53: N | E53: ACTIVO. Clientela. [00636]
A54: 48 | B54: 679 | C54: 17 | D54: N | E54: ACTIVO. Pro memoria: prestados o entregados como garantía con derecho de venta o pignoración. [00637]
A55: 49 | B55: 696 | C55: 17 | D55: N | E55: ACTIVO. Derivados - contabilidad de coberturas. [00127]
A56: 50 | B56: 713 | C56: 17 | D56: N | E56: ACTIVO. Cambios del valor razonable de los elementos cubiertos de una cartera con cobertura del riesgo de tipo de interés. [00128]
A57: 51 | B57: 730 | C57: 17 | D57: N | E57: ACTIVO. Inversiones en negocios conjuntos y asociadas. [00129]
A58: 52 | B58: 747 | C58: 17 | D58: N | E58: ACTIVO. Negocios conjuntos. [00131]
A59: 53 | B59: 764 | C59: 17 | D59: N | E59: ACTIVO. Asociadas. [00132]
A60: 54 | B60: 781 | C60: 17 | D60: N | E60: ACTIVO. Activos amparados por contratos de seguro o reaseguro. [00133]
A61: 55 | B61: 798 | C61: 17 | D61: N | E61: ACTIVO. Activos tangibles. [00134]
A62: 56 | B62: 815 | C62: 17 | D62: N | E62: ACTIVO. Inmovilizado material. [00135]
A63: 57 | B63: 832 | C63: 17 | D63: N | E63: ACTIVO. Inmovilizado material. De uso propio. [00136]
A64: 58 | B64: 849 | C64: 17 | D64: N | E64: ACTIVO. Inmovilizado material. Cedido en arrendamiento operativo. [00137]
A65: 59 | B65: 866 | C65: 17 | D65: N | E65: ACTIVO. Inmovilizado material. Afecto a la obra social (cajas de ahorros y cooperativas de crédito). [00138]
A66: 60 | B66: 883 | C66: 17 | D66: N | E66: ACTIVO.Inversiones inmobiliarias. [00139]
A67: 61 | B67: 900 | C67: 17 | D67: N | E67: ACTIVO. Inversiones inmobiliarias. De las cuales: cedido en arrendamiento operativo. [00140]
A68: 62 | B68: 917 | C68: 17 | D68: N | E68: ACTIVO. Pro memoria: adquirido en arrendamiento financiero. [00755]
A69: 63 | B69: 934 | C69: 12 | D69: An | E69: Fin de registro. | F69: </T22003A01>
A70: Total: | C70: =B69+C69-1 -> 945

Sheet T22003A11
B1: Agencia Tributaria
A3: =+T22001000!A3 -> Modelo 220 | C3: =+T22001000!C3 -> Diseño de registro. 2019
A4: =+T22001000!A4 -> Versión 1.9 | C4: Impuesto Sobre Sociedades. Régimen de consolidación Fiscal. GRUPO DE ENTIDADES DE CRÉDITO. BALANCE CONSOLIDADO: ACTIVO
A6: Nº | B6: Posic. | C6: Lon | D6: Tipo | E6: Descripción | F6: Contenido
A7: 1 | B7: 1 | C7: 2 | D7: An | E7: Inicio del identificador de modelo y página. | F7: <T
A8: =+A7+1 -> 2 | B8: =C7+B7 -> 3 | C8: 3 | D8: Num | E8: Modelo. | F8: 220
A9: 3 | B9: 6 | C9: 2 | D9: An | E9: Página. | F9: 03
A10: 4 | B10: 8 | C10: 1 | D10: An | E10: Letra | F10: A
A11: 5 | B11: 9 | C11: 2 | D11: Num | E11: Hoja | F11: 11
A12: 6 | B12: 11 | C12: 1 | D12: An | E12: Fin de identificador de modelo y página. Constante ">". | F12: >
A13: 7 | B13: 12 | C13: 1 | D13: An | E13: Indicador de página complementaria.
A14: 8 | B14: 13 | C14: 3 | D14: Num | E14: Número de orden de la página complementaria
A15: 9 | B15: 16 | C15: 17 | D15: N | E15: ACTIVO (cont.). Activos intangibles. [00141]
A16: 10 | B16: 33 | C16: 17 | D16: N | E16: ACTIVO (cont). Fondo de comercio. [00142]
A17: 11 | B17: 50 | C17: 17 | D17: N | E17: ACTIVO (cont). Otros activos intangibles. [00143]
A18: 12 | B18: 67 | C18: 17 | D18: N | E18: ACTIVO (cont). Activos por impuestos. [00144]
A19: 13 | B19: 84 | C19: 17 | D19: N | E19: ACTIVO (cont). Activos por impuestos corrientes. [00145]
A20: 14 | B20: 101 | C20: 17 | D20: N | E20: ACTIVO (cont). Activos por impuestos diferidos. [00146]
A21: 15 | B21: 118 | C21: 17 | D21: N | E21: ACTIVO (cont). Otros activos. [00147]
A22: 16 | B22: 135 | C22: 17 | D22: N | E22: ACTIVO (cont). Contratos de seguros vinculados a pensiones. [00148]
A23: 17 | B23: 152 | C23: 17 | D23: N | E23: ACTIVO (cont). Existencias. [00149]
A24: 18 | B24: 169 | C24: 17 | D24: N | E24: ACTIVO (cont). Resto de los otros activos. [00150]
A25: 19 | B25: 186 | C25: 17 | D25: N | E25: ACTIVO (cont). Activos no corrientes y grupos enajenables de elementos que se han clasificado como mantenidos para la venta [00151]
A26: 20 | B26: 203 | C26: 17 | D26: N | E26: ACTIVO (cont). Total activo. [00152]
A27: 21 | B27: 220 | C27: 12 | D27: An | E27: Fin de registro. | F27: </T22003A11>
A28: Total: | C28: =B27+C27-1 -> 231

Sheet T22003B01
B1: Agencia Tributaria
A3: =+T22001000!A3 -> Modelo 220 | C3: =+T22001000!C3 -> Diseño de registro. 2019
A4: =+T22001000!A4 -> Versión 1.9 | C4: Impuesto Sobre Sociedades. Régimen de consolidación Fiscal. GRUPO DE ENTIDADES DE CRÉDITO. BALANCE CONSOLIDADO: PASIVO Y PATRIMONIO NETO (I)
A6: Nº | B6: Posic. | C6: Lon | D6: Tipo | E6: Descripción | F6: Contenido
A7: 1 | B7: 1 | C7: 2 | D7: An | E7: Inicio del identificador de modelo y página. | F7: <T
A8: =+A7+1 -> 2 | B8: =C7+B7 -> 3 | C8: 3 | D8: Num | E8: Modelo. | F8: 220
A9: 3 | B9: 6 | C9: 2 | D9: An | E9: Página. | F9: 03
A10: 4 | B10: 8 | C10: 1 | D10: An | E10: Letra | F10: B
A11: 5 | B11: 9 | C11: 2 | D11: Num | E11: Hoja | F11: 01
A12: 6 | B12: 11 | C12: 1 | D12: An | E12: Fin de identificador de modelo y página. Constante ">". | F12: >
A13: 7 | B13: 12 | C13: 1 | D13: An | E13: Indicador de página complementaria.
A14: =A13+1 -> 8 | B14: =B13+C13 -> 13 | C14: 3 | D14: Num | E14: Número de orden de la página complementaria
A15: 9 | B15: =B14+C14 -> 16 | C15: 17 | D15: N | E15: PASIVO. Pasivos financieros mantenidos para negociar. [00153]
A16: 10 | B16: 33 | C16: 17 | D16: N | E16: PASIVO. Derivados [00154]
A17: 11 | B17: 50 | C17: 17 | D17: N | E17: PASIVO. Posiciones cortas [00155]
A18: 12 | B18: 67 | C18: 17 | D18: N | E18: PASIVO. Depósitos. [00156]
A19: 13 | B19: 84 | C19: 17 | D19: N | E19: PASIVO. Depósitos. Bancos centrales. [00157]
A20: 14 | B20: 101 | C20: 17 | D20: N | E20: PASIVO. Depósitos. Entidades de crédito. [00158]
A21: 15 | B21: 118 | C21: 17 | D21: N | E21: PASIVO. Depósitos. Clientela. [00159]
A22: 16 | B22: 135 | C22: 17 | D22: N | E22: PASIVO. Valores representativos de deuda emitidos. [00160]
A23: 17 | B23: 152 | C23: 17 | D23: N | E23: PASIVO. Otros pasivos financieros. [00161]
A24: 18 | B24: 169 | C24: 17 | D24: N | E24: PASIVO. Pasivos financieros designados a valor razonable con cambios en resultados. [00162]
A25: 19 | B25: 186 | C25: 17 | D25: N | E25: PASIVO. Depósitos. [00163]
A26: 20 | B26: 203 | C26: 17 | D26: N | E26: PASIVO. Depósitos. Bancos centrales. [00164]
A27: 21 | B27: 220 | C27: 17 | D27: N | E27: PASIVO. Depósitos. Entidades de crédito. [00165]
A28: 22 | B28: 237 | C28: 17 | D28: N | E28: PASIVO. Depósitos. Clientela. [00166]
A29: 23 | B29: 254 | C29: 17 | D29: N | E29: PASIVO. Valores representativos de deuda emitidos. [00167]
A30: 24 | B30: 271 | C30: 17 | D30: N | E30: PASIVO. Otros pasivos financieros. [00168]
A31: 25 | B31: 288 | C31: 17 | D31: N | E31: PASIVO. Pro memoria: pasivos subordinados [00756]
A32: 26 | B32: 305 | C32: 17 | D32: N | E32: PASIVO. Pasivos financieros a coste amortizado. [00169]
A33: 27 | B33: 322 | C33: 17 | D33: N | E33: PASIVO. Depósitos. [00170]
A34: 28 | B34: 339 | C34: 17 | D34: N | E34: PASIVO. Depósitos. Bancos centrales. [00171]
A35: 29 | B35: 356 | C35: 17 | D35: N | E35: PASIVO. Depósitos. Entidades de crédito. [00172]
A36: 30 | B36: 373 | C36: 17 | D36: N | E36: PASIVO. Depósitos. Clientela. [00173]
A37: 31 | B37: 390 | C37: 17 | D37: N | E37: PASIVO. Valores representativos de deuda emitidos [00174]
A38: 32 | B38: 407 | C38: 17 | D38: N | E38: PASIVO. Otros pasivos financieros. [00175]
A39: 33 | B39: 424 | C39: 17 | D39: N | E39: PASIVO. Pro memoria: pasivos subordinados. [00757]
A40: 34 | B40: 441 | C40: 17 | D40: N | E40: PASIVO. Derivados - contabilidad de coberturas. [00176]
A41: 35 | B41: 458 | C41: 17 | D41: N | E41: PASIVO. Cambios del valor razonable de los elementos cubiertos de una cartera con cobertura del riesgo de tipo de interés. [00177]
A42: 36 | B42: 475 | C42: 17 | D42: N | E42: PASIVO. Pasivos amparados por contratos de seguro o reaseguro. [00178]
A43: 37 | B43: 492 | C43: 17 | D43: N | E43: PASIVO. Provisiones. [00179]
A44: 38 | B44: 509 | C44: 17 | D44: N | E44: PASIVO. Pensiones y otras obligaciones de prestaciones definidas post-empleo. [00180]
A45: 39 | B45: 526 | C45: 17 | D45: N | E45: PASIVO. Otras retribuciones a los empleados a largo plazo. [00181]
A46: 40 | B46: 543 | C46: 17 | D46: N | E46: PASIVO. Cuestiones procesales y litigios por impuestos pendientes. [00182]
A47: 41 | B47: 560 | C47: 17 | D47: N | E47: PASIVO. Compromisos y garantías concedidos. [00183]
A48: 42 | B48: 577 | C48: 17 | D48: N | E48: PASIVO. Restantes provisiones. [00184]
A49: 43 | B49: 594 | C49: 17 | D49: N | E49: PASIVO. Pasivos por impuestos. [00185]
A50: 44 | B50: 611 | C50: 17 | D50: N | E50: PASIVO. Pasivos por impuestos corrientes. [00186]
A51: 45 | B51: 628 | C51: 17 | D51: N | E51: PASIVO. Pasivos por impuestos diferidos. [00187]
A52: 46 | B52: 645 | C52: 17 | D52: N | E52: PASIVO. Capital social reembolsable a la vista. [00188]
A53: 47 | B53: 662 | C53: 17 | D53: N | E53: PASIVO. Otros pasivos. [00189]
A54: 48 | B54: 679 | C54: 17 | D54: N | E54: PASIVO. De los cuales: fondo de la obra social (solo cajas de ahorros y cooperativas de crédito). [00190]
A55: 49 | B55: 696 | C55: 17 | D55: N | E55: PASIVO. Pasivos incluidos en grupos enajenables de elementos que se han clasificado como mantenidos para la venta. [00191]
A56: 50 | B56: 713 | C56: 17 | D56: N | E56: PASIVO. Total pasivo. [00192]
A57: 51 | B57: 730 | C57: 12 | D57: An | E57: Fin de registro. | F57: </T22003B01>
A58: Total: | C58: =B57+C57-1 -> 741

Sheet T22003C01
B1: Agencia Tributaria
A3: =+T22001000!A3 -> Modelo 220 | C3: =+T22001000!C3 -> Diseño de registro. 2019
A4: =+T22001000!A4 -> Versión 1.9 | C4: Impuesto Sobre Sociedades. Régimen de consolidación Fiscal. GRUPO DE ENTIDADES DE CRÉDITO. BALANCE CONSOLIDADO: PASIVO Y PATRIMONIO NETO (II)
A6: Nº | B6: Posic. | C6: Lon | D6: Tipo | E6: Descripción | F6: Contenido
A7: 1 | B7: 1 | C7: 2 | D7: An | E7: Inicio del identificador de modelo y página. | F7: <T
A8: =+A7+1 -> 2 | B8: =C7+B7 -> 3 | C8: 3 | D8: Num | E8: Modelo. | F8: 220
A9: 3 | B9: 6 | C9: 2 | D9: An | E9: Página. | F9: 03
A10: 4 | B10: 8 | C10: 1 | D10: An | E10: Letra | F10: C
A11: 5 | B11: 9 | C11: 2 | D11: Num | E11: Hoja | F11: 01
A12: 6 | B12: 11 | C12: 1 | D12: An | E12: Fin de identificador de modelo y página. Constante ">". | F12: >
A13: 7 | B13: 12 | C13: 1 | D13: An | E13: Indicador de página complementaria.
A14: 8 | B14: 13 | C14: 3 | D14: Num | E14: Número de orden de la página complementaria
A15: 9 | B15: 16 | C15: 17 | D15: N | E15: Patrimonio neto. Fondos propios [00193]
A16: 10 | B16: 33 | C16: 17 | D16: N | E16: Patrimonio neto. Capital. [00194]
A17: 11 | B17: 50 | C17: 17 | D17: N | E17: Patrimonio neto. Capital. Capital desembolsado. [00195]
A18: 12 | B18: 67 | C18: 17 | D18: N | E18: Patrimonio neto. Capital. Capital no desembolsado exigido. [00196]
A19: 13 | B19: 84 | C19: 17 | D19: N | E19: Patrimonio neto. Pro memoria: capital no exigido [00758]
A20: 14 | B20: 101 | C20: 17 | D20: N | E20: Patrimonio neto. Prima de emisión. [00197]
A21: 15 | B21: 118 | C21: 17 | D21: N | E21: Patrimonio neto. Instrumentos de patrimonio emitidos distintos del capital. [00198]
A22: 16 | B22: 135 | C22: 17 | D22: N | E22: Patrimonio neto. Componente de patrimonio neto de los instrumentos financieros compuestos. [00199]
A23: 17 | B23: 152 | C23: 17 | D23: N | E23: Patrimonio neto. Otros instrumentos de patrimonio emitidos. [00200]
A24: 18 | B24: 169 | C24: 17 | D24: N | E24: Patrimonio neto. Otros elementos de patrimonio neto. [00201]
A25: 19 | B25: 186 | C25: 17 | D25: N | E25: Patrimonio neto. Ganancias acumuladas [00202]
A26: 20 | B26: 203 | C26: 17 | D26: N | E26: Patrimonio neto. Reservas de revalorización [00203]
A27: 21 | B27: 220 | C27: 17 | D27: N | E27: Patrimonio neto. Otras reservas. [00204]
A28: 22 | B28: 237 | C28: 17 | D28: N | E28: Patrimonio neto. Reserva de capitalización. [00762]
A29: 23 | B29: 254 | C29: 17 | D29: N | E29: Patrimonio neto. Reserva de nivelación. [00763]
A30: 24 | B30: 271 | C30: 17 | D30: N | E30: Patrimonio neto. Reservas o pérdidas acumuladas de inversiones en negocios conjuntos y asociadas. [00205]
A31: 25 | B31: 288 | C31: 17 | D31: N | E31: Patrimonio neto. Otras. [00206]
A32: 26 | B32: 305 | C32: 17 | D32: N | E32: Patrimonio neto. (-) Acciones propias. [00207]
A33: 27 | B33: 322 | C33: 17 | D33: N | E33: Patrimonio neto. Resultado atribuible a los propietarios de la dominante. [00208]
A34: 28 | B34: 339 | C34: 17 | D34: N | E34: Patrimonio neto. (-) Dividendos a cuenta. [00209]
A35: 29 | B35: 356 | C35: 17 | D35: N | E35: Patrimonio neto. Otro resultado global acumulado. [00210]
A36: 30 | B36: 373 | C36: 17 | D36: N | E36: Patrimonio neto. Elementos que no se reclasificarán en resultados. [00211]
A37: 31 | B37: 390 | C37: 17 | D37: N | E37: Patrimonio neto. Ganancias o (-) pérdidas actuariales en planes de pensiones de prestaciones definidas. [00212]
A38: 32 | B38: 407 | C38: 17 | D38: N | E38: Patrimonio neto. Activos no corrientes y grupos enajenables de elementos que se han clasificado como mantenidos para la venta. [00213]
A39: 33 | B39: 424 | C39: 17 | D39: N | E39: Patrimonio neto. Participación en otros ingresos y gastos reconocidos de inversiones en negocios conjuntos y asociadas. [00660]
A40: 34 | B40: 441 | C40: 17 | D40: N | E40: Patrimonio neto. Cambios del valor razonable de los instrumentos de patrimonio valorados a valor razonable con cambios en otro resultado global. [0638]
A41: 35 | B41: 458 | C41: 17 | D41: N | E41: Patrimonio neto. Ineficacia de las coberturas de valor razonable de los instrumentos de patrimonio valorados a valor razonable con cambios en otro resultado global. [0639]
A42: 36 | B42: 475 | C42: 17 | D42: N | E42: Patrimonio neto. Cambios del valor razonable de los instrumentos de patrimonio valorados a valor razonable con cambios en otro resultado global [elemento cubierto]. [0640]
A43: 37 | B43: 492 | C43: 17 | D43: N | E43: Patrimonio neto. Cambios del valor razonable de los instrumentos de patrimonio valorados a valor razonable con cambios en otro resultado global [instrumento de cobertura]. [0641]
A44: 38 | B44: 509 | C44: 17 | D44: N | E44: Patrimonio neto. Cambios del valor razonable de los pasivos financieros a valor razonable con cambios en resultados atribuibles a cambios en el riesgo de crédito. [0642]
A45: 39 | B45: 526 | C45: 17 | D45: N | E45: Patrimonio neto. Elementos que pueden reclasificarse en resultados. [00216]
A46: 40 | B46: 543 | C46: 17 | D46: N | E46: Patrimonio neto. Cobertura de inversiones netas en negocios en el extranjero [parte efectiva]. [00217]
A47: 41 | B47: 560 | C47: 17 | D47: N | E47: Patrimonio neto. Conversión de divisas. [00218]
A48: 42 | B48: 577 | C48: 17 | D48: N | E48: Patrimonio neto. Derivados de cobertura. Reserva de coberturas de flujos de efectivo [parte efectiva]. [00219]
A49: 43 | B49: 594 | C49: 17 | D49: N | E49: Patrimonio neto. Cambios del valor razonable de los instrumentos de deuda a valor razonable con cambios en otro resultado global. [00643]
A50: 44 | B50: 611 | C50: 17 | D50: N | E50: Patrimonio neto. Instrumentos de cobertura [elementos no designados]. [00644]
A51: 45 | B51: 628 | C51: 17 | D51: N | E51: Patrimonio neto. Activos no corrientes y grupos enajenables de elementos que se han clasificado como mantenidos para la venta. [00223]
A52: 46 | B52: 645 | C52: 17 | D52: N | E52: Patrimonio neto. Participación en otros ingresos y gastos reconocidos de inversiones en negocios conjuntos y asociadas. [00224]
A53: 47 | B53: 662 | C53: 17 | D53: N | E53: Patrimonio neto. Intereses minoritarios [participaciones no dominantes]. [00225]
A54: 48 | B54: 679 | C54: 17 | D54: N | E54: Patrimonio neto. Otro resultado global acumulado. [00226]
A55: 49 | B55: 696 | C55: 17 | D55: N | E55: Patrimonio neto. Otros elementos. [00227]
A56: 50 | B56: 713 | C56: 17 | D56: N | E56: Patrimonio neto. Total patrimonio neto. [00228]
A57: 51 | B57: 730 | C57: 17 | D57: N | E57: Patrimonio neto. Total patrimonio neto y pasivo. [00229]
A58: 52 | B58: 747 | C58: 17 | D58: N | E58: Patrimonio neto. Pro memoria: exposiciones fuera de balance. [00759]
A59: 53 | B59: 764 | C59: 17 | D59: N | E59: Patrimonio neto. Compromisos de préstamo concedidos. [00760]
A60: 54 | B60: 781 | C60: 17 | D60: N | E60: Patrimonio neto. Garantías financieras concedidas. [00761]
A61: 55 | B61: 798 | C61: 17 | D61: N | E61: Patrimonio neto. Otros compromisos concedidos. [00645]
A62: 56 | B62: 815 | C62: 12 | D62: An | E62: Fin de registro. | F62: </T22003C01>
A63: Total: | C63: =B62+C62-1 -> 826

Sheet T22004001
B1: Agencia Tributaria
A3: =+T22001000!A3 -> Modelo 220 | C3: =+T22001000!C3 -> Diseño de registro. 2019
A4: =+T22001000!A4 -> Versión 1.9 | C4: Impuesto Sobre Sociedades. Régimen de consolidación Fiscal. GRUPO DE ENTIDADES DE CRÉDITO. CUENTA DE PÉRDIDAS Y GANANCIAS CONSOLIDADA
A6: Nº | B6: Posic. | C6: Lon | D6: Tipo | E6: Descripción | F6: Contenido
A7: 1 | B7: 1 | C7: 2 | D7: An | E7: Inicio del identificador de modelo y página. | F7: <T
A8: =+A7+1 -> 2 | B8: =C7+B7 -> 3 | C8: 3 | D8: Num | E8: Modelo. | F8: 220
A9: 3 | B9: 6 | C9: 2 | D9: An | E9: Página. | F9: 04
A10: 4 | B10: 8 | C10: 1 | D10: An | E10: Letra | F10: 0
A11: 5 | B11: 9 | C11: 2 | D11: Num | E11: Hoja | F11: 01
A12: 6 | B12: 11 | C12: 1 | D12: An | E12: Fin de identificador de modelo y página. Constante ">". | F12: >
A13: 7 | B13: 12 | C13: 1 | D13: An | E13: Indicador de página complementaria.
A14: =A13+1 -> 8 | B14: =B13+C13 -> 13 | C14: 3 | D14: Num | E14: Número de orden de la página complementaria
A15: 9 | B15: 16 | C15: 17 | D15: N | E15: CUENTA DE PÉRDIDAS Y GANANCIAS CONSOLIDADA. Ingresos por intereses. [00230]
A16: 10 | B16: 33 | C16: 17 | D16: N | E16: CUENTA DE PÉRDIDAS Y GANANCIAS CONSOLIDADA. (Gastos por intereses). [00231]
A17: 11 | B17: 50 | C17: 17 | D17: N | E17: CUENTA DE PÉRDIDAS Y GANANCIAS CONSOLIDADA. (Gastos por capital social reembolsable a la vista). [00232]
A18: 12 | B18: 67 | C18: 17 | D18: N | E18: CUENTA DE PÉRDIDAS Y GANANCIAS CONSOLIDADA. A) MARGEN DE INTERESES. [00233]
A19: 13 | B19: 84 | C19: 17 | D19: N | E19: CUENTA DE PÉRDIDAS Y GANANCIAS CONSOLIDADA. Ingresos por dividendos. [00234]
A20: 14 | B20: 101 | C20: 17 | D20: N | E20: CUENTA DE PÉRDIDAS Y GANANCIAS CONSOLIDADA. Resultados de entidades valoradas por el método de la participación [00235]
A21: 15 | B21: 118 | C21: 17 | D21: N | E21: CUENTA DE PÉRDIDAS Y GANANCIAS CONSOLIDADA. Ingresos por comisiones. [00236]
A22: 16 | B22: 135 | C22: 17 | D22: N | E22: CUENTA DE PÉRDIDAS Y GANANCIAS CONSOLIDADA. (Gastos por comisiones) [00237]
A23: 17 | B23: 152 | C23: 17 | D23: N | E23: CUENTA DE PÉRDIDAS Y GANANCIAS CONSOLIDADA. Ganancias o (-) pérdidas al dar de baja en cuentas activos y pasivos financieros no valorados a valor razonable con cambios en resultados, netas. [00238]
A24: 18 | B24: 169 | C24: 17 | D24: N | E24: CUENTA DE PÉRDIDAS Y GANANCIAS CONSOLIDADA. Ganancias o (-) pérdidas por activos y pasivos financieros mantenidos para negociar, netas. [00239]
A25: 19 | B25: 186 | C25: 17 | D25: N | E25: CUENTA DE PÉRDIDAS Y GANANCIAS CONSOLIDADA. Ganacias o (-) pérdidas por activos financieros no destinados a negociación valorados obligatoriamente a valor razonable con cambios en resultados, netas. [00646]
A26: 20 | B26: 203 | C26: 17 | D26: N | E26: CUENTA DE PÉRDIDAS Y GANANCIAS CONSOLIDADA. Ganancias o (-) pérdidas por activos y pasivos financieros designados a valor razonable con cambios en resultados, netas. [00240]
A27: 21 | B27: 220 | C27: 17 | D27: N | E27: CUENTA DE PÉRDIDAS Y GANANCIAS CONSOLIDADA. Ganancias o (-) pérdidas resultantes de la contabilidad de coberturas, netas. [00241]
A28: 22 | B28: 237 | C28: 17 | D28: N | E28: CUENTA DE PÉRDIDAS Y GANANCIAS CONSOLIDADA. Diferencias de cambio [ganancia o (-) pérdida], netas [00242]
A29: 23 | B29: 254 | C29: 17 | D29: N | E29: CUENTA DE PÉRDIDAS Y GANANCIAS CONSOLIDADA. Otros ingresos de explotación. [00243]
A30: 24 | B30: 271 | C30: 17 | D30: N | E30: CUENTA DE PÉRDIDAS Y GANANCIAS CONSOLIDADA. (Otros gastos de explotación). [00244]
A31: 25 | B31: 288 | C31: 17 | D31: N | E31: CUENTA DE PÉRDIDAS Y GANANCIAS CONSOLIDADA. De los cuales: dotaciones obligatorias a fondos de la obra social (solo cajas de ahorros y cooperativas de crédito). [00245]
A32: 26 | B32: 305 | C32: 17 | D32: N | E32: CUENTA DE PÉRDIDAS Y GANANCIAS CONSOLIDADA. Ingresos de activos amparados por contratos de seguro o reaseguro. [00246]
A33: 27 | B33: 322 | C33: 17 | D33: N | E33: CUENTA DE PÉRDIDAS Y GANANCIAS CONSOLIDADA. (Gastos de pasivos amparados por contratos de seguro o reaseguro). [00247]
A34: 28 | B34: 339 | C34: 17 | D34: N | E34: CUENTA DE PÉRDIDAS Y GANANCIAS CONSOLIDADA. B) MARGEN BRUTO. [00248]
A35: 29 | B35: 356 | C35: 17 | D35: N | E35: CUENTA DE PÉRDIDAS Y GANANCIAS CONSOLIDADA. (Gastos de administración). [00249]
A36: 30 | B36: 373 | C36: 17 | D36: N | E36: CUENTA DE PÉRDIDAS Y GANANCIAS CONSOLIDADA. (Gastos de personal). [00250]
A37: 31 | B37: 390 | C37: 17 | D37: N | E37: CUENTA DE PÉRDIDAS Y GANANCIAS CONSOLIDADA. (Otros gastos de administración). [00251]
A38: 32 | B38: 407 | C38: 17 | D38: N | E38: CUENTA DE PÉRDIDAS Y GANANCIAS CONSOLIDADA. (Amortización). [00252]
A39: 33 | B39: 424 | C39: 17 | D39: N | E39: CUENTA DE PÉRDIDAS Y GANANCIAS CONSOLIDADA. (Provisiones o (-) reversión de provisiones). [00253]
A40: 34 | B40: 441 | C40: 17 | D40: N | E40: CUENTA DE PÉRDIDAS Y GANANCIAS CONSOLIDADA. (Deterioro del valor o (-) reversión del deterioro del valor de activos financieros no valorados a valor razonable con cambios en resultados y pérdidas o (-) ganancias netas por modificación). [00254]
A41: 35 | B41: 458 | C41: 17 | D41: N | E41: CUENTA DE PÉRDIDAS Y GANANCIAS CONSOLIDADA. (Activos financieros a valor razonable con cambios en otro resultado global). [00255]
A42: 36 | B42: 475 | C42: 17 | D42: N | E42: CUENTA DE PÉRDIDAS Y GANANCIAS CONSOLIDADA. (Activos financieros a coste amortizado). [00256]
A43: 37 | B43: 492 | C43: 17 | D43: N | E43: CUENTA DE PÉRDIDAS Y GANANCIAS CONSOLIDADA. (Deterioro del valor o (-) reversión del deterioro del valor de inversiones en negocios conjuntos o asociadas). [00260]
A44: 38 | B44: 509 | C44: 17 | D44: N | E44: CUENTA DE PÉRDIDAS Y GANANCIAS CONSOLIDADA. (Deterioro del valor o (-) reversión del deterioro del valor de activos no financieros). [00261]
A45: 39 | B45: 526 | C45: 17 | D45: N | E45: CUENTA DE PÉRDIDAS Y GANANCIAS CONSOLIDADA. (Activos tangibles). [00262]
A46: 40 | B46: 543 | C46: 17 | D46: N | E46: CUENTA DE PÉRDIDAS Y GANANCIAS CONSOLIDADA. (Activos intangibles). [00263]
A47: 41 | B47: 560 | C47: 17 | D47: N | E47: CUENTA DE PÉRDIDAS Y GANANCIAS CONSOLIDADA. (Otros). [00264]
A48: 42 | B48: 577 | C48: 17 | D48: N | E48: CUENTA DE PÉRDIDAS Y GANANCIAS CONSOLIDADA. Ganancias o (-) pérdidas al dar de baja en cuentas activos no financieros y participaciones, netas. [00265]
A49: 43 | B49: 594 | C49: 17 | D49: N | E49: CUENTA DE PÉRDIDAS Y GANANCIAS CONSOLIDADA. Fondo de comercio negativo reconocido en resultados. [00267]
A50: 44 | B50: 611 | C50: 17 | D50: N | E50: CUENTA DE PÉRDIDAS Y GANANCIAS CONSOLIDADA. Ganancias o (-) pérdidas procedentes de activos no corrientes y grupos enajenables de elementos clasificados como mantenidos para la venta no admisibles como actividades interrumpidas. [00268]
A51: 45 | B51: 628 | C51: 17 | D51: N | E51: CUENTA DE PÉRDIDAS Y GANANCIAS CONSOLIDADA. C) GANANCIAS O (-) PÉRDIDAS ANTES DE IMPUESTOS PROCEDENTES DE LAS ACTIVIDADES CONTINUADAS. [00269]
A52: 46 | B52: 645 | C52: 17 | D52: N | E52: CUENTA DE PÉRDIDAS Y GANANCIAS CONSOLIDADA. (Gastos o (-) ingresos por impuestos sobre las resultados de las actividades continuadas). [00270]
A53: 47 | B53: 662 | C53: 17 | D53: N | E53: CUENTA DE PÉRDIDAS Y GANANCIAS CONSOLIDADA. D) GANANCIAS O (-) PÉRDIDAS DESPUÉS DE IMPUESTOS PROCEDENTES DE LAS ACTIVIDADES CONTINUADAS. [00271]
A54: 48 | B54: 679 | C54: 17 | D54: N | E54: CUENTA DE PÉRDIDAS Y GANANCIAS CONSOLIDADA. Ganancias o (-) pérdidas después de impuestos procedentes de actividades interrumpidas. [00272]
A55: 49 | B55: 696 | C55: 17 | D55: N | E55: CUENTA DE PÉRDIDAS Y GANANCIAS CONSOLIDADA.RESULTADO CONSOLIDADO DEL EJERCICIO. E) RESULTADO CONSOLIDADO DEL EJERCICIO. [00500]
A56: 50 | B56: 713 | C56: 17 | D56: N | E56: CUENTA DE PÉRDIDAS Y GANANCIAS CONSOLIDADA. Atribuible a intereses minoritarios (participaciones no dominantes). [00514]
A57: 51 | B57: 730 | C57: 17 | D57: N | E57: CUENTA DE PÉRDIDAS Y GANANCIAS CONSOLIDADA. Atribuible a los propietarios de la dominante. [00515]
A58: 52 | B58: 747 | C58: 12 | D58: An | E58: Fin de registro. | F58: </T22004001>
A59: Total: | C59: =B58+C58-1 -> 758

Sheet T22005A01
B1: Agencia Tributaria
A3: =+T22001000!A3 -> Modelo 220 | C3: =+T22001000!C3 -> Diseño de registro. 2019
A4: =+T22001000!A4 -> Versión 1.9 | C4: Impuesto Sobre Sociedades. Régimen de consolidación Fiscal. GRUPO DE ENTIDADES DE CRÉDITO. ESTADO DE CAMBIOS EN EL PATRIMONIO NETO: ESTADO DE INGRESOS Y GASTOS RECONOCIDOS CONSOLIDADO.
A6: Nº | B6: Posic. | C6: Lon | D6: Tipo | E6: Descripción | F6: Contenido
A7: 1 | B7: 1 | C7: 2 | D7: An | E7: Inicio del identificador de modelo y página. | F7: <T
A8: =+A7+1 -> 2 | B8: =C7+B7 -> 3 | C8: 3 | D8: Num | E8: Modelo. | F8: 220
A9: 3 | B9: 6 | C9: 2 | D9: An | E9: Página. | F9: 05
A10: 4 | B10: 8 | C10: 1 | D10: An | E10: Letra | F10: A
A11: 5 | B11: 9 | C11: 2 | D11: Num | E11: Hoja | F11: 01
A12: 6 | B12: 11 | C12: 1 | D12: An | E12: Fin de identificador de modelo y página. Constante ">". | F12: >
A13: 7 | B13: 12 | C13: 1 | D13: An | E13: Indicador de página complementaria.
A14: =A13+1 -> 8 | B14: 13 | C14: 3 | D14: Num | E14: Número de orden de la página complementaria
A15: 9 | B15: 16 | C15: 17 | D15: N | E15: ESTADO DE INGRESOS Y GASTOS RECONOCIDOS CONSOLIDADO EN EL EJERCICIO. Resultado consolidado del ejercicio [00500]
A16: 10 | B16: 33 | C16: 17 | D16: N | E16: ESTADO DE INGRESOS Y GASTOS RECONOCIDOS CONSOLIDADO EN EL EJERCICIO. Otro resultado global. [00273]
A17: 11 | B17: 50 | C17: 17 | D17: N | E17: ESTADO DE INGRESOS Y GASTOS RECONOCIDOS CONSOLIDADO EN EL EJERCICIO. Elementos que no se reclasificarán en resultados. [00274]
A18: 12 | B18: 67 | C18: 17 | D18: N | E18: ESTADO DE INGRESOS Y GASTOS RECONOCIDOS CONSOLIDADO EN EL EJERCICIO. Ganancias o (-) pérdidas actuariales en planes de pensiones de prestaciones definidas. [00275]
A19: 13 | B19: 84 | C19: 17 | D19: N | E19: ESTADO DE INGRESOS Y GASTOS RECONOCIDOS CONSOLIDADO EN EL EJERCICIO. Activos no corrientes y grupos enajenables de elementos mantenidos para la venta. [00276]
A20: 14 | B20: 101 | C20: 17 | D20: N | E20: ESTADO DE INGRESOS Y GASTOS RECONOCIDOS CONSOLIDADO EN EL EJERCICIO. Participación en otros ingresos y gastos reconocidos de inversiones en negocios conjuntos y asociadas. [00277]
A21: 15 | B21: 118 | C21: 17 | D21: N | E21: ESTADO DE INGRESOS Y GASTOS RECONOCIDOS CONSOLIDADO EN EL EJERCICIO. Cambios del valor razonable de los instrumentos de patrimonio calorados a valor razonable con cambios en otro resultado global. [00647]
A22: 16 | B22: 135 | C22: 17 | D22: N | E22: ESTADO DE INGRESOS Y GASTOS RECONOCIDOS CONSOLIDADO EN EL EJERCICIO. Ganancias o (-) pérdidas resultantes de la contabilidad de coberturas de instrumentos de patrimonio valorados a valor razonable con cambios en otro resultado global, netas. [00648]
A23: 17 | B23: 152 | C23: 17 | D23: N | E23: ESTADO DE INGRESOS Y GASTOS RECONOCIDOS CONSOLIDADO EN EL EJERCICIO. Cambios del valor razonable de los instrumentos de patrimonio valorados a valor razonable con cambios en otro resultado global (elemento cubierto) [00649]
A24: 18 | B24: 169 | C24: 17 | D24: N | E24: ESTADO DE INGRESOS Y GASTOS RECONOCIDOS CONSOLIDADO EN EL EJERCICIO. Cambios del valor razonable de los instrumentos de patrimonio valorados a valor razonable con cambios en otro resultado global (instrumento de cobertura) [00650]
A25: 19 | B25: 186 | C25: 17 | D25: N | E25: ESTADO DE INGRESOS Y GASTOS RECONOCIDOS CONSOLIDADO EN EL EJERCICIO. Cambios del valor razonable de los pasivos financieros a valor razonable con cambios en resultados atribuibles a cambios en el riesgo de crédito. [00651]
A26: 20 | B26: 203 | C26: 17 | D26: N | E26: ESTADO DE INGRESOS Y GASTOS RECONOCIDOS CONSOLIDADO EN EL EJERCICIO. Impuesto sobre las ganancias relativo a los elementos que no se reclasificarán. [00279]
A27: 21 | B27: 220 | C27: 17 | D27: N | E27: ESTADO DE INGRESOS Y GASTOS RECONOCIDOS CONSOLIDADO EN EL EJERCICIO. Elementos que pueden reclasificarse en resultados. [00280]
A28: 22 | B28: 237 | C28: 17 | D28: N | E28: ESTADO DE INGRESOS Y GASTOS RECONOCIDOS CONSOLIDADO EN EL EJERCICIO. Cobertura de inversiones netas en negocios en el extranjero [parte eficaz]. [00281]
A29: 23 | B29: 254 | C29: 17 | D29: N | E29: ESTADO DE INGRESOS Y GASTOS RECONOCIDOS CONSOLIDADO EN EL EJERCICIO. Ganancias o (-) pérdidas de valor contabilizadas en el patrimonio neto. [00282]
A30: 24 | B30: 271 | C30: 17 | D30: N | E30: ESTADO DE INGRESOS Y GASTOS RECONOCIDOS CONSOLIDADO EN EL EJERCICIO. Transferido a resultados. [00283]
A31: 25 | B31: 288 | C31: 17 | D31: N | E31: ESTADO DE INGRESOS Y GASTOS RECONOCIDOS CONSOLIDADO EN EL EJERCICIO. Otras reclasificaciones. [00284]
A32: 26 | B32: 305 | C32: 17 | D32: N | E32: ESTADO DE INGRESOS Y GASTOS RECONOCIDOS CONSOLIDADO EN EL EJERCICIO. Conversión de divisas. [00285]
A33: 27 | B33: 322 | C33: 17 | D33: N | E33: ESTADO DE INGRESOS Y GASTOS RECONOCIDOS CONSOLIDADO EN EL EJERCICIO. Ganancias o (-) pérdidas por cambio de divisas contabilizadas en el patrimonio neto. [00286]
A34: 28 | B34: 339 | C34: 17 | D34: N | E34: ESTADO DE INGRESOS Y GASTOS RECONOCIDOS CONSOLIDADO EN EL EJERCICIO. Transferido a resultados. [00287]
A35: 29 | B35: 356 | C35: 17 | D35: N | E35: ESTADO DE INGRESOS Y GASTOS RECONOCIDOS CONSOLIDADO EN EL EJERCICIO. Otras reclasificaciones. [00288]
A36: 30 | B36: 373 | C36: 17 | D36: N | E36: ESTADO DE INGRESOS Y GASTOS RECONOCIDOS CONSOLIDADO EN EL EJERCICIO. Coberturas de flujos de efectivo [parte eficaz]. [00289]
A37: 31 | B37: 390 | C37: 17 | D37: N | E37: ESTADO DE INGRESOS Y GASTOS RECONOCIDOS CONSOLIDADO EN EL EJERCICIO. Ganancias o (-) pérdidas de valor contabilizadas en el patrimonio neto. [00290]
A38: 32 | B38: 407 | C38: 17 | D38: N | E38: ESTADO DE INGRESOS Y GASTOS RECONOCIDOS CONSOLIDADO EN EL EJERCICIO. Transferido a resultados. [00291]
A39: 33 | B39: 424 | C39: 17 | D39: N | E39: ESTADO DE INGRESOS Y GASTOS RECONOCIDOS CONSOLIDADO EN EL EJERCICIO. Transferido al importe en libros inicial de los elementos cubiertos. [00292]
A40: 34 | B40: 441 | C40: 17 | D40: N | E40: ESTADO DE INGRESOS Y GASTOS RECONOCIDOS CONSOLIDADO EN EL EJERCICIO. Otras reclasificaciones. [00293]
A41: 35 | B41: 458 | C41: 17 | D41: N | E41: ESTADO DE INGRESOS Y GASTOS RECONOCIDOS CONSOLIDADO EN EL EJERCICIO. Instrumentos de cobertura [elementos no designados]. [00652]
A42: 36 | B42: 475 | C42: 17 | D42: N | E42: ESTADO DE INGRESOS Y GASTOS RECONOCIDOS CONSOLIDADO EN EL EJERCICIO. Ganancias o (-) pérdidas de valor contabilizadas en el patrimonio neto. [00653]
A43: 37 | B43: 492 | C43: 17 | D43: N | E43: ESTADO DE INGRESOS Y GASTOS RECONOCIDOS CONSOLIDADO EN EL EJERCICIO. Transferido a resultados. [00654]
A44: 38 | B44: 509 | C44: 17 | D44: N | E44: ESTADO DE INGRESOS Y GASTOS RECONOCIDOS CONSOLIDADO EN EL EJERCICIO. Otras reclasificaciones. [00655]
A45: 39 | B45: 526 | C45: 17 | D45: N | E45: ESTADO DE INGRESOS Y GASTOS RECONOCIDOS CONSOLIDADO EN EL EJERCICIO. Instrumentos de deuda a valor razonable con cambios en otro resultado global. [00656]
A46: 40 | B46: 543 | C46: 17 | D46: N | E46: ESTADO DE INGRESOS Y GASTOS RECONOCIDOS CONSOLIDADO EN EL EJERCICIO. Ganancias o (-) pérdidas de valor contabilizadas en el patrimonio neto. [00657]
A47: 41 | B47: 560 | C47: 17 | D47: N | E47: ESTADO DE INGRESOS Y GASTOS RECONOCIDOS CONSOLIDADO EN EL EJERCICIO. Transferido a resultados. [00658]
A48: 42 | B48: 577 | C48: 17 | D48: N | E48: ESTADO DE INGRESOS Y GASTOS RECONOCIDOS CONSOLIDADO EN EL EJERCICIO. Otras reclasificaciones. [00659]
A49: 43 | B49: 594 | C49: 17 | D49: N | E49: ESTADO DE INGRESOS Y GASTOS RECONOCIDOS CONSOLIDADO EN EL EJERCICIO. Activos no corrientes y grupos enajenables de elementos mantenidos para la venta. [00298]
A50: 44 | B50: 611 | C50: 17 | D50: N | E50: ESTADO DE INGRESOS Y GASTOS RECONOCIDOS CONSOLIDADO EN EL EJERCICIO. Ganancias o (-) pérdidas de valor contabilizadas en el patrimonio neto. [00299]
A51: 45 | B51: 628 | C51: 17 | D51: N | E51: ESTADO DE INGRESOS Y GASTOS RECONOCIDOS CONSOLIDADO EN EL EJERCICIO. Transferido a resultados. [00300]
A52: 46 | B52: 645 | C52: 17 | D52: N | E52: ESTADO DE INGRESOS Y GASTOS RECONOCIDOS CONSOLIDADO EN EL EJERCICIO. Otras reclasificaciones. [00301]
A53: 47 | B53: 662 | C53: 17 | D53: N | E53: ESTADO DE INGRESOS Y GASTOS RECONOCIDOS CONSOLIDADO EN EL EJERCICIO. Participación en otros ingresos y gastos reconocidos de las inversiones en negocios conjuntos y asociadas. [00306]
A54: 48 | B54: 679 | C54: 17 | D54: N | E54: ESTADO DE INGRESOS Y GASTOS RECONOCIDOS CONSOLIDADO EN EL EJERCICIO. Impuesto sobre las ganancias relativo a los elementos que pueden reclasificarse en ganancias o (-) perdidas. [00302]
A55: 49 | B55: 696 | C55: 17 | D55: N | E55: ESTADO DE INGRESOS Y GASTOS RECONOCIDOS CONSOLIDADO EN EL EJERCICIO. Resultado global total del ejercicio. [00303]
A56: 50 | B56: 713 | C56: 17 | D56: N | E56: ESTADO DE INGRESOS Y GASTOS RECONOCIDOS CONSOLIDADO EN EL EJERCICIO. Atribuible a intereses minoritarios (participaciones no dominantes). [00304]
A57: 51 | B57: 730 | C57: 17 | D57: N | E57: ESTADO DE INGRESOS Y GASTOS RECONOCIDOS CONSOLIDADO EN EL EJERCICIO. Atribuible a los propietarios de la dominante. [00305]
A58: 52 | B58: 747 | C58: 12 | D58: An | E58: Fin de registro. | F58: </T22005A01>
A59: Total: | C59: =B58+C58-1 -> 758

Sheet T22005B01
B1: Agencia Tributaria
A3: =+T22001000!A3 -> Modelo 220 | C3: =+T22001000!C3 -> Diseño de registro. 2019
A4: =+T22001000!A4 -> Versión 1.9 | C4: Impuesto Sobre Sociedades. Régimen de consolidación Fiscal. GRUPO DE ENTIDADES DE CRÉDITO. ESTADO DE CAMBIOS EN EL PATRIMONIO NETO: ESTADO TOTAL DE CAMBIOS EN EL PATRIMONIO NETO CONSOLIDADO (I)
A6: Nº | B6: Posic. | C6: Lon | D6: Tipo | E6: Descripción | F6: Contenido
A7: 1 | B7: 1 | C7: 2 | D7: An | E7: Inicio del identificador de modelo y página. | F7: <T
A8: =+A7+1 -> 2 | B8: =C7+B7 -> 3 | C8: 3 | D8: Num | E8: Modelo. | F8: 220
A9: 3 | B9: 6 | C9: 2 | D9: An | E9: Página. | F9: 05
A10: 4 | B10: 8 | C10: 1 | D10: An | E10: Letra | F10: B
A11: 5 | B11: 9 | C11: 2 | D11: Num | E11: Hoja | F11: 01
A12: 6 | B12: 11 | C12: 1 | D12: An | E12: Fin de identificador de modelo y página. Constante ">". | F12: >
A13: 7 | B13: 12 | C13: 1 | D13: An | E13: Indicador de página complementaria.
A14: =A13+1 -> 8 | B14: =B13+C13 -> 13 | C14: 3 | D14: Num | E14: Número de orden de la página complementaria
A15: =A14+1 -> 9 | B15: =B14+C14 -> 16 | C15: 17 | D15: N | E15: Estado total de cambios en el patrimonio neto. Capital. Saldo de apertura [antes de la reexpresión]. [00701]
A16: 10 | B16: 33 | C16: 17 | D16: N | E16: Estado total de cambios en el patrimonio neto. Prima de emisión. Saldo de apertura [antes de la reexpresión]. [00702]
A17: 11 | B17: 50 | C17: 17 | D17: N | E17: Estado total de cambios en el patrimonio neto. Instrumentos patrimonio emitidos distintos del capital. Saldo de apertura [antes de la reexpresión]. [00703]
A18: 12 | B18: 67 | C18: 17 | D18: N | E18: Estado total de cambios en el patrimonio neto. Otros elementos del patrimonio neto. Saldo de apertura [antes de la reexpresión]. [00704]
A19: 13 | B19: 84 | C19: 17 | D19: N | E19: Estado total de cambios en el patrimonio neto. Ganancias acumuladas. Saldo de apertura [antes de la reexpresión]. [00705]
A20: 14 | B20: 101 | C20: 17 | D20: N | E20: Estado total de cambios en el patrimonio neto. Reservas de revalorización. Saldo de apertura [antes de la reexpresión]. [00706]
A21: 15 | B21: 118 | C21: 17 | D21: N | E21: Estado total de cambios en el patrimonio neto. Ajustes por cambio de criterio de ejercicios anteriores. Otras reservas. Saldo de apertura [antes de la reexpresión]. [00707]
A22: =A21+1 -> 16 | B22: =B21+C21 -> 135 | C22: 17 | D22: N | E22: Estado total de cambios en el patrimonio neto. Capital. Efectos de la corrección de errores. [00307]
A23: 17 | B23: =B22+C22 -> 152 | C23: 17 | D23: N | E23: Estado total de cambios en el patrimonio neto. Prima de emisión. Efectos de la corrección de errores. [00308]
A24: 18 | B24: 169 | C24: 17 | D24: N | E24: Estado total de cambios en el patrimonio neto. Instrumentos patrimonio emitidos distintos del capital. Efectos de la corrección de errores. [00309]
A25: 19 | B25: 186 | C25: 17 | D25: N | E25: Estado total de cambios en el patrimonio neto. Otros elementos del patrimonio neto. Efectos de la corrección de errores. [00310]
A26: 20 | B26: 203 | C26: 17 | D26: N | E26: Estado total de cambios en el patrimonio neto. Ganancias acumuladas. Efectos de la corrección de errores. [00311]
A27: 21 | B27: 220 | C27: 17 | D27: N | E27: Estado total de cambios en el patrimonio neto. Reservas de revalorización. Efectos de la corrección de errores. [00312]
A28: 22 | B28: 237 | C28: 17 | D28: N | E28: Estado total de cambios en el patrimonio neto. Ajustes por cambio de criterio de ejercicios anteriores. Otras reservas. Efectos de la corrección de errores. [00313]
A29: =A28+1 -> 23 | B29: =B28+C28 -> 254 | C29: 17 | D29: N | E29: Estado total de cambios en el patrimonio neto. Capital. Efectos de los cambios en las políticas contables. [00321]
A30: 24 | B30: =B29+C29 -> 271 | C30: 17 | D30: N | E30: Estado total de cambios en el patrimonio neto. Prima de emisión. Efectos de los cambios en las políticas contables. [00322]
A31: 25 | B31: 288 | C31: 17 | D31: N | E31: Estado total de cambios en el patrimonio neto. Instrumentos patrimonio emitidos distintos del capital. Efectos de los cambios en las políticas contables. [00323]
A32: 26 | B32: 305 | C32: 17 | D32: N | E32: Estado total de cambios en el patrimonio neto. Otros elementos del patrimonio neto. Efectos de los cambios en las políticas contables. [00324]
A33: 27 | B33: 322 | C33: 17 | D33: N | E33: Estado total de cambios en el patrimonio neto. Ganancias acumuladas. Efectos de los cambios en las políticas contables. [00325]
A34: 28 | B34: 339 | C34: 17 | D34: N | E34: Estado total de cambios en el patrimonio neto. Reservas de revalorización. Efectos de los cambios en las políticas contables. [00326]
A35: 29 | B35: 356 | C35: 17 | D35: N | E35: Estado total de cambios en el patrimonio neto. Ajustes por cambio de criterio de ejercicios anteriores. Otras reservas. Efectos de los cambios en las políticas contables. [00327]
A36: =A35+1 -> 30 | B36: =B35+C35 -> 373 | C36: 17 | D36: N | E36: Estado total de cambios en el patrimonio neto. Capital. Saldo de apertura [período corriente]. [00335]
A37: 31 | B37: =B36+C36 -> 390 | C37: 17 | D37: N | E37: Estado total de cambios en el patrimonio neto. Prima de emisión. Saldo de apertura [período corriente]. [00336]
A38: 32 | B38: 407 | C38: 17 | D38: N | E38: Estado total de cambios en el patrimonio neto. Instrumentos patrimonio emitidos distintos del capital. Saldo de apertura [período corriente]. [00337]
A39: 33 | B39: 424 | C39: 17 | D39: N | E39: Estado total de cambios en el patrimonio neto. Otros elementos del patrimonio neto. Saldo de apertura [período corriente]. [00338]
A40: 34 | B40: 441 | C40: 17 | D40: N | E40: Estado total de cambios en el patrimonio neto. Ganancias acumuladas. Saldo de apertura [período corriente] .[00339]
A41: 35 | B41: 458 | C41: 17 | D41: N | E41: Estado total de cambios en el patrimonio neto. Reservas de revalorización. Saldo de apertura [período corriente]. [00340]
A42: 36 | B42: 475 | C42: 17 | D42: N | E42: Estado total de cambios en el patrimonio neto. Ajustes por cambio de criterio de ejercicios anteriores. Otras reservas. Saldo de apertura [período corriente]. [00341]
A43: 37 | B43: 492 | C43: 17 | D43: N | E43: Estado total de cambios en el patrimonio neto. Ganancias acumuladas. Resultado global total del ejercicio. [00353]
A44: 38 | B44: 509 | C44: 17 | D44: N | E44: Estado total de cambios en el patrimonio neto. Reservas de revalorización. Resultado global total del ejercicio. [00354]
A45: 39 | B45: 526 | C45: 17 | D45: N | E45: Estado total de cambios en el patrimonio neto. Ajustes por cambio de criterio de ejercicios anteriores. Otras reservas. Resultado global total del ejercicio. [00355]
A46: =A45+1 -> 40 | B46: =B45+C45 -> 543 | C46: 17 | D46: N | E46: Estado total de cambios en el patrimonio neto. Capital. Otras variaciones del patrimonio neto. [00363]
A47: 41 | B47: =B46+C46 -> 560 | C47: 17 | D47: N | E47: Estado total de cambios en el patrimonio neto. Prima de emisión. Otras variaciones del patrimonio neto. [00364]
A48: 42 | B48: 577 | C48: 17 | D48: N | E48: Estado total de cambios en el patrimonio neto. Instrumentos patrimonio emitidos distintos del capital. Otras variaciones del patrimonio neto. [00365]
A49: 43 | B49: 594 | C49: 17 | D49: N | E49: Estado total de cambios en el patrimonio neto. Otros elementos del patrimonio neto. Otras variaciones del patrimonio neto. [00366]
A50: 44 | B50: 611 | C50: 17 | D50: N | E50: Estado total de cambios en el patrimonio neto. Ganancias acumuladas. Otras variaciones del patrimonio neto. [00367]
A51: 45 | B51: 628 | C51: 17 | D51: N | E51: Estado total de cambios en el patrimonio neto. Reservas de revalorización. Otras variaciones del patrimonio neto. [00368]
A52: 46 | B52: 645 | C52: 17 | D52: N | E52: Estado total de cambios en el patrimonio neto. Ajustes por cambio de criterio de ejercicios anteriores. Otras reservas. Otras variaciones del patrimonio neto. [00369]
A53: =A52+1 -> 47 | B53: =B52+C52 -> 662 | C53: 17 | D53: N | E53: Estado total de cambios en el patrimonio neto. Capital. Emisión de acciones ordinarias. [00377]
A54: 48 | B54: =B53+C53 -> 679 | C54: 17 | D54: N | E54: Estado total de cambios en el patrimonio neto. Prima de emisión. Emisión de acciones ordinarias. [00378]
A55: 49 | B55: =B54+C54 -> 696 | C55: 17 | D55: N | E55: Estado total de cambios en el patrimonio neto. Ganancias acumuladas. Emisión de acciones ordinarias. [00381]
A56: 50 | B56: 713 | C56: 17 | D56: N | E56: Estado total de cambios en el patrimonio neto. Reservas de revalorización. Emisión de acciones ordinarias. [00382]
A57: 51 | B57: 730 | C57: 17 | D57: N | E57: Estado total de cambios en el patrimonio neto. Ajustes por cambio de criterio de ejercicios anteriores. Otras reservas. Emisión de acciones ordinarias. [00383]
A58: =A57+1 -> 52 | B58: =B57+C57 -> 747 | C58: 17 | D58: N | E58: Estado total de cambios en el patrimonio neto. Capital. Emisión de acciones preferentes. [00391]
A59: 53 | B59: =B58+C58 -> 764 | C59: 17 | D59: N | E59: Estado total de cambios en el patrimonio neto. Prima de emisión.Emisión de acciones preferentes. [00392]
A60: 54 | B60: 781 | C60: 17 | D60: N | E60: Estado total de cambios en el patrimonio neto. Instrumentos patrimonio emitidos distintos del capital. Emisión de acciones preferentes. [00393]
A61: 55 | B61: 798 | C61: 17 | D61: N | E61: Estado total de cambios en el patrimonio neto. Ganancias acumuladas. Emisión de acciones preferentes. [00395]
A62: 56 | B62: 815 | C62: 17 | D62: N | E62: Estado total de cambios en el patrimonio neto. Reservas de revalorización. Emisión de acciones preferentes. [00396]
A63: =A62+1 -> 57 | B63: =B62+C62 -> 832 | C63: 17 | D63: N | E63: Estado total de cambios en el patrimonio neto. Ajustes por cambio de criterio de ejercicios anteriores. Otras reservas. Emisión de acciones preferentes. [00397]
A64: =A63+1 -> 58 | B64: =B63+C63 -> 849 | C64: 17 | D64: N | E64: Estado total de cambios en el patrimonio neto. Instrumentos patrimonio emitidos distintos del capital. Emisión de otros instrumentos de patrimonio. [00407]
A65: 59 | B65: 866 | C65: 17 | D65: N | E65: Estado total de cambios en el patrimonio neto. Ganancias acumuladas. Emisión de otros instrumentos de patrimonio. [00409]
A66: 60 | B66: 883 | C66: 17 | D66: N | E66: Estado total de cambios en el patrimonio neto. Reservas de revalorización. Emisión de otros instrumentos de patrimonio. [00410]
A67: 61 | B67: 900 | C67: 17 | D67: N | E67: Estado total de cambios en el patrimonio neto. Ajustes por cambio de criterio de ejercicios anteriores. Otras reservas. Emisión de otros instrumentos de patrimonio. [00411]
A68: 62 | B68: 917 | C68: 17 | D68: N | E68: Estado total de cambios en el patrimonio neto. Instrumentos patrimonio emitidos distintos del capital. Ejercicio o vencimiento de otros instrumentos de patrimonio emitidos. [00421]
A69: 63 | B69: 934 | C69: 17 | D69: N | E69: Estado total de cambios en el patrimonio neto. Ganancias acumuladas. Ejercicio o vencimiento de otros instrumentos de patrimonio emitidos. [00423]
A70: 64 | B70: 951 | C70: 17 | D70: N | E70: Estado total de cambios en el patrimonio neto. Reservas de revalorización. Ejercicio o vencimiento de otros instrumentos de patrimonio emitidos. [00424]
A71: 65 | B71: 968 | C71: 17 | D71: N | E71: Estado total de cambios en el patrimonio neto. Ajustes por cambio de criterio de ejercicios anteriores. Otras reservas. Ejercicio o vencimiento de otros instrumentos de patrimonio emitidos. [00425]
A72: =A71+1 -> 66 | B72: =B71+C71 -> 985 | C72: 17 | D72: N | E72: Estado total de cambios en el patrimonio neto. Capital. Conversión de deuda en patrimonio neto. [00433]
A73: =A72+1 -> 67 | B73: =B72+C72 -> 1002 | C73: 17 | D73: N | E73: Estado total de cambios en el patrimonio neto. Prima de emisión. Conversión de deuda en patrimonio neto. [00434]
A74: 68 | B74: 1019 | C74: 17 | D74: N | E74: Estado total de cambios en el patrimonio neto. Instrumentos patrimonio emitidos distintos del capital. Conversión de deuda en patrimonio neto. [00435]
A75: 69 | B75: 1036 | C75: 17 | D75: N | E75: Estado total de cambios en el patrimonio neto. Otros elementos del patrimonio neto. Conversión de deuda en patrimonio neto. [00436]
A76: 70 | B76: 1053 | C76: 17 | D76: N | E76: Estado total de cambios en el patrimonio neto. Ganancias acumuladas. Conversión de deuda en patrimonio neto. [00437]
A77: 71 | B77: 1070 | C77: 17 | D77: N | E77: Estado total de cambios en el patrimonio neto. Ajustes por cambio de criterio de ejercicios anteriores. Otras reservas. Conversión de deuda en patrimonio neto. [00439]
A78: =A77+1 -> 72 | B78: =B77+C77 -> 1087 | C78: 17 | D78: N | E78: Estado total de cambios en el patrimonio neto. Capital. Reducción del capital. [00447]
A79: =A78+1 -> 73 | B79: =B78+C78 -> 1104 | C79: 17 | D79: N | E79: Estado total de cambios en el patrimonio neto. Prima de emisión. Reducción del capital. [00448]
A80: 74 | B80: 1121 | C80: 17 | D80: N | E80: Estado total de cambios en el patrimonio neto. Ganancias acumuladas. Reducción del capital. [00451]
A81: 75 | B81: 1138 | C81: 17 | D81: N | E81: Estado total de cambios en el patrimonio neto. Reservas de revalorización. Reducción del capital. [00452]
A82: 76 | B82: 1155 | C82: 17 | D82: N | E82: Estado total de cambios en el patrimonio neto. Ajustes por cambio de criterio de ejercicios anteriores. Otras reservas. Reducción del capital. [00453]
A83: =A82+1 -> 77 | B83: =B82+C82 -> 1172 | C83: 17 | D83: N | E83: Estado total de cambios en el patrimonio neto. Capital. Dividendos (o remuneraciones a los socios). [00461]
A84: =A83+1 -> 78 | B84: =B83+C83 -> 1189 | C84: 17 | D84: N | E84: Estado total de cambios en el patrimonio neto. Prima de emisión. Dividendos (o remuneraciones a los socios). [00462]
A85: 79 | B85: 1206 | C85: 17 | D85: N | E85: Estado total de cambios en el patrimonio neto. Instrumentos patrimonio emitidos distintos del capital. Dividendos (o remuneraciones a los socios). [00463]
A86: 80 | B86: 1223 | C86: 17 | D86: N | E86: Estado total de cambios en el patrimonio neto. Otros elementos del patrimonio neto. Dividendos (o remuneraciones a los socios). [00464]
A87: 81 | B87: 1240 | C87: 17 | D87: N | E87: Estado total de cambios en el patrimonio neto. Ganancias acumuladas. Dividendos (o remuneraciones a los socios). [00465]
A88: 82 | B88: 1257 | C88: 17 | D88: N | E88: Estado total de cambios en el patrimonio neto. Reservas de revalorización. Dividendos (o remuneraciones a los socios). [00466]
A89: 83 | B89: 1274 | C89: 17 | D89: N | E89: Estado total de cambios en el patrimonio neto. Ajustes por cambio de criterio de ejercicios anteriores. Otras reservas. Dividendos (o remuneraciones a los socios). [00467]
A90: 84 | B90: 1291 | C90: 17 | D90: N | E90: Estado total de cambios en el patrimonio neto. Ganancias acumuladas. Compra de acciones propias. [00479]
A91: 85 | B91: 1308 | C91: 17 | D91: N | E91: Estado total de cambios en el patrimonio neto. Reservas de revalorización. Compra de acciones propias. [00480]
A92: 86 | B92: 1325 | C92: 17 | D92: N | E92: Estado total de cambios en el patrimonio neto. Ajustes por cambio de criterio de ejercicios anteriores. Otras reservas. Compra de acciones propias. [00481]
A93: 87 | B93: 1342 | C93: 17 | D93: N | E93: Estado total de cambios en el patrimonio neto. Ganancias acumuladas. Venta o cancelación de acciones propias. [00493]
A94: 88 | B94: 1359 | C94: 17 | D94: N | E94: Estado total de cambios en el patrimonio neto. Reservas de revalorización. Venta o cancelación de acciones propias. [00494]
A95: 89 | B95: 1376 | C95: 17 | D95: N | E95: Estado total de cambios en el patrimonio neto. Ajustes por cambio de criterio de ejercicios anteriores. Otras reservas. Venta o cancelación de acciones propias. [00495]
A96: =A95+1 -> 90 | B96: =B95+C95 -> 1393 | C96: 17 | D96: N | E96: Estado total de cambios en el patrimonio neto. Capital. Reclasificación de instrumentos financieros del patrimonio neto al pasivo. [00503]
A97: =A96+1 -> 91 | B97: =B96+C96 -> 1410 | C97: 17 | D97: N | E97: Estado total de cambios en el patrimonio neto. Prima de emisión. Reclasificación de instrumentos financieros del patrimonio neto al pasivo. [00504]
A98: 92 | B98: 1427 | C98: 17 | D98: N | E98: Estado total de cambios en el patrimonio neto. Instrumentos patrimonio emitidos distintos del capital. Reclasificación de instrumentos financieros del patrimonio neto al pasivo. [00505]
A99: 93 | B99: 1444 | C99: 17 | D99: N | E99: Estado total de cambios en el patrimonio neto. Otros elementos del patrimonio neto. Reclasificación de instrumentos financieros del patrimonio neto al pasivo. [00506]
A100: =A99+1 -> 94 | B100: =B99+C99 -> 1461 | C100: 17 | D100: N | E100: Estado total de cambios en el patrimonio neto. Capital. Reclasificación de instrumentos financieros del pasivo al patrimonio neto. [00517]
A101: =A100+1 -> 95 | B101: =B100+C100 -> 1478 | C101: 17 | D101: N | E101: Estado total de cambios en el patrimonio neto. Prima de emisión. Reclasificación de instrumentos financieros del pasivo al patrimonio neto. [00518]
A102: 96 | B102: 1495 | C102: 17 | D102: N | E102: Estado total de cambios en el patrimonio neto. Instrumentos patrimonio emitidos distintos del capital. Reclasificación de instrumentos financieros del pasivo al patrimonio neto. [00519]
A103: 97 | B103: 1512 | C103: 17 | D103: N | E103: Estado total de cambios en el patrimonio neto. Otros elementos del patrimonio neto. Reclasificación de instrumentos financieros del pasivo al patrimonio neto. [00520]
A104: 98 | B104: 1529 | C104: 17 | D104: N | E104: Estado total de cambios en el patrimonio neto. Instrumentos patrimonio emitidos distintos del capital. Transferencias entre componentes del patrimonio neto. [00533]
A105: 99 | B105: 1546 | C105: 17 | D105: N | E105: Estado total de cambios en el patrimonio neto. Otros elementos del patrimonio neto. Transferencias entre componentes del patrimonio neto. [00534]
A106: 100 | B106: 1563 | C106: 17 | D106: N | E106: Estado total de cambios en el patrimonio neto. Ganancias acumuladas. Transferencias entre componentes del patrimonio neto. [00535]
A107: 101 | B107: 1580 | C107: 17 | D107: N | E107: Estado total de cambios en el patrimonio neto. Reservas de revalorización. Transferencias entre componentes del patrimonio neto. [00536]
A108: 102 | B108: 1597 | C108: 17 | D108: N | E108: Estado total de cambios en el patrimonio neto. Ajustes por cambio de criterio de ejercicios anteriores. Otras reservas. Transferencias entre componentes del patrimonio neto. [00537]
A109: =A108+1 -> 103 | B109: =B108+C108 -> 1614 | C109: 17 | D109: N | E109: Estado total de cambios en el patrimonio neto. Capital. Aumento o (-) disminución del patrimonio neto resultante de combinaciones de negocios. [00545]
A110: =A109+1 -> 104 | B110: =B109+C109 -> 1631 | C110: 17 | D110: N | E110: Estado total de cambios en el patrimonio neto. Prima de emisión. Aumento o (-) disminución del patrimonio neto resultante de combinaciones de negocios. [00546]
A111: 105 | B111: 1648 | C111: 17 | D111: N | E111: Estado total de cambios en el patrimonio neto. Instrumentos patrimonio emitidos distintos del capital. Aumento o (-) disminución del patrimonio neto resultante de combinaciones de negocios. [00547]
A112: 106 | B112: 1665 | C112: 17 | D112: N | E112: Estado total de cambios en el patrimonio neto. Otros elementos del patrimonio neto. Aumento o (-) disminución del patrimonio neto resultante de combinaciones de negocios. [00548]
A113: 107 | B113: 1682 | C113: 17 | D113: N | E113: Estado total de cambios en el patrimonio neto. Ganancias acumuladas. Aumento o (-) disminución del patrimonio neto resultante de combinaciones de negocios. [00549]
A114: 108 | B114: 1699 | C114: 17 | D114: N | E114: Estado total de cambios en el patrimonio neto. Reservas de revalorización. Aumento o (-) disminución del patrimonio neto resultante de combinaciones de negocios. [00550]
A115: 109 | B115: 1716 | C115: 17 | D115: N | E115: Estado total de cambios en el patrimonio neto. Ajustes por cambio de criterio de ejercicios anteriores. Otras reservas. Aumento o (-) disminución del patrimonio neto resultante de combinaciones de negocios. [00551]
A116: =A115+1 -> 110 | B116: =B115+C115 -> 1733 | C116: 17 | D116: N | E116: Estado total de cambios en el patrimonio neto. Capital. [00559]
A117: =A116+1 -> 111 | B117: =B116+C116 -> 1750 | C117: 17 | D117: N | E117: Estado total de cambios en el patrimonio neto. Prima de emisión. [00560]
A118: 112 | B118: =B117+C117 -> 1767 | C118: 17 | D118: N | E118: Estado total de cambios en el patrimonio neto. Otros elementos del patrimonio neto. [00562]
A119: 113 | B119: 1784 | C119: 17 | D119: N | E119: Estado total de cambios en el patrimonio neto. Instrumentos patrimonio emitidos distintos del capital. Otros aumentos o (-) disminuciones del patrimonio neto. [00575]
A120: 114 | B120: 1801 | C120: 17 | D120: N | E120: Estado total de cambios en el patrimonio neto. Otros elementos del patrimonio neto. Otros aumentos o (-) disminuciones del patrimonio neto. [00576]
A121: 115 | B121: 1818 | C121: 17 | D121: N | E121: Estado total de cambios en el patrimonio neto. Ganancias acumuladas. Otros aumentos o (-) disminuciones del patrimonio neto. [00577]
A122: 116 | B122: 1835 | C122: 17 | D122: N | E122: Estado total de cambios en el patrimonio neto. Reservas de revalorización. Otros aumentos o (-) disminuciones del patrimonio neto. [00578]
A123: 117 | B123: 1852 | C123: 17 | D123: N | E123: Estado total de cambios en el patrimonio neto. Ajustes por cambio de criterio de ejercicios anteriores. Otras reservas. Otros aumentos o (-) disminuciones del patrimonio neto. [00579]
A124: 118 | B124: 1869 | C124: 17 | D124: N | E124: Estado total de cambios en el patrimonio neto. Ganancias acumuladas. De los cuales: dotación discrecional a obras y fondos sociales (solo cajas de ahorros y cooperativas de crédito). [00591]
A125: 119 | B125: =B124+C124 -> 1886 | C125: 17 | D125: N | E125: Estado total de cambios en el patrimonio neto. Ajustes por cambio de criterio de ejercicios anteriores. Otras reservas. De los cuales: dotación discrecional a obras y fondos sociales (solo cajas de ahorros y cooperativas de crédito). [00593]
A126: =A125+1 -> 120 | B126: =B125+C125 -> 1903 | C126: 17 | D126: N | E126: Estado total de cambios en el patrimonio neto. Capital. Saldo de cierre (período corriente). [00601]
A127: =A126+1 -> 121 | B127: =B126+C126 -> 1920 | C127: 17 | D127: N | E127: Estado total de cambios en el patrimonio neto. Prima de emisión. Saldo de cierre (período corriente).[00602]
A128: 122 | B128: 1937 | C128: 17 | D128: N | E128: Estado total de cambios en el patrimonio neto. Instrumentos patrimonio emitidos distintos del capital. Saldo de cierre (período corriente). [00603]
A129: 123 | B129: 1954 | C129: 17 | D129: N | E129: Estado total de cambios en el patrimonio neto. Otros elementos del patrimonio neto. Saldo de cierre (período corriente). [00604]
A130: 124 | B130: 1971 | C130: 17 | D130: N | E130: Estado total de cambios en el patrimonio neto. Ganancias acumuladas. Saldo de cierre (período corriente). [00605]
A131: 125 | B131: 1988 | C131: 17 | D131: N | E131: Estado total de cambios en el patrimonio neto. Reservas de revalorización. Saldo de cierre (período corriente). [00606]
A132: 126 | B132: 2005 | C132: 17 | D132: N | E132: Estado total de cambios en el patrimonio neto. Ajustes por cambio de criterio de ejercicios anteriores. Otras reservas. Saldo de cierre (período corriente). [00607]
A133: 127 | B133: =B132+C132 -> 2022 | C133: 12 | D133: An | E133: Fin de registro. | F133: </T22005B01>
A134: Total: | C134: =B133+C133-1 -> 2033

Sheet T22005C01
B1: Agencia Tributaria
A3: =+T22001000!A3 -> Modelo 220 | C3: =+T22001000!C3 -> Diseño de registro. 2019
A4: =+T22001000!A4 -> Versión 1.9 | C4: Impuesto Sobre Sociedades. Régimen de consolidación Fiscal. GRUPO DE ENTIDADES DE CRÉDITO. ESTADO DE CAMBIOS EN EL PATRIMONIO NETO: ESTADO TOTAL DE CAMBIOS EN EL PATRIMONIO NETO CONSOLIDADO (II)
A6: Nº | B6: Posic. | C6: Lon | D6: Tipo | E6: Descripción | F6: Contenido
A7: 1 | B7: 1 | C7: 2 | D7: An | E7: Inicio del identificador de modelo y página. | F7: <T
A8: =+A7+1 -> 2 | B8: =C7+B7 -> 3 | C8: 3 | D8: Num | E8: Modelo. | F8: 220
A9: 3 | B9: 6 | C9: 2 | D9: An | E9: Página. | F9: 05
A10: 4 | B10: 8 | C10: 1 | D10: An | E10: Letra | F10: C
A11: 5 | B11: 9 | C11: 2 | D11: Num | E11: Hoja | F11: 01
A12: 6 | B12: 11 | C12: 1 | D12: An | E12: Fin de identificador de modelo y página. Constante ">". | F12: >
A13: 7 | B13: 12 | C13: 1 | D13: An | E13: Indicador de página complementaria.
A14: =A13+1 -> 8 | B14: =B13+C13 -> 13 | C14: 3 | D14: Num | E14: Número de orden de la página complementaria
A15: =A14+1 -> 9 | B15: =B14+C14 -> 16 | C15: 17 | D15: N | E15: Estado total de cambios en el patrimonio neto (cont.). (-) Acciones propias. Saldo de apertura [antes de la reexpresión]. [00708]
A16: 10 | B16: 33 | C16: 17 | D16: N | E16: Estado total de cambios en el patrimonio neto (cont.). Resultado atribuible a los propietarios de la dominante. Saldo de apertura [antes de la reexpresión]. [00709]
A17: 11 | B17: 50 | C17: 17 | D17: N | E17: Estado total de cambios en el patrimonio neto (cont.). (-) Dividendos a cuenta. Saldo de apertura [antes de la reexpresión]. [00710]
A18: 12 | B18: 67 | C18: 17 | D18: N | E18: Estado total de cambios en el patrimonio neto (cont.). Otro resultado global acumulado. Saldo de apertura [antes de la reexpresión]. [00711]
A19: 13 | B19: 84 | C19: 17 | D19: N | E19: Estado total de cambios en el patrimonio neto (cont.). Intereses minoritarios. Otro resultado global acumulado. Saldo de apertura [antes de la reexpresión]. [00712]
A20: 14 | B20: 101 | C20: 17 | D20: N | E20: Estado total de cambios en el patrimonio neto (cont.). Intereses minoritarios. Otros elementos. Saldo de apertura [antes de la reexpresión]. [00713]
A21: 15 | B21: 118 | C21: 17 | D21: N | E21: Estado total de cambios en el patrimonio neto (cont.). Total. Saldo de apertura [antes de la reexpresión]. [00714]
A22: =A21+1 -> 16 | B22: =B21+C21 -> 135 | C22: 17 | D22: N | E22: Estado total de cambios en el patrimonio neto (cont.). (-) Acciones propias. Efectos de la corrección de errores. [00314]
A23: 17 | B23: =B22+C22 -> 152 | C23: 17 | D23: N | E23: Estado total de cambios en el patrimonio neto (cont.). Resultado atribuible a los propietarios de la dominante. Efectos de la corrección de errores. [00315]
A24: 18 | B24: 169 | C24: 17 | D24: N | E24: Estado total de cambios en el patrimonio neto (cont.). (-) Dividendos a cuenta. Efectos de la corrección de errores. [00316]
A25: 19 | B25: 186 | C25: 17 | D25: N | E25: Estado total de cambios en el patrimonio neto (cont.). Otro resultado global acumulado. Efectos de la corrección de errores. [00317]
A26: 20 | B26: 203 | C26: 17 | D26: N | E26: Estado total de cambios en el patrimonio neto (cont.). Intereses minoritarios. Otro resultado global acumulado. Efectos de la corrección de errores. [00318]
A27: 21 | B27: 220 | C27: 17 | D27: N | E27: Estado total de cambios en el patrimonio neto (cont.). Intereses minoritarios. Otros elementos. Efectos de la corrección de errores. [00319]
A28: 22 | B28: 237 | C28: 17 | D28: N | E28: Estado total de cambios en el patrimonio neto (cont.). Total. Efectos de la corrección de errores. [00320]
A29: =A28+1 -> 23 | B29: =B28+C28 -> 254 | C29: 17 | D29: N | E29: Estado total de cambios en el patrimonio neto (cont.). (-) Acciones propias. Efectos de los cambios en las políticas contables. [00328]
A30: 24 | B30: =B29+C29 -> 271 | C30: 17 | D30: N | E30: Estado total de cambios en el patrimonio neto (cont.). Resultado atribuible a los propietarios de la dominante. Efectos de los cambios en las políticas contables. [00329]
A31: 25 | B31: 288 | C31: 17 | D31: N | E31: Estado total de cambios en el patrimonio neto (cont.). (-) Dividendos a cuenta. Efectos de los cambios en las políticas contables. [00330]
A32: 26 | B32: 305 | C32: 17 | D32: N | E32: Estado total de cambios en el patrimonio neto (cont.). Otro resultado global acumulado. Efectos de los cambios en las políticas contables. [00331]
A33: 27 | B33: 322 | C33: 17 | D33: N | E33: Estado total de cambios en el patrimonio neto (cont.). Intereses minoritarios. Otro resultado global acumulado. Efectos de los cambios en las políticas contables. [00332]
A34: 28 | B34: 339 | C34: 17 | D34: N | E34: Estado total de cambios en el patrimonio neto (cont.). Intereses minoritarios. Otros elementos. Efectos de los cambios en las políticas contables. [00333]
A35: 29 | B35: 356 | C35: 17 | D35: N | E35: Estado total de cambios en el patrimonio neto (cont.). Efectos de los cambios en las políticas contables. Total. [00334]
A36: =A35+1 -> 30 | B36: =B35+C35 -> 373 | C36: 17 | D36: N | E36: Estado total de cambios en el patrimonio neto (cont.). (-) Acciones propias. Saldo de apertura [período corriente]. [00342]
A37: 31 | B37: =B36+C36 -> 390 | C37: 17 | D37: N | E37: Estado total de cambios en el patrimonio neto (cont.). Resultado atribuible a los propietarios de la dominante. Saldo de apertura [período corriente]. [00343]
A38: 32 | B38: 407 | C38: 17 | D38: N | E38: Estado total de cambios en el patrimonio neto (cont.). (-) Dividendos a cuenta. Saldo de apertura [período corriente].[00344]
A39: 33 | B39: 424 | C39: 17 | D39: N | E39: Estado total de cambios en el patrimonio neto (cont.). Otro resultado global acumulado. Saldo de apertura [período corriente]. [00345]
A40: 34 | B40: 441 | C40: 17 | D40: N | E40: Estado total de cambios en el patrimonio neto (cont.). Intereses minoritarios. Otro resultado global acumulado. Saldo de apertura [período corriente]. [00346]
A41: 35 | B41: 458 | C41: 17 | D41: N | E41: Estado total de cambios en el patrimonio neto (cont.). Intereses minoritarios. Otros elementos. Saldo de apertura [período corriente]. [00347]
A42: 36 | B42: 475 | C42: 17 | D42: N | E42: Estado total de cambios en el patrimonio neto (cont.). Total. Saldo de apertura [período corriente]. [00348]
A43: 37 | B43: 492 | C43: 17 | D43: N | E43: Estado total de cambios en el patrimonio neto (cont.). Resultado atribuible a los propietarios de la dominante. Resultado global total del ejercicio. [00357]
A44: 38 | B44: 509 | C44: 17 | D44: N | E44: Estado total de cambios en el patrimonio neto (cont.). Otro resultado global acumulado. Resultado global total del ejercicio. [00359]
A45: 39 | B45: 526 | C45: 17 | D45: N | E45: Estado total de cambios en el patrimonio neto (cont.). Intereses minoritarios. Otro resultado global acumulado. Resultado global total del ejercicio. [00360]
A46: 40 | B46: 543 | C46: 17 | D46: N | E46: Estado total de cambios en el patrimonio neto (cont.). Intereses minoritarios. Otros elementos. Resultado global total del ejercicio. [00361]
A47: 41 | B47: 560 | C47: 17 | D47: N | E47: Estado total de cambios en el patrimonio neto (cont.). Total. Resultado global total del ejercicio. [00362]
A48: =A47+1 -> 42 | B48: =B47+C47 -> 577 | C48: 17 | D48: N | E48: Estado total de cambios en el patrimonio neto (cont.). (-) Acciones propias. Otras variaciones del patrimonio neto.[00370]
A49: 43 | B49: =B48+C48 -> 594 | C49: 17 | D49: N | E49: Estado total de cambios en el patrimonio neto (cont.). Resultado atribuible a los propietarios de la dominante. Otras variaciones del patrimonio neto. [00371]
A50: 44 | B50: 611 | C50: 17 | D50: N | E50: Estado total de cambios en el patrimonio neto (cont.). (-) Dividendos a cuenta. Otras variaciones del patrimonio neto. [00372]
A51: 45 | B51: 628 | C51: 17 | D51: N | E51: Estado total de cambios en el patrimonio neto (cont.). Otro resultado global acumulado. Otras variaciones del patrimonio neto. [00373]
A52: 46 | B52: 645 | C52: 17 | D52: N | E52: Estado total de cambios en el patrimonio neto (cont.). Intereses minoritarios. Otro resultado global acumulado. Otras variaciones del patrimonio neto. [00374]
A53: 47 | B53: 662 | C53: 17 | D53: N | E53: Estado total de cambios en el patrimonio neto (cont.). Intereses minoritarios. Otros elementos. Otras variaciones del patrimonio neto [00375]
A54: 48 | B54: 679 | C54: 17 | D54: N | E54: Estado total de cambios en el patrimonio neto (cont.). Total. Otras variaciones del patrimonio neto. [00376]
A55: 49 | B55: 696 | C55: 17 | D55: N | E55: Estado total de cambios en el patrimonio neto (cont.). Intereses minoritarios. Otros elementos. Emisión de acciones ordinarias. [00389]
A56: 50 | B56: 713 | C56: 17 | D56: N | E56: Estado total de cambios en el patrimonio neto (cont.). Total. Emisión de acciones ordinarias. [00390]
A57: 51 | B57: 730 | C57: 17 | D57: N | E57: Estado total de cambios en el patrimonio neto (cont.). Intereses minoritarios. Otros elementos. Emisión de acciones preferentes. [00403]
A58: 52 | B58: 747 | C58: 17 | D58: N | E58: Estado total de cambios en el patrimonio neto (cont.). Total. Emisión de acciones preferentes. [00404]
A59: 53 | B59: 764 | C59: 17 | D59: N | E59: Estado total de cambios en el patrimonio neto (cont.). Intereses minoritarios. Otros elementos. Emisión de otros instrumentos de patrimonio. [00417]
A60: 54 | B60: 781 | C60: 17 | D60: N | E60: Estado total de cambios en el patrimonio neto (cont.). Total. Emisión de otros instrumentos de patrimonio. [00418]
A61: 55 | B61: 798 | C61: 17 | D61: N | E61: Estado total de cambios en el patrimonio neto (cont.). Intereses minoritarios. Otros elementos. Ejercicio o vencimiento de otros instrumentos de patrimonio emitidos. [00431]
A62: 56 | B62: 815 | C62: 17 | D62: N | E62: Estado total de cambios en el patrimonio neto (cont.). Total. Ejercicio o vencimiento de otros instrumentos de patrimonio emitidos. [00432]
A63: =A62+1 -> 57 | B63: =B62+C62 -> 832 | C63: 17 | D63: N | E63: Estado total de cambios en el patrimonio neto (cont.). (-) Acciones propias. Conversión de deuda en patrimonio neto. [00440]
A64: =A63+1 -> 58 | B64: =B63+C63 -> 849 | C64: 17 | D64: N | E64: Estado total de cambios en el patrimonio neto (cont.). Intereses minoritarios. Otros elementos. Conversión de deuda en patrimonio neto. [00445]
A65: 59 | B65: 866 | C65: 17 | D65: N | E65: Estado total de cambios en el patrimonio neto (cont.). Total. Conversión de deuda en patrimonio neto. [00446]
A66: =A65+1 -> 60 | B66: =B65+C65 -> 883 | C66: 17 | D66: N | E66: Estado total de cambios en el patrimonio neto (cont.). (-) Acciones propias. Reducción del capital. [00454]
A67: =A66+1 -> 61 | B67: =B66+C66 -> 900 | C67: 17 | D67: N | E67: Estado total de cambios en el patrimonio neto (cont.). Resultado atribuible a los propietarios de la dominante. Reducción del capital [00455]
A68: 62 | B68: =B67+C67 -> 917 | C68: 17 | D68: N | E68: Estado total de cambios en el patrimonio neto (cont.). Intereses minoritarios. Otros elementos. Reducción del capital. [00459]
A69: 63 | B69: 934 | C69: 17 | D69: N | E69: Estado total de cambios en el patrimonio neto (cont.). Total. Reducción del capital. [00460]
A70: =A69+1 -> 64 | B70: =B69+C69 -> 951 | C70: 17 | D70: N | E70: Estado total de cambios en el patrimonio neto (cont.). (-) Acciones propias. Dividendos (o remuneraciones a los socios). [00468]
A71: =A70+1 -> 65 | B71: =B70+C70 -> 968 | C71: 17 | D71: N | E71: Estado total de cambios en el patrimonio neto (cont.). (-) Dividendos a cuenta. Dividendos (o remuneraciones a los socios). [00470]
A72: 66 | B72: 985 | C72: 17 | D72: N | E72: Estado total de cambios en el patrimonio neto (cont.). Intereses minoritarios. Otros elementos. Dividendos (o remuneraciones a los socios). [00473]
A73: 67 | B73: 1002 | C73: 17 | D73: N | E73: Estado total de cambios en el patrimonio neto (cont.). Total. Dividendos (o remuneraciones a los socios). [00474]
A74: =A73+1 -> 68 | B74: =B73+C73 -> 1019 | C74: 17 | D74: N | E74: Estado total de cambios en el patrimonio neto (cont.). (-) Acciones propias. Compra de acciones propias. [00482]
A75: =A74+1 -> 69 | B75: =B74+C74 -> 1036 | C75: 17 | D75: N | E75: Estado total de cambios en el patrimonio neto (cont.). Intereses minoritarios. Otro resultado global acumulado. Compra de acciones propias. [00486]
A76: 70 | B76: 1053 | C76: 17 | D76: N | E76: Estado total de cambios en el patrimonio neto (cont.). Intereses minoritarios. Otros elementos. Compra de acciones propias. [00487]
A77: 71 | B77: 1070 | C77: 17 | D77: N | E77: Estado total de cambios en el patrimonio neto (cont.). Total. Compra de acciones propias. [00488]
A78: =A77+1 -> 72 | B78: =B77+C77 -> 1087 | C78: 17 | D78: N | E78: Estado total de cambios en el patrimonio neto (cont.). (-) Acciones propias. Venta o cancelación de acciones propias. [00496]
A79: =A78+1 -> 73 | B79: =B78+C78 -> 1104 | C79: 17 | D79: N | E79: Estado total de cambios en el patrimonio neto (cont.). Intereses minoritarios. Otro resultado global acumulado. Venta o cancelación de acciones propias. [00715]
A80: 74 | B80: 1121 | C80: 17 | D80: N | E80: Estado total de cambios en el patrimonio neto (cont.). Intereses minoritarios. Otros elementos. Venta o cancelación de acciones propias. [00501]
A81: 75 | B81: 1138 | C81: 17 | D81: N | E81: Estado total de cambios en el patrimonio neto (cont.). Total. Venta o cancelación de acciones propias. [00502]
A82: 76 | B82: 1155 | C82: 17 | D82: N | E82: Estado total de cambios en el patrimonio neto (cont.). Intereses minoritarios. Otros elementos. Reclasificación de instrumentos financieros del patrimonio neto al pasivo. [00716]
A83: 77 | B83: 1172 | C83: 17 | D83: N | E83: Estado total de cambios en el patrimonio neto (cont.). Total. Reclasificación de instrumentos financieros del patrimonio neto al pasivo. [00516]
A84: 78 | B84: 1189 | C84: 17 | D84: N | E84: Estado total de cambios en el patrimonio neto (cont.). Intereses minoritarios. Otros elementos. Reclasificación de instrumentos financieros del pasivo al patrimonio neto. [00529]
A85: 79 | B85: 1206 | C85: 17 | D85: N | E85: Estado total de cambios en el patrimonio neto (cont.). Total. Reclasificación de instrumentos financieros del pasivo al patrimonio neto. [00530]
A86: 80 | B86: 1223 | C86: 17 | D86: N | E86: Estado total de cambios en el patrimonio neto (cont.). Resultado atribuible a los propietarios de la dominante. Transferencias entre componentes del patrimonio neto. [00539]
A87: 81 | B87: 1240 | C87: 17 | D87: N | E87: Estado total de cambios en el patrimonio neto (cont.). (-) Dividendos a cuenta. Transferencias entre componentes del patrimonio neto. [00540]
A88: 82 | B88: 1257 | C88: 17 | D88: N | E88: Estado total de cambios en el patrimonio neto (cont.). Otro resultado global acumulado. Transferencias entre componentes del patrimonio neto. [00541]
A89: 83 | B89: 1274 | C89: 17 | D89: N | E89: Estado total de cambios en el patrimonio neto (cont.). Intereses minoritarios. Otro resultado global acumulado. Transferencias entre componentes del patrimonio neto. [00542]
A90: 84 | B90: 1291 | C90: 17 | D90: N | E90: Estado total de cambios en el patrimonio neto (cont.). Intereses minoritarios. Otros elementos. Transferencias entre componentes del patrimonio neto. [00543]
A91: 85 | B91: 1308 | C91: 17 | D91: N | E91: Estado total de cambios en el patrimonio neto (cont.). Total. Transferencias entre componentes del patrimonio neto. [00544]
A92: =A91+1 -> 86 | B92: =B91+C91 -> 1325 | C92: 17 | D92: N | E92: Estado total de cambios en el patrimonio neto (cont.). (-) Acciones propias. Aumento o (-) disminución del patrimonio neto resultante de combinaciones de negocios. [00552]
A93: =A92+1 -> 87 | B93: =B92+C92 -> 1342 | C93: 17 | D93: N | E93: Estado total de cambios en el patrimonio neto (cont.). Otro resultado global acumulado. Aumento o (-) disminución del patrimonio neto resultante de combinaciones de negocios. [00555]
A94: 88 | B94: 1359 | C94: 17 | D94: N | E94: Estado total de cambios en el patrimonio neto (cont.). Intereses minoritarios. Otros elementos. Aumento o (-) disminución del patrimonio neto resultante de combinaciones de negocios. [00557]
A95: 89 | B95: 1376 | C95: 17 | D95: N | E95: Estado total de cambios en el patrimonio neto (cont.). Total. Aumento o (-) disminución del patrimonio neto resultante de combinaciones de negocios. [00558]
A96: =A95+1 -> 90 | B96: =B95+C95 -> 1393 | C96: 17 | D96: N | E96: Estado total de cambios en el patrimonio neto (cont.). (-) Acciones propias. Pagos basados en acciones. [00566]
A97: =A96+1 -> 91 | B97: =B96+C96 -> 1410 | C97: 17 | D97: N | E97: Estado total de cambios en el patrimonio neto (cont.). Intereses minoritarios. Otros elementos. Pagos basados en acciones. [00571]
A98: 92 | B98: 1427 | C98: 17 | D98: N | E98: Estado total de cambios en el patrimonio neto (cont.). Total. Pagos basados en acciones. [00572]
A99: =A98+1 -> 93 | B99: =B98+C98 -> 1444 | C99: 17 | D99: N | E99: Estado total de cambios en el patrimonio neto (cont.). (-) Acciones propias. Otros aumentos o (-) disminuciones del patrimonio neto. [00580]
A100: =A99+1 -> 94 | B100: =B99+C99 -> 1461 | C100: 17 | D100: N | E100: Estado total de cambios en el patrimonio neto (cont.). Resultado atribuible a los propietarios de la dominante. Otros aumentos o (-) disminuciones del patrimonio neto. [00581]
A101: 95 | B101: 1478 | C101: 17 | D101: N | E101: Estado total de cambios en el patrimonio neto (cont.). (-) Dividendos a cuenta. Otros aumentos o (-) disminuciones del patrimonio neto. [00582]
A102: 96 | B102: 1495 | C102: 17 | D102: N | E102: Estado total de cambios en el patrimonio neto (cont.). Otro resultado global acumulado. Otros aumentos o (-) disminuciones del patrimonio neto. [00583]
A103: 97 | B103: 1512 | C103: 17 | D103: N | E103: Estado total de cambios en el patrimonio neto (cont.). Intereses minoritarios. Otro resultado global acumulado. Otros aumentos o (-) disminuciones del patrimonio neto. [00584]
A104: 98 | B104: 1529 | C104: 17 | D104: N | E104: Estado total de cambios en el patrimonio neto (cont.). Intereses minoritarios. Otros elementos. Otros aumentos o (-) disminuciones del patrimonio neto. [00585]
A105: 99 | B105: 1546 | C105: 17 | D105: N | E105: Estado total de cambios en el patrimonio neto (cont.). Total. Otros aumentos o (-) disminuciones del patrimonio neto. [00586]
A106: 100 | B106: 1563 | C106: 17 | D106: N | E106: Estado total de cambios en el patrimonio neto (cont.). Total. De los cuales: dotación discrecional a obras y fondos sociales (solo cajas de ahorros y cooperativas de crédito). [00600]
A107: =A106+1 -> 101 | B107: =B106+C106 -> 1580 | C107: 17 | D107: N | E107: Estado total de cambios en el patrimonio neto (cont.). (-) Acciones propias. Saldo de cierre (período corriente). [00608]
A108: =A107+1 -> 102 | B108: =B107+C107 -> 1597 | C108: 17 | D108: N | E108: Estado total de cambios en el patrimonio neto (cont.). Resultado atribuible a los propietarios de la dominante. Saldo de cierre (período corriente). [00609]
A109: 103 | B109: 1614 | C109: 17 | D109: N | E109: Estado total de cambios en el patrimonio neto (cont.). (-) Dividendos a cuenta. Saldo de cierre (período corriente). [00610]
A110: 104 | B110: 1631 | C110: 17 | D110: N | E110: Estado total de cambios en el patrimonio neto (cont.). Otro resultado global acumulado. Saldo de cierre (período corriente). [00611]
A111: 105 | B111: 1648 | C111: 17 | D111: N | E111: Estado total de cambios en el patrimonio neto (cont.). Intereses minoritarios. Otro resultado global acumulado. Saldo de cierre (período corriente). [00612]
A112: 106 | B112: 1665 | C112: 17 | D112: N | E112: Estado total de cambios en el patrimonio neto (cont.). Intereses minoritarios. Otros elementos. Saldo de cierre (período corriente). [00613]
A113: 107 | B113: 1682 | C113: 17 | D113: N | E113: Estado total de cambios en el patrimonio neto (cont.). Total. Saldo de cierre (período corriente). [00614]
A114: 108 | B114: =B113+C113 -> 1699 | C114: 12 | D114: An | E114: Fin de registro. | F114: </T22005C01>
A115: Total: | C115: =B114+C114-1 -> 1710

Sheet T22003A02
B1: Agencia Tributaria
A3: =+T22001000!A3 -> Modelo 220 | C3: =+T22001000!C3 -> Diseño de registro. 2019
A4: =+T22001000!A4 -> Versión 1.9 | C4: Impuesto Sobre Sociedades. Regimen de consolidación fiscal. GRUPO DE ENTIDADES ASEGURADORAS. BALANCE CONSOLIDADO: ACTIVO (I)
A6: Nº | B6: Posic. | C6: Lon | D6: Tipo | E6: Descripción | F6: Contenido
A7: 1 | B7: 1 | C7: 2 | D7: An | E7: Inicio del identificador de modelo y página. | F7: <T
A8: =+A7+1 -> 2 | B8: =C7+B7 -> 3 | C8: 3 | D8: Num | E8: Modelo. | F8: 220
A9: 3 | B9: =C8+B8 -> 6 | C9: 2 | D9: An | E9: Página. | F9: 03
A10: 4 | B10: =B9+C9 -> 8 | C10: 1 | D10: An | E10: Letra | F10: A
A11: 5 | B11: 9 | C11: 2 | D11: Num | E11: Hoja | F11: 02
A12: 6 | B12: =C11+B11 -> 11 | C12: 1 | D12: An | E12: Fin de identificador de modelo y página. Constante ">". | F12: >
A13: 7 | B13: =C12+B12 -> 12 | C13: 1 | D13: An | E13: Indicador de página complementaria.
A14: 8 | B14: =C13+B13 -> 13 | C14: 3 | D14: Num | E14: Número de orden de la página complementaria
A15: 9 | B15: 16 | C15: 17 | D15: N | E15: ACTIVO. Efectivo y otros activos líquidos equivalentes. [00101]
A16: 10 | B16: 33 | C16: 17 | D16: N | E16: ACTIVO. Activos financieros mantenidos para negociar. [00102]
A17: 11 | B17: 50 | C17: 17 | D17: N | E17: ACTIVO. Activos financieros mantenidos para negociar.Instrumentos de patrimonio. [00103]
A18: =+A17+1 -> 12 | B18: 67 | C18: 17 | D18: N | E18: ACTIVO. Activos financieros mantenidos para negociar. Valores representativos de deuda. [00104]
A19: 13 | B19: 84 | C19: 17 | D19: N | E19: ACTIVO. Activos financieros mantenidos para negociar.Derivados. [00105]
A20: 14 | B20: 101 | C20: 17 | D20: N | E20: ACTIVO. Activos financieros mantenidos para negociar. Otros. [00106]
A21: 15 | B21: 118 | C21: 17 | D21: N | E21: ACTIVO. Otros activos financieros a valor razonable con cambios en pérdidas y ganancias. [00107]
A22: 16 | B22: 135 | C22: 17 | D22: N | E22: ACTIVO. Otros activos financieros a valor razonable con cambios en pérdidas y ganancias. Instrumentos de patrimonio. [00108]
A23: 17 | B23: 152 | C23: 17 | D23: N | E23: ACTIVO. Otros activos financieros a valor razonable con cambios en pérdidas y ganancias. Valores representativos de deuda. [00109]
A24: 18 | B24: 169 | C24: 17 | D24: N | E24: ACTIVO. Otros activos financieros a valor razonable con cambios en pérdidas y ganancias. Instrumentos híbridos. [00110]
A25: 19 | B25: 186 | C25: 17 | D25: N | E25: ACTIVO. Otros activos financieros a valor razonable con cambios en pérdidas y ganancias. nversiones por cuenta de los tomadores de seguros de vida que asuman el riesgo de la inversión. [00111]
A26: 20 | B26: 203 | C26: 17 | D26: N | E26: ACTIVO. Otros activos financieros a valor razonable con cambios en pérdidas y ganancias. Otros. [00112]
A27: 21 | B27: 220 | C27: 17 | D27: N | E27: ACTIVO. Activos financieros disponibles para la venta. [00113]
A28: 22 | B28: 237 | C28: 17 | D28: N | E28: ACTIVO. Activos financieros disponibles para la venta. Instrumentos de patrimonio. [00114]
A29: 23 | B29: 254 | C29: 17 | D29: N | E29: ACTIVO. Activos financieros disponibles para la venta. Valores representativos de deuda. [00115]
A30: 24 | B30: 271 | C30: 17 | D30: N | E30: ACTIVO. Activos financieros disponibles para la venta. Inversiones por cuenta de los tomadores de seguros de vida que asuman el riesgo de la inversión. [00116]
A31: 25 | B31: =C30+B30 -> 288 | C31: 17 | D31: N | E31: ACTIVO. Activos financieros disponibles para la venta. Otros. [00117]
A32: 26 | B32: 305 | C32: 17 | D32: N | E32: ACTIVO. Préstamos y partidas a cobrar. [00118]
A33: 27 | B33: 322 | C33: 17 | D33: N | E33: ACTIVO. Préstamos y partidas a cobrar. Valores representativos de deuda. [00119]
A34: 28 | B34: 339 | C34: 17 | D34: N | E34: ACTIVO. Préstamos y partidas a cobrar. Préstamos. [00120]
A35: 29 | B35: 356 | C35: 17 | D35: N | E35: ACTIVO. Préstamos y partidas a cobrar. Anticipos sobre pólizas. [00121]
A36: 30 | B36: 373 | C36: 17 | D36: N | E36: ACTIVO. Préstamos y partidas a cobrar. Préstamos a entidades del grupo y asociadas. [00122]
A37: =A36+1 -> 31 | B37: =B36+C36 -> 390 | C37: 17 | D37: N | E37: ACTIVO. Préstamos y partidas a cobrar. Préstamos a entidades del grupo y asociadas. Entidades asociadas [00700]
A38: =A37+1 -> 32 | B38: =B37+C37 -> 407 | C38: 17 | D38: N | E38: ACTIVO. Préstamos y partidas a cobrar. Préstamos a entidades del grupo y asociadas. Entidades multigrupo [00701]
A39: =A38+1 -> 33 | B39: =B38+C38 -> 424 | C39: 17 | D39: N | E39: ACTIVO. Préstamos y partidas a cobrar. Préstamos a entidades del grupo y asociadas. Otros [00702]
A40: =+A39+1 -> 34 | B40: =C39+B39 -> 441 | C40: 17 | D40: N | E40: ACTIVO. Préstamos y partidas a cobrar. Préstamos a otras partes vinculadas. [00123]
A41: 35 | B41: 458 | C41: 17 | D41: N | E41: ACTIVO. Préstamos y partidas a cobrar. Depósitos en entidades de crédito. [00124]
A42: 36 | B42: 475 | C42: 17 | D42: N | E42: ACTIVO. Préstamos y partidas a cobrar. Depósitos constituídos por reaseguro aceptado. [00125]
A43: 37 | B43: 492 | C43: 17 | D43: N | E43: ACTIVO. Préstamos y partidas a cobrar. Créditos por operaciones de seguro directo. [00126]
A44: 38 | B44: 509 | C44: 17 | D44: N | E44: ACTIVO. Préstamos y partidas a cobrar. Tomadores de seguro. [00127]
A45: 39 | B45: 526 | C45: 17 | D45: N | E45: ACTIVO. Préstamos y partidas a cobrar. Mediadores. [00128]
A46: 40 | B46: 543 | C46: 17 | D46: N | E46: ACTIVO. Préstamos y partidas a cobrar. Créditos por operaciones de reaseguro. [00129]
A47: 41 | B47: 560 | C47: 17 | D47: N | E47: ACTIVO. Préstamos y partidas a cobrar. Créditos por operaciones de coaseguro. [00130]
A48: 42 | B48: 577 | C48: 17 | D48: N | E48: ACTIVO. Préstamos y partidas a cobrar. Desembolsos exigidos. [00131]
A49: 43 | B49: 594 | C49: 17 | D49: N | E49: ACTIVO. Préstamos y partidas a cobrar. Otros créditos. [00132]
A50: 44 | B50: 611 | C50: 17 | D50: N | E50: ACTIVO. Préstamos y partidas a cobrar. Créditos con las Administraciones Públicas. [00133]
A51: 45 | B51: 628 | C51: 17 | D51: N | E51: ACTIVO. Préstamos y partidas a cobrar. Resto de créditos. [00134]
A52: 46 | B52: 645 | C52: 17 | D52: N | E52: ACTIVO. Cartera de inversión a vencimiento. [00135]
A53: 47 | B53: 662 | C53: 17 | D53: N | E53: ACTIVO. Derivados de cobertura. [00136]
A54: 48 | B54: 679 | C54: 17 | D54: N | E54: ACTIVO. Participación del reaseguro en las provisiones técnicas. [00137]
A55: 49 | B55: 696 | C55: 17 | D55: N | E55: ACTIVO. Participación del reaseguro en las provisiones técnicas.. Provisión para primas no consumidas. [00138]
A56: 50 | B56: 713 | C56: 17 | D56: N | E56: ACTIVO. Participación del reaseguro en las provisiones técnicas.Provisión de seguros de vida. [00139]
A57: 51 | B57: 730 | C57: 17 | D57: N | E57: ACTIVO. Participación del reaseguro en las provisiones técnicas.. Provisión para prestaciones. [00140]
A58: 52 | B58: 747 | C58: 17 | D58: N | E58: ACTIVO. Participación del reaseguro en las provisiones técnicas. Otras provisiones técnicas. [00141]
A59: 53 | B59: 764 | C59: 17 | D59: N | E59: ACTIVO. Inmovilizado material e inversiones inmobiliarias. [00142]
A60: 54 | B60: 781 | C60: 17 | D60: N | E60: ACTIVO. Inmovilizado material e inversiones inmobiliarias. Inmovilizado material. [00143]
A61: 55 | B61: 798 | C61: 17 | D61: N | E61: ACTIVO. Inmovilizado material e inversiones inmobiliarias. Inversiones inmobiliarias. [00144]
A62: =A61+1 -> 56 | B62: =B61+C61 -> 815 | C62: 12 | D62: An | E62: Fin de registro. | F62: </T22003A02>
A63: Total: | C63: =B62+C62-1 -> 826

Sheet T22003B02
B1: Agencia Tributaria
A3: =+T22001000!A3 -> Modelo 220 | C3: =+T22001000!C3 -> Diseño de registro. 2019
A4: =+T22001000!A4 -> Versión 1.9 | C4: Impuesto Sobre Sociedades. Régimen de consolidación Fiscal. GRUPO DE ENTIDADES ASEGURADORAS. BALANCE CONSOLIDADO: ACTIVO (II)
A6: Nº | B6: Posic. | C6: Lon | D6: Tipo | E6: Descripción | F6: Contenido
A7: 1 | B7: 1 | C7: 2 | D7: An | E7: Inicio del identificador de modelo y página. | F7: <T
A8: =+A7+1 -> 2 | B8: =C7+B7 -> 3 | C8: 3 | D8: Num | E8: Modelo. | F8: 220
A9: 3 | B9: =C8+B8 -> 6 | C9: 2 | D9: An | E9: Página. | F9: 03
A10: 4 | B10: =B9+C9 -> 8 | C10: 1 | D10: An | E10: Letra | F10: B
A11: 5 | B11: 9 | C11: 2 | D11: Num | E11: Hoja | F11: 02
A12: 6 | B12: =C11+B11 -> 11 | C12: 1 | D12: An | E12: Fin de identificador de modelo y página. Constante ">". | F12: >
A13: 7 | B13: =C12+B12 -> 12 | C13: 1 | D13: An | E13: Indicador de página complementaria.
A14: 8 | B14: =B13+C13 -> 13 | C14: 3 | D14: Num | E14: Número de orden de la página complementaria
A15: 9 | B15: =B14+C14 -> 16 | C15: 17 | D15: N | E15: ACTIVO. Inmovilizado intangible. [00145]
A16: 10 | B16: 33 | C16: 17 | D16: N | E16: ACTIVO. Inmovilizado intangible. Fondo de comercio. [00647]
A17: 11 | B17: 50 | C17: 17 | D17: N | E17: ACTIVO. Inmovilizado intangible. Fondo de comercio de consolidación. [00648]
A18: 12 | B18: 67 | C18: 17 | D18: N | E18: ACTIVO. Inmovilizado intangible. Otros. [00146]
A19: 13 | B19: =C18+B18 -> 84 | C19: 17 | D19: N | E19: ACTIVO. Inmovilizado intangible. Derechos económicos derivados de carteras de pólizas adquiridas a mediadores. [00147]
A20: 14 | B20: 101 | C20: 17 | D20: N | E20: ACTIVO. Inmovilizado intangible. Otro activo intangible. [00148]
A21: 15 | B21: 118 | C21: 17 | D21: N | E21: ACTIVO. Participaciones en sociedades puestas en equivalencia. [00149]
A22: 16 | B22: =C21+B21 -> 135 | C22: 17 | D22: N | E22: ACTIVO. Participaciones en Empresas asociadas. [00150]
A23: 17 | B23: 152 | C23: 17 | D23: N | E23: ACTIVO. Participaciones en empresas multigrupo. [00151]
A24: 18 | B24: =B23+C23 -> 169 | C24: 17 | D24: N | E24: ACTIVO. Participaciones en entidades del grupo y asociadas. [00152]
A25: =+A24+1 -> 19 | B25: =B24+C24 -> 186 | C25: 17 | D25: N | E25: ACTIVO. Activos fiscales. [00153]
A26: =+A25+1 -> 20 | B26: 203 | C26: 17 | D26: N | E26: ACTIVO. Activos fiscales. Activos por impuesto corriente. [00154]
A27: =+A26+1 -> 21 | B27: =C26+B26 -> 220 | C27: 17 | D27: N | E27: ACTIVO. Activos fiscales. Activos por impuesto diferido. [00155]
A28: 22 | B28: 237 | C28: 17 | D28: N | E28: ACTIVO. Otros activos. [00156]
A29: 23 | B29: 254 | C29: 17 | D29: N | E29: ACTIVO. Otros activos. Activos y derechos de reembolso por retribuciones a largo plazo al personal. [00157]
A30: 24 | B30: 271 | C30: 17 | D30: N | E30: ACTIVO. Otros activos. Comisiones anticipadas y otros costes de adquisición. [00158]
A31: 25 | B31: 288 | C31: 17 | D31: N | E31: ACTIVO. Otros activos. Periodificaciones. [00159]
A32: 26 | B32: 305 | C32: 17 | D32: N | E32: ACTIVO. Otros activos. Resto de activos. [00160]
A33: 27 | B33: 322 | C33: 17 | D33: N | E33: ACTIVO. Activos y grupos de activos en venta. [00161]
A34: 28 | B34: 339 | C34: 17 | D34: N | E34: ACTIVO. TOTAL ACTIVO. [00162]
A35: 29 | B35: 356 | C35: 12 | D35: An | E35: Fin de registro. | F35: </T22003B02>
A36: Total: | C36: =B35+C35-1 -> 367

Sheet T22003C02
B1: Agencia Tributaria
A3: =+T22001000!A3 -> Modelo 220 | C3: =+T22001000!C3 -> Diseño de registro. 2019
A4: =+T22001000!A4 -> Versión 1.9 | C4: Impuesto Sobre Sociedades. Régimen de consolidación Fiscal. GRUPO DE ENTIDADES ASEGURADORAS. BALANCE CONSOLIDADO: PASIVO Y PATRIMONIO NETO (I)
A6: Nº | B6: Posic. | C6: Lon | D6: Tipo | E6: Descripción | F6: Contenido
A7: 1 | B7: 1 | C7: 2 | D7: An | E7: Inicio del identificador de modelo y página. | F7: <T
A8: =+A7+1 -> 2 | B8: =C7+B7 -> 3 | C8: 3 | D8: Num | E8: Modelo. | F8: 220
A9: 3 | B9: =C8+B8 -> 6 | C9: 2 | D9: An | E9: Página. | F9: 03
A10: 4 | B10: =B9+C9 -> 8 | C10: 1 | D10: An | E10: Letra | F10: C
A11: 5 | B11: 9 | C11: 2 | D11: Num | E11: Hoja | F11: 02
A12: 6 | B12: =C11+B11 -> 11 | C12: 1 | D12: An | E12: Fin de identificador de modelo y página. Constante ">". | F12: >
A13: 7 | B13: =C12+B12 -> 12 | C13: 1 | D13: An | E13: Indicador de página complementaria.
A14: 8 | B14: =C13+B13 -> 13 | C14: 3 | D14: Num | E14: Número de orden de la página complementaria
A15: =+A14+1 -> 9 | B15: =C14+B14 -> 16 | C15: 17 | D15: N | E15: PASIVO. Pasivos financieros mantenidos para negociar. [00163]
A16: 10 | B16: 33 | C16: 17 | D16: N | E16: PASIVO. Otros pasivos financieros a valor razonable con cambios en pérdidas y ganancias. [00164]
A17: 11 | B17: 50 | C17: 17 | D17: N | E17: PASIVO. Débitos y partidas a pagar. [00165]
A18: 12 | B18: 67 | C18: 17 | D18: N | E18: PASIVO. Débitos y partidas a pagar. Pasivos subordinados. [00166]
A19: 13 | B19: 84 | C19: 17 | D19: N | E19: PASIVO. Débitos y partidas a pagar. Depósitos recibidos por reaseguro cedido. [00167]
A20: 14 | B20: 101 | C20: 17 | D20: N | E20: PASIVO. Débitos y partidas a pagar. Deudas por operaciones de seguro. [00168]
A21: 15 | B21: 118 | C21: 17 | D21: N | E21: PASIVO. Débitos y partidas a pagar. Deudas con asegurados. [00169]
A22: 16 | B22: 135 | C22: 17 | D22: N | E22: PASIVO. Débitos y partidas a pagar. Deudas con mediadores. [00170]
A23: 17 | B23: 152 | C23: 17 | D23: N | E23: PASIVO. Débitos y partidas a pagar. Deudas condicionadas. [00171]
A24: 18 | B24: 169 | C24: 17 | D24: N | E24: PASIVO. Débitos y partidas a pagar. Deudas por operaciones de reaseguro. [00172]
A25: 19 | B25: 186 | C25: 17 | D25: N | E25: PASIVO. Débitos y partidas a pagar. Deudas por operaciones de coaseguro. [00173]
A26: 20 | B26: 203 | C26: 17 | D26: N | E26: PASIVO. Débitos y partidas a pagar. Obligaciones y otros valores negociables. [00174]
A27: 21 | B27: 220 | C27: 17 | D27: N | E27: PASIVO. Débitos y partidas a pagar. Deudas con entidades de crédito. [00175]
A28: 22 | B28: 237 | C28: 17 | D28: N | E28: PASIVO. Débitos y partidas a pagar. Deudas por operaciones preparatorias de contratos de seguro. [00176]
A29: 23 | B29: 254 | C29: 17 | D29: N | E29: PASIVO. Débitos y partidas a pagar. Otras deudas. [00177]
A30: 24 | B30: 271 | C30: 17 | D30: N | E30: PASIVO. Débitos y partidas a pagar. Otras deudas. Deudas con las Administraciones Públicas. [00178]
A31: 25 | B31: 288 | C31: 17 | D31: N | E31: PASIVO. Débitos y partidas a pagar. Otras deudas. Otras deudas con entidades del grupo y asociadas. [00179]
A32: =A31+1 -> 26 | B32: =B31+C31 -> 305 | C32: 17 | D32: N | E32: PASIVO. Débitos y partidas a pagar. Otras deudas. Otras deudas con entidades del grupo y asociadas. Entidades asociadas [00703]
A33: =A32+1 -> 27 | B33: =B32+C32 -> 322 | C33: 17 | D33: N | E33: PASIVO. Débitos y partidas a pagar. Otras deudas. Otras deudas con entidades del grupo y asociadas. Entidades multigrupo [00704]
A34: =A33+1 -> 28 | B34: =B33+C33 -> 339 | C34: 17 | D34: N | E34: PASIVO. Débitos y partidas a pagar. Otras deudas. Otras deudas con entidades del grupo y asociadas. Otros [00705]
A35: =+A34+1 -> 29 | B35: =C34+B34 -> 356 | C35: 17 | D35: N | E35: PASIVO. Débitos y partidas a pagar. Otras deudas. Resto de otras deudas. [00180]
A36: 30 | B36: 373 | C36: 17 | D36: N | E36: PASIVO. Derivados de cobertura. [00181]
A37: 31 | B37: 390 | C37: 17 | D37: N | E37: PASIVO. Provisiones técnicas. [00182]
A38: 32 | B38: 407 | C38: 17 | D38: N | E38: PASIVO. Provisiones técnicas. Provisión para primas no consumidas. [00183]
A39: 33 | B39: 424 | C39: 17 | D39: N | E39: PASIVO. Provisiones técnicas. Provisión para riesgos en curso. [00184]
A40: 34 | B40: 441 | C40: 17 | D40: N | E40: PASIVO. Provisiones técnicas. Provisión de seguros de vida. [00185]
A41: =+A40+1 -> 35 | B41: =C40+B40 -> 458 | C41: 17 | D41: N | E41: PASIVO. Provisiones técnicas. Provisión de seguros de vida. Provisión para primas no consumidas. [00186]
A42: 36 | B42: 475 | C42: 17 | D42: N | E42: PASIVO. Provisiones técnicas. Provisión de seguros de vida. Provisión para riesgos en curso. [00187]
A43: 37 | B43: 492 | C43: 17 | D43: N | E43: PASIVO. Provisiones técnicas. Provisión de seguros de vida. Provisión matemática. [00188]
A44: 38 | B44: 509 | C44: 17 | D44: N | E44: PASIVO. Provisiones técnicas. Provisión de seguros de vida. Provisión de seguros de vida cuando el riesgo de la inversión lo asuma el tomador. [00189]
A45: 39 | B45: 526 | C45: 17 | D45: N | E45: PASIVO. Provisiones técnicas. Provisión para prestaciones. [00190]
A46: 40 | B46: 543 | C46: 17 | D46: N | E46: PASIVO. Provisiones técnicas. Provisión para participación en benefi cios y para extornos. [00191]
A47: 41 | B47: 560 | C47: 17 | D47: N | E47: PASIVO. Provisiones técnicas. Otras provisiones técnicas. [00192]
A48: 42 | B48: 577 | C48: 17 | D48: N | E48: PASIVO. Provisiones no técnicas. [00193]
A49: 43 | B49: 594 | C49: 17 | D49: N | E49: PASIVO. Provisiones no técnicas. Provisiones para impuestos y otras contingencias legales. [00194]
A50: 44 | B50: 611 | C50: 17 | D50: N | E50: PASIVO. Provisiones no técnicas. Provisión para pensiones y obligaciones similares. [00195]
A51: 45 | B51: 628 | C51: 17 | D51: N | E51: PASIVO. Provisiones no técnicas. Provisión para pagos por convenios de liquidación. [00196]
A52: 46 | B52: 645 | C52: 17 | D52: N | E52: PASIVO. Provisiones no técnicas. Otras provisiones no técnicas. [00197]
A53: 47 | B53: 662 | C53: 17 | D53: N | E53: PASIVO. Pasivos fiscales. [00198]
A54: 48 | B54: 679 | C54: 17 | D54: N | E54: PASIVO. Pasivos fiscales. Pasivos por impuesto corriente. [00199]
A55: 49 | B55: 696 | C55: 17 | D55: N | E55: PASIVO. Pasivos fiscales. Pasivos por impuesto diferido. [00200]
A56: 50 | B56: 713 | C56: 17 | D56: N | E56: PASIVO. Resto de pasivos. [00201]
A57: 51 | B57: 730 | C57: 17 | D57: N | E57: PASIVO. Resto de pasivos. Periodificaciones. [00202]
A58: 52 | B58: 747 | C58: 17 | D58: N | E58: PASIVO. Resto de pasivos. Pasivos por asimetrías contables. [00203]
A59: 53 | B59: 764 | C59: 17 | D59: N | E59: PASIVO. Resto de pasivos. Comisiones y otros costes de adquisición del reaseguro cedido. [00204]
A60: 54 | B60: 781 | C60: 17 | D60: N | E60: PASIVO. Resto de pasivos. Otros pasivos. [00205]
A61: 55 | B61: 798 | C61: 17 | D61: N | E61: PASIVO. Pasivos vinculados con activos mantenidos para la venta. [00206]
A62: 56 | B62: 815 | C62: 17 | D62: N | E62: PASIVO. TOTAL PASIVO. [00207]
A63: =A62+1 -> 57 | B63: =B62+C62 -> 832 | C63: 12 | D63: An | E63: Fin de registro. | F63: </T22003C02>
A64: Total: | C64: =B63+C63-1 -> 843

Sheet T22003D02
B1: Agencia Tributaria
A3: =+T22001000!A3 -> Modelo 220 | C3: =+T22001000!C3 -> Diseño de registro. 2019
A4: =+T22001000!A4 -> Versión 1.9 | C4: Impuesto Sobre Sociedades. Régimen de consolidación Fiscal. GRUPO DE ENTIDADES ASEGURADORAS. BALANCE CONSOLIDADO: PASIVO Y PATRIMONIO NETO (II)
A6: Nº | B6: Posic. | C6: Lon | D6: Tipo | E6: Descripción | F6: Contenido
A7: 1 | B7: 1 | C7: 2 | D7: An | E7: Inicio del identificador de modelo y página. | F7: <T
A8: =+A7+1 -> 2 | B8: =C7+B7 -> 3 | C8: 3 | D8: Num | E8: Modelo. | F8: 220
A9: 3 | B9: =C8+B8 -> 6 | C9: 2 | D9: An | E9: Página. | F9: 03
A10: 4 | B10: =B9+C9 -> 8 | C10: 1 | D10: An | E10: Letra | F10: D
A11: 5 | B11: 9 | C11: 2 | D11: Num | E11: Hoja | F11: 02
A12: 6 | B12: =C11+B11 -> 11 | C12: 1 | D12: An | E12: Fin de identificador de modelo y página. Constante ">". | F12: >
A13: 7 | B13: =C12+B12 -> 12 | C13: 1 | D13: An | E13: Indicador de página complementaria.
A14: 8 | B14: =C13+B13 -> 13 | C14: 3 | D14: Num | E14: Número de orden de la página complementaria
A15: 9 | B15: 16 | C15: 17 | D15: N | E15: PATRIMONIO NETO. Fondos propios. [00208]
A16: 10 | B16: 33 | C16: 17 | D16: N | E16: PATRIMONIO NETO. Fondos propios. Capital o fondo mutual. [00209]
A17: 11 | B17: 50 | C17: 17 | D17: N | E17: PATRIMONIO NETO. Fondos propios. Capital escriturado o fondo mutual. [00210]
A18: 12 | B18: 67 | C18: 17 | D18: N | E18: PATRIMONIO NETO. Fondos propios. (Capital no exigido). [00211]
A19: 13 | B19: 84 | C19: 17 | D19: N | E19: PATRIMONIO NETO. Fondos propios. Prima de emisión. [00212]
A20: 14 | B20: 101 | C20: 17 | D20: N | E20: PATRIMONIO NETO. Fondos propios. Reservas. [00213]
A21: 15 | B21: 118 | C21: 17 | D21: N | E21: PATRIMONIO NETO. Fondos propios. Reservas. Legal y estatutarias. [00214]
A22: 16 | B22: 135 | C22: 17 | D22: N | E22: PATRIMONIO NETO. Fondos propios. Reservas. Reserva de estabilización. [00215]
A23: 17 | B23: 152 | C23: 17 | D23: N | E23: PATRIMONIO NETO. Fondos propios. Reservas. Reservas en sociedades consolidadas. [00649]
A24: 18 | B24: =C23+B23 -> 169 | C24: 17 | D24: N | E24: PATRIMONIO NETO. Fondos propios. Reservas. Reservas en sociedades puestas en equivalencia. [00728]
A25: 19 | B25: 186 | C25: 17 | D25: N | E25: PATRIMONIO NETO. Fondos propios. Reservas. Reserva de capitalización [00734]
A26: 20 | B26: 203 | C26: 17 | D26: N | E26: PATRIMONIO NETO. Fondos propios. Reservas. Reserva de nivelación [00735]
A27: 21 | B27: 220 | C27: 17 | D27: N | E27: PATRIMONIO NETO. Fondos propios. Reservas. Otras reservas. [00216]
A28: 22 | B28: 237 | C28: 17 | D28: N | E28: PATRIMONIO NETO. Fondos propios. (Acciones y participaciones en patrimonio propias y de la sociedad dominante). [00217]
A29: 23 | B29: 254 | C29: 17 | D29: N | E29: PATRIMONIO NETO. Fondos propios. Resultados de ejercicios anteriores. [00218]
A30: 24 | B30: 271 | C30: 17 | D30: N | E30: PATRIMONIO NETO. Fondos propios. Resultados de ejercicios anteriores. Remanente. [00219]
A31: 25 | B31: 288 | C31: 17 | D31: N | E31: PATRIMONIO NETO. Fondos propios. Resultados de ejercicios anteriores. (Resultados negativos de ejercicios anteriores atribuidos a la sociedad dominante). [00220]
A32: 26 | B32: 305 | C32: 17 | D32: N | E32: PATRIMONIO NETO. Fondos propios. Otras aportaciones de socios y mutualistas. [00221]
A33: 27 | B33: 322 | C33: 17 | D33: N | E33: PATRIMONIO NETO. Fondos propios. Resultado del ejercicio atribuido a la sociedad dominante. [00692]
A34: 28 | B34: 339 | C34: 17 | D34: N | E34: PATRIMONIO NETO. Fondos propios. Resultado del ejercicio atribuido a la sociedad dominante. Pérdidas y ganancias consolidadas. [00222]
A35: 29 | B35: 356 | C35: 17 | D35: N | E35: PATRIMONIO NETO. Fondos propios. Resultado del ejercicio atribuido a la sociedad dominante. (Pérdidas y ganancias socios externos). [00693]
A36: 30 | B36: 373 | C36: 17 | D36: N | E36: PATRIMONIO NETO. Fondos propios. (Dividendo a cuenta y reserva de estabilización a cuenta). [00223]
A37: 31 | B37: 390 | C37: 17 | D37: N | E37: PATRIMONIO NETO. Fondos propios. Otros instrumentos de patrimonio neto. [00224]
A38: 32 | B38: 407 | C38: 17 | D38: N | E38: PATRIMONIO NETO. Ajustes por cambios de valor. [00225]
A39: 33 | B39: 424 | C39: 17 | D39: N | E39: PATRIMONIO NETO. Ajustes por cambios de valor. Activos financieros disponibles para la venta. [00226]
A40: 34 | B40: 441 | C40: 17 | D40: N | E40: PATRIMONIO NETO. Ajustes por cambios de valor. Operaciones de cobertura. [00227]
A41: 35 | B41: 458 | C41: 17 | D41: N | E41: PATRIMONIO NETO. Ajustes por cambios de valor. Diferencias de cambio y conversión. [00228]
A42: 36 | B42: 475 | C42: 17 | D42: N | E42: PATRIMONIO NETO. Ajustes por cambios de valor. Corrección de asimetrías contables. [00229]
A43: 37 | B43: 492 | C43: 17 | D43: N | E43: PATRIMONIO NETO. Ajustes por cambios de valor. Sociedades puestas en equivalencia. [00729]
A44: 38 | B44: =C43+B43 -> 509 | C44: 17 | D44: N | E44: PATRIMONIO NETO. Ajustes por cambios de valor. Otros ajustes. [00230]
A45: =+A44+1 -> 39 | B45: =C44+B44 -> 526 | C45: 17 | D45: N | E45: PATRIMONIO NETO. Subvenciones, donaciones y legados recibidos. [00231]
A46: 40 | B46: 543 | C46: 17 | D46: N | E46: PATRIMONIO NETO. Socios externos. [00652]
A47: 41 | B47: 560 | C47: 17 | D47: N | E47: PATRIMONIO NETO. Socios externos. Ajustes por valoración. [00694]
A48: 42 | B48: 577 | C48: 17 | D48: N | E48: PATRIMONIO NETO. Socios externos. Resto. [00695]
A49: 43 | B49: 594 | C49: 17 | D49: N | E49: PATRIMONIO NETO. TOTAL PATRIMONIO NETO. [00232]
A50: 44 | B50: 611 | C50: 17 | D50: N | E50: PATRIMONIO NETO. TOTAL PASIVO Y PATRIMONIO NETO. [00233]
A51: 45 | B51: 628 | C51: 12 | D51: An | E51: Fin de registro. | F51: </T22003D02>
A52: Total: | C52: =B51+C51-1 -> 639

Sheet T22004A02
B1: Agencia Tributaria
A3: =+T22001000!A3 -> Modelo 220 | C3: =+T22001000!C3 -> Diseño de registro. 2019
A4: =+T22001000!A4 -> Versión 1.9 | C4: Impuesto Sobre Sociedades. Régimen de consolidación Fiscal. GRUPO DE ENTIDADES ASEGURADORAS. CUENTA DE PÉRDIDAS Y GANACIAS CONSOLIDADA (I)
A6: Nº | B6: Posic. | C6: Lon | D6: Tipo | E6: Descripción | F6: Contenido
A7: 1 | B7: 1 | C7: 2 | D7: An | E7: Inicio del identificador de modelo y página. | F7: <T
A8: =+A7+1 -> 2 | B8: =C7+B7 -> 3 | C8: 3 | D8: Num | E8: Modelo. | F8: 220
A9: 3 | B9: =C8+B8 -> 6 | C9: 2 | D9: An | E9: Página. | F9: 04
A10: 4 | B10: =B9+C9 -> 8 | C10: 1 | D10: An | E10: Letra | F10: A
A11: 5 | B11: 9 | C11: 2 | D11: Num | E11: Hoja | F11: 02
A12: 6 | B12: =C11+B11 -> 11 | C12: 1 | D12: An | E12: Fin de identificador de modelo y página. Constante ">". | F12: >
A13: 7 | B13: =C12+B12 -> 12 | C13: 1 | D13: An | E13: Indicador de página complementaria.
A14: 8 | B14: =C13+B13 -> 13 | C14: 3 | D14: Num | E14: Número de orden de la página complementaria
A15: 9 | B15: 16 | C15: 17 | D15: N | E15: CUENTA TÉCNICA SEGURO NO VIDA. Primas imputadas al ejercicio, netas de reaseguro. [00234]
A16: =+A15+1 -> 10 | B16: =C15+B15 -> 33 | C16: 17 | D16: N | E16: CUENTA TÉCNICA SEGURO NO VIDA. Primas imputadas al ejercicio, netas de reaseguro. Primas devengadas. [00235]
A17: 11 | B17: 50 | C17: 17 | D17: N | E17: CUENTA TÉCNICA SEGURO NO VIDA. Primas imputadas al ejercicio, netas de reaseguro. Primas devengadas. Seguro directo. [00236]
A18: 12 | B18: 67 | C18: 17 | D18: N | E18: CUENTA TÉCNICA SEGURO NO VIDA. Primas imputadas al ejercicio, netas de reaseguro. Primas devengadas. Reaseguro aceptado. [00237]
A19: 13 | B19: 84 | C19: 17 | D19: N | E19: CUENTA TÉCNICA SEGURO NO VIDA. Primas imputadas al ejercicio, netas de reaseguro. Primas devengadas. Variación de la corrección por deterioro de las primas pendientes de cobro (+ ó -). [00238]
A20: 14 | B20: 101 | C20: 17 | D20: N | E20: CUENTA TÉCNICA SEGURO NO VIDA. Primas imputadas al ejercicio, netas de reaseguro. Primas del reaseguro cedido (-). [00239]
A21: 15 | B21: 118 | C21: 17 | D21: N | E21: CUENTA TÉCNICA SEGURO NO VIDA. Primas imputadas al ejercicio, netas de reaseguro. Variación de la provisión para primas no consumidas y para riesgos en curso (+ ó -). [00240]
A22: 16 | B22: 135 | C22: 17 | D22: N | E22: CUENTA TÉCNICA SEGURO NO VIDA. Primas imputadas al ejercicio, netas de reaseguro.Variación de la provisión para primas no consumidas y para riesgos en curso (+ ó -). Seguro directo. [00241]
A23: 17 | B23: 152 | C23: 17 | D23: N | E23: CUENTA TÉCNICA SEGURO NO VIDA. Primas imputadas al ejercicio, netas de reaseguro. Variación de la provisión para primas no consumidas y para riesgos en curso (+ ó -). Reaseguro aceptado. [00242]
A24: 18 | B24: 169 | C24: 17 | D24: N | E24: CUENTA TÉCNICA SEGURO NO VIDA. Primas imputadas al ejercicio, netas de reaseguro. Variación de la provisión para primas no consumidas, reaseguro cedido (+ ó -). [00243]
A25: 19 | B25: 186 | C25: 17 | D25: N | E25: CUENTA TÉCNICA SEGURO NO VIDA. Ingresos del inmovilizado material y de las inversiones. [00244]
A26: 20 | B26: 203 | C26: 17 | D26: N | E26: CUENTA TÉCNICA SEGURO NO VIDA. Ingresos del inmovilizado material y de las inversiones. Ingresos procedentes de las inversiones inmobiliarias. [00245]
A27: 21 | B27: 220 | C27: 17 | D27: N | E27: CUENTA TÉCNICA SEGURO NO VIDA. Ingresos del inmovilizado material y de las inversiones. Ingresos procedentes de las inversiones fi nancieras. [00246]
A28: 22 | B28: 237 | C28: 17 | D28: N | E28: CUENTA TÉCNICA SEGURO NO VIDA. Ingresos del inmovilizado material y de las inversiones. Aplicaciones de correcciones de valor por deterioro del inmovilizado material y de las inversiones. [00247]
A29: 23 | B29: 254 | C29: 17 | D29: N | E29: CUENTA TÉCNICA SEGURO NO VIDA. Ingresos del inmovilizado material y de las inversiones. Aplicaciones de correcciones de valor por deterioro del inmovilizado material y de las inversiones. Del inmovilizado material y de las inversiones inmobiliarias. [00248]
A30: 24 | B30: 271 | C30: 17 | D30: N | E30: CUENTA TÉCNICA SEGURO NO VIDA. Ingresos del inmovilizado material y de las inversiones. Aplicaciones de correcciones de valor por deterioro del inmovilizado material y de las inversiones. De inversiones financieras. [00249]
A31: 25 | B31: 288 | C31: 17 | D31: N | E31: CUENTA TÉCNICA SEGURO NO VIDA. Ingresos del inmovilizado material y de las inversiones. Beneficios en realización del inmovilizado material y de las inversiones. [00250]
A32: 26 | B32: 305 | C32: 17 | D32: N | E32: CUENTA TÉCNICA SEGURO NO VIDA. Ingresos del inmovilizado material y de las inversiones. Beneficios en realización del inmovilizado material y de las inversiones. Del inmovilizado material y de las inversiones inmobiliarias. [00251]
A33: 27 | B33: 322 | C33: 17 | D33: N | E33: CUENTA TÉCNICA SEGURO NO VIDA. Ingresos del inmovilizado material y de las inversiones. Beneficios en realización del inmovilizado material y de las inversiones. De inversiones financieras. [00252]
A34: =A33+1 -> 28 | B34: =B33+C33 -> 339 | C34: 17 | D34: N | E34: CUENTA TÉCNICA SEGURO NO VIDA. Ingresos del inmovilizado material y de las inversiones. Ingresos de entidades incluidas en la consolidación. [00706]
A35: =A34+1 -> 29 | B35: =B34+C34 -> 356 | C35: 17 | D35: N | E35: CUENTA TÉCNICA SEGURO NO VIDA. Ingresos del inmovilizado material y de las inversiones. Ingresos de entidades incluidas en la consolidación. Participación en beneficios de entidades puestas en equivalencia [00707]
A36: =A35+1 -> 30 | B36: =B35+C35 -> 373 | C36: 17 | D36: N | E36: CUENTA TÉCNICA SEGURO NO VIDA. Ingresos del inmovilizado material y de las inversiones. Ingresos de entidades incluidas en la consolidación. Beneficios por enajenación de participaciones en sociedades puestas en equivalencia. [00708]
A37: =+A36+1 -> 31 | B37: =C36+B36 -> 390 | C37: 17 | D37: N | E37: CUENTA TÉCNICA SEGURO NO VIDA. Ingresos del inmovilizado material y de las inversiones. Beneficios por la enajenación de participaciones en sociedades consolidadas. [00696]
A38: 32 | B38: 407 | C38: 17 | D38: N | E38: CUENTA TÉCNICA SEGURO NO VIDA. Otros ingresos técnicos. [00253]
A39: 33 | B39: 424 | C39: 17 | D39: N | E39: CUENTA TÉCNICA SEGURO NO VIDA. Siniestralidad del ejercicio, neta de reaseguro. [00254]
A40: 34 | B40: 441 | C40: 17 | D40: N | E40: CUENTA TÉCNICA SEGURO NO VIDA. Siniestralidad del ejercicio, neta de reaseguro. Prestaciones y gastos pagados. [00255]
A41: 35 | B41: 458 | C41: 17 | D41: N | E41: CUENTA TÉCNICA SEGURO NO VIDA. Siniestralidad del ejercicio, neta de reaseguro. Prestaciones y gastos pagados. Seguro directo. [00256]
A42: 36 | B42: 475 | C42: 17 | D42: N | E42: CUENTA TÉCNICA SEGURO NO VIDA. Siniestralidad del ejercicio, neta de reaseguro. Prestaciones y gastos pagados. Reaseguro aceptado. [00257]
A43: 37 | B43: 492 | C43: 17 | D43: N | E43: CUENTA TÉCNICA SEGURO NO VIDA. Siniestralidad del ejercicio, neta de reaseguro. Prestaciones y gastos pagados. Reaseguro cedido (-). [00258]
A44: 38 | B44: 509 | C44: 17 | D44: N | E44: CUENTA TÉCNICA SEGURO NO VIDA. Siniestralidad del ejercicio, neta de reaseguro. Variación de la provisión para prestaciones (+ ó -). [00259]
A45: 39 | B45: 526 | C45: 17 | D45: N | E45: CUENTA TÉCNICA SEGURO NO VIDA. Siniestralidad del ejercicio, neta de reaseguro. Variación de la provisión para prestaciones (+ ó -). Seguro directo. [00260]
A46: 40 | B46: 543 | C46: 17 | D46: N | E46: CUENTA TÉCNICA SEGURO NO VIDA. Siniestralidad del ejercicio, neta de reaseguro. Variación de la provisión para prestaciones (+ ó -). Reaseguro aceptado. [00261]
A47: 41 | B47: 560 | C47: 17 | D47: N | E47: CUENTA TÉCNICA SEGURO NO VIDA. Siniestralidad del ejercicio, neta de reaseguro. Variación de la provisión para prestaciones (+ ó -). Reaseguro cedido (-). [00262]
A48: =+A47+1 -> 42 | B48: 577 | C48: 17 | D48: N | E48: CUENTA TÉCNICA SEGURO NO VIDA. Siniestralidad del ejercicio, neta de reaseguro. Gastos imputables a prestaciones. [00263]
A49: =+A48+1 -> 43 | B49: 594 | C49: 17 | D49: N | E49: CUENTA TÉCNICA SEGURO NO VIDA. Variación de otras provisiones técnicas, netas de reaseguro (+ ó -). [00264]
A50: 44 | B50: =C49+B49 -> 611 | C50: 17 | D50: N | E50: CUENTA TÉCNICA SEGURO NO VIDA. Participación en beneficios y extornos. [00265]
A51: 45 | B51: 628 | C51: 17 | D51: N | E51: CUENTA TÉCNICA SEGURO NO VIDA. Participación en beneficios y extornos. Prestaciones y gastos por participación en beneficios y extornos. [00266]
A52: 46 | B52: 645 | C52: 17 | D52: N | E52: CUENTA TÉCNICA SEGURO NO VIDA. Participación en beneficios y extornos. Variación de la provisión para participación en benefi cios y extornos (+ ó -). [00267]
A53: 47 | B53: 662 | C53: 17 | D53: N | E53: CUENTA TÉCNICA SEGURO NO VIDA. Gastos de explotación netos. [00268]
A54: 48 | B54: 679 | C54: 17 | D54: N | E54: CUENTA TÉCNICA SEGURO NO VIDA. Gastos de explotación netos. Gastos de adquisición. [00269]
A55: 49 | B55: 696 | C55: 17 | D55: N | E55: CUENTA TÉCNICA SEGURO NO VIDA. Gastos de explotación netos. Gastos de administración. [00270]
A56: 50 | B56: 713 | C56: 17 | D56: N | E56: CUENTA TÉCNICA SEGURO NO VIDA. Gastos de explotación netos. Comisiones y participaciones en el reaseguro cedido y retrocedido. [00271]
A57: 51 | B57: 730 | C57: 17 | D57: N | E57: CUENTA TÉCNICA SEGURO NO VIDA. Otros gastos técnicos (+ ó -). [00272]
A58: 52 | B58: 747 | C58: 17 | D58: N | E58: CUENTA TÉCNICA SEGURO NO VIDA. Otros gastos técnicos (+ ó -). Variación del deterioro por insolvencias (+ ó -). [00273]
A59: 53 | B59: 764 | C59: 17 | D59: N | E59: CUENTA TÉCNICA SEGURO NO VIDA. Otros gastos técnicos (+ ó -). Variación del deterioro del inmovilizado (+ ó -). [00274]
A60: 54 | B60: 781 | C60: 17 | D60: N | E60: CUENTA TÉCNICA SEGURO NO VIDA. Otros gastos técnicos (+ ó -). Variación de prestaciones por convenios de liquidación de siniestros (+ ó -). [00275]
A61: 55 | B61: 798 | C61: 17 | D61: N | E61: CUENTA TÉCNICA SEGURO NO VIDA. Otros gastos técnicos (+ ó -). Otros. [00276]
A62: =A61+1 -> 56 | B62: =B61+C61 -> 815 | C62: 12 | D62: An | E62: Fin de registro. | F62: </T22004A02>
A63: Total: | C63: =B62+C62-1 -> 826

Sheet T22004B02
B1: Agencia Tributaria
A3: =+T22001000!A3 -> Modelo 220 | C3: =+T22001000!C3 -> Diseño de registro. 2019
A4: =+T22001000!A4 -> Versión 1.9 | C4: Impuesto Sobre Sociedades. Régimen de consolidación Fiscal. GRUPO DE ENTIDADES ASEGURADORAS. CUENTA DE PÉRDIDAS Y GANACIAS CONSOLIDADA (II)
A6: Nº | B6: Posic. | C6: Lon | D6: Tipo | E6: Descripción | F6: Contenido
A7: 1 | B7: 1 | C7: 2 | D7: An | E7: Inicio del identificador de modelo y página. | F7: <T
A8: =+A7+1 -> 2 | B8: =C7+B7 -> 3 | C8: 3 | D8: Num | E8: Modelo. | F8: 220
A9: 3 | B9: =C8+B8 -> 6 | C9: 2 | D9: An | E9: Página. | F9: 04
A10: 4 | B10: =B9+C9 -> 8 | C10: 1 | D10: An | E10: Letra | F10: B
A11: 5 | B11: 9 | C11: 2 | D11: Num | E11: Hoja | F11: 02
A12: 6 | B12: =C11+B11 -> 11 | C12: 1 | D12: An | E12: Fin de identificador de modelo y página. Constante ">". | F12: >
A13: 7 | B13: =C12+B12 -> 12 | C13: 1 | D13: An | E13: Indicador de página complementaria.
A14: 8 | B14: =C13+B13 -> 13 | C14: 3 | D14: Num | E14: Número de orden de la página complementaria
A15: =+A14+1 -> 9 | B15: =C14+B14 -> 16 | C15: 17 | D15: N | E15: CUENTA TÉCNICA SEGURO NO VIDA. Gastos del inmovilizado material y de las inversiones. [00277]
A16: 10 | B16: 33 | C16: 17 | D16: N | E16: CUENTA TÉCNICA SEGURO NO VIDA. Gastos del inmovilizado material y de las inversiones. Gastos de gestión de las inversiones. [00278]
A17: 11 | B17: 50 | C17: 17 | D17: N | E17: CUENTA TÉCNICA SEGURO NO VIDA. Gastos del inmovilizado material y de las inversiones. Gastos de gestión de las inversiones. Gastos del inmovilizado material y de las inversiones inmobiliarias. [00279]
A18: 12 | B18: 67 | C18: 17 | D18: N | E18: CUENTA TÉCNICA SEGURO NO VIDA. Gastos del inmovilizado material y de las inversiones. Gastos de gestión de las inversiones. Gastos de inversiones y cuentas fi nancieras. [00280]
A19: 13 | B19: 84 | C19: 17 | D19: N | E19: CUENTA TÉCNICA SEGURO NO VIDA. Gastos del inmovilizado material y de las inversiones. Correcciones de valor del inmovilizado material y de las inversiones. [00281]
A20: 14 | B20: 101 | C20: 17 | D20: N | E20: CUENTA TÉCNICA SEGURO NO VIDA. Gastos del inmovilizado material y de las inversiones. Correcciones de valor del inmovilizado material y de las inversiones. Amortización del inmovilizado material y de las inversiones inmobiliarias. [00282]
A21: 15 | B21: 118 | C21: 17 | D21: N | E21: CUENTA TÉCNICA SEGURO NO VIDA. Gastos del inmovilizado material y de las inversiones. Correcciones de valor del inmovilizado material y de las inversiones. Deterioro del inmovilizado material y de las inversiones inmobiliarias. [00283]
A22: 16 | B22: 135 | C22: 17 | D22: N | E22: CUENTA TÉCNICA SEGURO NO VIDA. Gastos del inmovilizado material y de las inversiones. Correcciones de valor del inmovilizado material y de las inversiones. Deterioro de inversiones fi nancieras. [00284]
A23: 17 | B23: 152 | C23: 17 | D23: N | E23: CUENTA TÉCNICA SEGURO NO VIDA. Gastos del inmovilizado material y de las inversiones. Pérdidas procedentes del inmovilizado material y de las inversiones. [00285]
A24: 18 | B24: 169 | C24: 17 | D24: N | E24: CUENTA TÉCNICA SEGURO NO VIDA. Gastos del inmovilizado material y de las inversiones. Pérdidas procedentes del inmovilizado material y de las inversiones. Del inmovilizado material y de las inversiones inmobiliarias. [00286]
A25: 19 | B25: 186 | C25: 17 | D25: N | E25: CUENTA TÉCNICA SEGURO NO VIDA. Gastos del inmovilizado material y de las inversiones. Pérdidas procedentes del inmovilizado material y de las inversiones. De las inversiones financieras. [00287]
A26: =A25+1 -> 20 | B26: =B25+C25 -> 203 | C26: 17 | D26: N | E26: CUENTA TÉCNICA SEGURO NO VIDA. Gastos del inmovilizado material y de las inversiones. Gastos de entidades incluidas en la consolidación. [00709]
A27: =A26+1 -> 21 | B27: =B26+C26 -> 220 | C27: 17 | D27: N | E27: CUENTA TÉCNICA SEGURO NO VIDA. Gastos del inmovilizado material y de las inversiones. Gastos de entidades incluidas en la consolidación. Participación en pérdidas de entidades puestas en equivalencia. [00710]
A28: =A27+1 -> 22 | B28: =B27+C27 -> 237 | C28: 17 | D28: N | E28: CUENTA TÉCNICA SEGURO NO VIDA. Gastos del inmovilizado material y de las inversiones. Gastos de entidades incluidas en la consolidación. Pérdidas por la enajenación de participaciones en sociedades puestas en equivalencia. [00711]
A29: =+A28+1 -> 23 | B29: =C28+B28 -> 254 | C29: 17 | D29: N | E29: CUENTA TÉCNICA SEGURO NO VIDA. Gastos del inmovilizado material y de las inversiones.Pérdidas por la enajenación de participaciones en sociedades consolidadas. [00656]
A30: 24 | B30: 271 | C30: 17 | D30: N | E30: CUENTA TÉCNICA SEGURO NO VIDA. Subtotal (Resultado de la cuenta técnica del seguro no vida). [00288]
A31: 25 | B31: 288 | C31: 12 | D31: An | E31: Fin de registro. | F31: </T22004B02>
A32: Total: | C32: =B31+C31-1 -> 299

Sheet T22004C02
B1: Agencia Tributaria
A3: =+T22001000!A3 -> Modelo 220 | C3: =+T22001000!C3 -> Diseño de registro. 2019
A4: =+T22001000!A4 -> Versión 1.9 | C4: Impuesto Sobre Sociedades. Régimen de consolidación Fiscal. GRUPO DE ENTIDADES ASEGURADORAS. CUENTA DE PÉRDIDAS Y GANACIAS CONSOLIDADA (III)
A6: Nº | B6: Posic. | C6: Lon | D6: Tipo | E6: Descripción | F6: Contenido
A7: 1 | B7: 1 | C7: 2 | D7: An | E7: Inicio del identificador de modelo y página. | F7: <T
A8: =+A7+1 -> 2 | B8: =C7+B7 -> 3 | C8: 3 | D8: Num | E8: Modelo. | F8: 220
A9: 3 | B9: =C8+B8 -> 6 | C9: 2 | D9: An | E9: Página. | F9: 04
A10: 4 | B10: =B9+C9 -> 8 | C10: 1 | D10: An | E10: Letra | F10: C
A11: 5 | B11: 9 | C11: 2 | D11: Num | E11: Hoja | F11: 02
A12: 6 | B12: =C11+B11 -> 11 | C12: 1 | D12: An | E12: Fin de identificador de modelo y página. Constante ">". | F12: >
A13: 7 | B13: =C12+B12 -> 12 | C13: 1 | D13: An | E13: Indicador de página complementaria.
A14: 8 | B14: =C13+B13 -> 13 | C14: 3 | D14: Num | E14: Número de orden de la página complementaria
A15: =+A14+1 -> 9 | B15: =C14+B14 -> 16 | C15: 17 | D15: N | E15: CUENTA TÉCNICA SEGURO DE VIDA. Prima imputadas al ejercicio, netas de reaseguro. [00289]
A16: 10 | B16: 33 | C16: 17 | D16: N | E16: CUENTA TÉCNICA SEGURO DE VIDA. Prima imputadas al ejercicio, netas de reaseguro. Primas devengadas. [00290]
A17: 11 | B17: 50 | C17: 17 | D17: N | E17: CUENTA TÉCNICA SEGURO DE VIDA. Prima imputadas al ejercicio, netas de reaseguro. Primas devengadas. Seguro directo. [00291]
A18: 12 | B18: 67 | C18: 17 | D18: N | E18: CUENTA TÉCNICA SEGURO DE VIDA. Prima imputadas al ejercicio, netas de reaseguro. Primas devengadas. Reaseguro aceptado. [00292]
A19: 13 | B19: 84 | C19: 17 | D19: N | E19: CUENTA TÉCNICA SEGURO DE VIDA. Prima imputadas al ejercicio, netas de reaseguro. Primas devengadas. Variación de la corrección por deterioro de las primas pendientes de cobro (+ ó -). [00293]
A20: 14 | B20: 101 | C20: 17 | D20: N | E20: CUENTA TÉCNICA SEGURO DE VIDA. Prima imputadas al ejercicio, netas de reaseguro. Primas del reaseguro cedido (-). [00294]
A21: 15 | B21: 118 | C21: 17 | D21: N | E21: CUENTA TÉCNICA SEGURO DE VIDA. Prima imputadas al ejercicio, netas de reaseguro. Variación de la provisión para primas no consumidas y para riesgos en curso (+ ó -). [00295]
A22: 16 | B22: 135 | C22: 17 | D22: N | E22: CUENTA TÉCNICA SEGURO DE VIDA. Prima imputadas al ejercicio, netas de reaseguro. Variación de la provisión para primas no consumidas y para riesgos en curso (+ ó -). Seguro directo. [00296]
A23: 17 | B23: 152 | C23: 17 | D23: N | E23: CUENTA TÉCNICA SEGURO DE VIDA. Prima imputadas al ejercicio, netas de reaseguro. Variación de la provisión para primas no consumidas y para riesgos en curso (+ ó -). Reaseguro aceptado. [00297]
A24: 18 | B24: 169 | C24: 17 | D24: N | E24: CUENTA TÉCNICA SEGURO DE VIDA. Prima imputadas al ejercicio, netas de reaseguro. Variación de la provisión para primas no consumidas y para riesgos en curso (+ ó -). Variación de la provisión para primas no consumidas, reaseguro cedido (+ ó -). [00298]
A25: 19 | B25: 186 | C25: 17 | D25: N | E25: CUENTA TÉCNICA SEGURO DE VIDA. Ingresos del inmovilizado material y de las inversiones. [00299]
A26: 20 | B26: 203 | C26: 17 | D26: N | E26: CUENTA TÉCNICA SEGURO DE VIDA. Ingresos procedentes de las inversiones inmobiliarias. [00300]
A27: 21 | B27: 220 | C27: 17 | D27: N | E27: CUENTA TÉCNICA SEGURO DE VIDA. Ingresos procedentes de las inversiones financieras. [00301]
A28: 22 | B28: 237 | C28: 17 | D28: N | E28: CUENTA TÉCNICA SEGURO DE VIDA. Aplicaciones de correcciones de valor por deterioro del inmovilizado material y de las inversiones. [00302]
A29: 23 | B29: 254 | C29: 17 | D29: N | E29: CUENTA TÉCNICA SEGURO DE VIDA. Aplicaciones de correcciones de valor por deterioro del inmovilizado material y de las inversiones. Del inmovilizado material y de las inversiones inmobiliarias. [00303]
A30: 24 | B30: 271 | C30: 17 | D30: N | E30: CUENTA TÉCNICA SEGURO DE VIDA. Aplicaciones de correcciones de valor por deterioro del inmovilizado material y de las inversiones. De inversiones financieras. [00304]
A31: 25 | B31: 288 | C31: 17 | D31: N | E31: CUENTA TÉCNICA SEGURO DE VIDA. Beneficios en realización del inmovilizado material y de las inversiones. [00305]
A32: 26 | B32: 305 | C32: 17 | D32: N | E32: CUENTA TÉCNICA SEGURO DE VIDA. Beneficios en realización del inmovilizado material y de las inversiones. Del inmovilizado material y de las inversiones inmobiliarias. [00306]
A33: 27 | B33: 322 | C33: 17 | D33: N | E33: CUENTA TÉCNICA SEGURO DE VIDA. Beneficios en realización del inmovilizado material y de las inversiones. De inversiones financieras. [00307]
A34: =A33+1 -> 28 | B34: =B33+C33 -> 339 | C34: 17 | D34: N | E34: CUENTA TÉCNICA SEGURO DE VIDA. Beneficios en realización del inmovilizado material y de las inversiones. Ingresos de entidades incluidas en la consolidación. [00712]
A35: =A34+1 -> 29 | B35: =B34+C34 -> 356 | C35: 17 | D35: N | E35: CUENTA TÉCNICA SEGURO DE VIDA. Beneficios en realización del inmovilizado material y de las inversiones. Ingresos de entidades incluidas en la consolidación. Participación en beneficios de entidades puestas en equivalencia. [00713]
A36: =A35+1 -> 30 | B36: =B35+C35 -> 373 | C36: 17 | D36: N | E36: CUENTA TÉCNICA SEGURO DE VIDA. Beneficios en realización del inmovilizado material y de las inversiones. Ingresos de entidades incluidas en la consolidación. Beneficios por la enajenación de participaciones en sociedades puestas en equivalencia. [00714]
A37: =+A36+1 -> 31 | B37: =C36+B36 -> 390 | C37: 17 | D37: N | E37: CUENTA TÉCNICA SEGURO DE VIDA. Beneficios por la enajenación de participaciones en sociedades consolidadas. [00657]
A38: 32 | B38: 407 | C38: 17 | D38: N | E38: CUENTA TÉCNICA SEGURO DE VIDA. Ingresos de inversiones afectas a seguros en los que el tomador asume el riesgo de la inversión. [00308]
A39: 33 | B39: 424 | C39: 17 | D39: N | E39: CUENTA TÉCNICA SEGURO DE VIDA. Otros ingresos técnicos. [00309]
A40: 34 | B40: 441 | C40: 17 | D40: N | E40: CUENTA TÉCNICA SEGURO DE VIDA. Siniestralidad del ejercicio, neta de reaseguro. [00310]
A41: 35 | B41: 458 | C41: 17 | D41: N | E41: CUENTA TÉCNICA SEGURO DE VIDA. Siniestralidad del ejercicio, neta de reaseguro. Prestaciones y gastos pagados. [00311]
A42: 36 | B42: 475 | C42: 17 | D42: N | E42: CUENTA TÉCNICA SEGURO DE VIDA. Siniestralidad del ejercicio, neta de reaseguro. Prestaciones y gastos pagados. Seguro directo. [00312]
A43: 37 | B43: 492 | C43: 17 | D43: N | E43: CUENTA TÉCNICA SEGURO DE VIDA. Siniestralidad del ejercicio, neta de reaseguro. Prestaciones y gastos pagados. Reaseguro aceptado. [00313]
A44: 38 | B44: 509 | C44: 17 | D44: N | E44: CUENTA TÉCNICA SEGURO DE VIDA. Siniestralidad del ejercicio, neta de reaseguro. Prestaciones y gastos pagados. Reaseguro cedido (-). [00314]
A45: 39 | B45: 526 | C45: 17 | D45: N | E45: CUENTA TÉCNICA SEGURO DE VIDA. Siniestralidad del ejercicio, neta de reaseguro. Variación de la provisión para prestaciones (+ ó -). [00315]
A46: 40 | B46: 543 | C46: 17 | D46: N | E46: CUENTA TÉCNICA SEGURO DE VIDA. Siniestralidad del ejercicio, neta de reaseguro. Variación de la provisión para prestaciones (+ ó -). Seguro directo. [00316]
A47: 41 | B47: 560 | C47: 17 | D47: N | E47: CUENTA TÉCNICA SEGURO DE VIDA. Siniestralidad del ejercicio, neta de reaseguro. Variación de la provisión para prestaciones (+ ó -). Reaseguro aceptado. [00317]
A48: 42 | B48: 577 | C48: 17 | D48: N | E48: CUENTA TÉCNICA SEGURO DE VIDA. Siniestralidad del ejercicio, neta de reaseguro. Variación de la provisión para prestaciones (+ ó -). Reaseguro cedido (-). [00318]
A49: =+A48+1 -> 43 | B49: 594 | C49: 17 | D49: N | E49: CUENTA TÉCNICA SEGURO DE VIDA. Siniestralidad del ejercicio, neta de reaseguro. Gastos imputables a prestaciones. [00319]
A50: 44 | B50: =C49+B49 -> 611 | C50: 17 | D50: N | E50: CUENTA TÉCNICA SEGURO DE VIDA. Variación de otras provisiones técnicas, netas de reaseguro (+ ó -). [00320]
A51: 45 | B51: 628 | C51: 17 | D51: N | E51: CUENTA TÉCNICA SEGURO DE VIDA. Variación de otras provisiones técnicas, netas de reaseguro (+ ó -). Provisiones para seguros de vida. [00321]
A52: 46 | B52: 645 | C52: 17 | D52: N | E52: CUENTA TÉCNICA SEGURO DE VIDA. Variación de otras provisiones técnicas, netas de reaseguro (+ ó -). Provisiones para seguros de vida. Seguro directo. [00322]
A53: 47 | B53: 662 | C53: 17 | D53: N | E53: CUENTA TÉCNICA SEGURO DE VIDA. Variación de otras provisiones técnicas, netas de reaseguro (+ ó -). Provisiones para seguros de vida. Reaseguro aceptado. [00323]
A54: 48 | B54: 679 | C54: 17 | D54: N | E54: CUENTA TÉCNICA SEGURO DE VIDA. Variación de otras provisiones técnicas, netas de reaseguro (+ ó -). Provisiones para seguros de vida. Reaseguro cedido (-). [00324]
A55: 49 | B55: 696 | C55: 17 | D55: N | E55: CUENTA TÉCNICA SEGURO DE VIDA. Variación de otras provisiones técnicas, netas de reaseguro (+ ó -). Provisiones para seguros de vida cuando el riesgo de inversión lo asuman los tomadores de seguros. [00325]
A56: =+A55+1 -> 50 | B56: 713 | C56: 17 | D56: N | E56: CUENTA TÉCNICA SEGURO DE VIDA. Variación de otras provisiones técnicas, netas de reaseguro (+ ó -). Otras provisiones técnicas. [00326]
A57: 51 | B57: 730 | C57: 17 | D57: N | E57: CUENTA TÉCNICA SEGURO DE VIDA. Participación en beneficios y extornos. [00327]
A58: 52 | B58: 747 | C58: 17 | D58: N | E58: CUENTA TÉCNICA SEGURO DE VIDA. Participación en beneficios y extornos. Prestaciones y gastos por participación en beneficios y extornos. [00328]
A59: 53 | B59: 764 | C59: 17 | D59: N | E59: CUENTA TÉCNICA SEGURO DE VIDA. Participación en beneficios y extornos. Variación de la provisión para participación en beneficios extornos (+ ó -). [00329]
A60: 54 | B60: 781 | C60: 17 | D60: N | E60: CUENTA TÉCNICA SEGURO DE VIDA. Gastos de explotación netos. [00330]
A61: 55 | B61: 798 | C61: 17 | D61: N | E61: CUENTA TÉCNICA SEGURO DE VIDA. Gastos de explotación netos. Gastos de adquisición. [00331]
A62: 56 | B62: 815 | C62: 17 | D62: N | E62: CUENTA TÉCNICA SEGURO DE VIDA. Gastos de explotación netos. Gastos de administración. [00332]
A63: 57 | B63: 832 | C63: 17 | D63: N | E63: CUENTA TÉCNICA SEGURO DE VIDA. Gastos de explotación netos. Comisiones y participaciones en el reaseguro cedido y retrocedido. [00333]
A64: =A63+1 -> 58 | B64: =B63+C63 -> 849 | C64: 12 | D64: An | E64: Fin de registro. | F64: </T22004C02>
A65: Total: | C65: =B64+C64-1 -> 860

Sheet T22004D02
B1: Agencia Tributaria
A3: =+T22001000!A3 -> Modelo 220 | C3: =+T22001000!C3 -> Diseño de registro. 2019
A4: =+T22001000!A4 -> Versión 1.9 | C4: Impuesto Sobre Sociedades. Régimen de consolidación Fiscal. GRUPO DE ENTIDADES ASEGURADORAS. CUENTA DE PÉRDIDAS Y GANANCIAS CONSOLIDADA (IV)
A6: Nº | B6: Posic. | C6: Lon | D6: Tipo | E6: Descripción | F6: Contenido
A7: 1 | B7: 1 | C7: 2 | D7: An | E7: Inicio del identificador de modelo y página. | F7: <T
A8: =+A7+1 -> 2 | B8: =C7+B7 -> 3 | C8: 3 | D8: Num | E8: Modelo. | F8: 220
A9: 3 | B9: =C8+B8 -> 6 | C9: 2 | D9: An | E9: Página. | F9: 04
A10: 4 | B10: =B9+C9 -> 8 | C10: 1 | D10: An | E10: Letra | F10: D
A11: 5 | B11: 9 | C11: 2 | D11: Num | E11: Hoja | F11: 02
A12: 6 | B12: =C11+B11 -> 11 | C12: 1 | D12: An | E12: Fin de identificador de modelo y página. Constante ">". | F12: >
A13: 7 | B13: =C12+B12 -> 12 | C13: 1 | D13: An | E13: Indicador de página complementaria.
A14: 8 | B14: =C13+B13 -> 13 | C14: 3 | D14: Num | E14: Número de orden de la página complementaria
A15: 9 | B15: 16 | C15: 17 | D15: N | E15: CUENTA TÉCNICA SEGURO DE VIDA. Otros gastos técnicos (+ ó -). [00334]
A16: 10 | B16: 33 | C16: 17 | D16: N | E16: CUENTA TÉCNICA SEGURO DE VIDA. Otros gastos técnicos (+ ó -). Variación del deterioro por insolvencias (+ ó -). [00335]
A17: 11 | B17: 50 | C17: 17 | D17: N | E17: CUENTA TÉCNICA SEGURO DE VIDA. Otros gastos técnicos (+ ó -). Variación del deterioro del inmovilizado (+ ó -). [00336]
A18: =+A17+1 -> 12 | B18: =C17+B17 -> 67 | C18: 17 | D18: N | E18: CUENTA TÉCNICA SEGURO DE VIDA. Otros gastos técnicos (+ ó -). Otros. [00337]
A19: =+A18+1 -> 13 | B19: =C18+B18 -> 84 | C19: 17 | D19: N | E19: CUENTA TÉCNICA SEGURO DE VIDA. Gastos del inmovilizado material y de las inversiones. [00338]
A20: =+A19+1 -> 14 | B20: =C19+B19 -> 101 | C20: 17 | D20: N | E20: CUENTA TÉCNICA SEGURO DE VIDA. Gastos del inmovilizado material y de las inversiones. Gastos de gestión del inmovilizado material y de las inversiones. [00339]
A21: 15 | B21: 118 | C21: 17 | D21: N | E21: CUENTA TÉCNICA SEGURO DE VIDA. Gastos del inmovilizado material y de las inversiones. Gastos de gestión del inmovilizado material y de las inversiones. Gastos del inmovilizado material y de las inversiones inmobiliarias. [00340]
A22: 16 | B22: 135 | C22: 17 | D22: N | E22: CUENTA TÉCNICA SEGURO DE VIDA. Gastos del inmovilizado material y de las inversiones. Gastos de gestión del inmovilizado material y de las inversiones. Gastos de inversiones y cuentas financieras. [00341]
A23: 17 | B23: 152 | C23: 17 | D23: N | E23: CUENTA TÉCNICA SEGURO DE VIDA. Gastos del inmovilizado material y de las inversiones. Correcciones de valor del inmovilizado material y de las inversiones. [00342]
A24: 18 | B24: 169 | C24: 17 | D24: N | E24: CUENTA TÉCNICA SEGURO DE VIDA. Gastos del inmovilizado material y de las inversiones. Correcciones de valor del inmovilizado material y de las inversiones. Amortización del inmovilizado material y de las inversiones inmobiliarias. [00343]
A25: 19 | B25: 186 | C25: 17 | D25: N | E25: CUENTA TÉCNICA SEGURO DE VIDA. Gastos del inmovilizado material y de las inversiones. Correcciones de valor del inmovilizado material y de las inversiones. Deterioro del inmovilizado material y de las inversiones inmobiliarias. [00344]
A26: 20 | B26: 203 | C26: 17 | D26: N | E26: CUENTA TÉCNICA SEGURO DE VIDA. Gastos del inmovilizado material y de las inversiones. Correcciones de valor del inmovilizado material y de las inversiones. Deterioro de inversiones financieras. [00345]
A27: 21 | B27: 220 | C27: 17 | D27: N | E27: CUENTA TÉCNICA SEGURO DE VIDA. Gastos del inmovilizado material y de las inversiones. Pérdidas procedentes del inmovilizado material y de las inversiones. [00346]
A28: 22 | B28: 237 | C28: 17 | D28: N | E28: CUENTA TÉCNICA SEGURO DE VIDA. Gastos del inmovilizado material y de las inversiones. Pérdidas procedentes del inmovilizado material y de las inversiones. Del inmovilizado material y de las inversiones inmobiliarias. [00347]
A29: 23 | B29: 254 | C29: 17 | D29: N | E29: CUENTA TÉCNICA SEGURO DE VIDA. Gastos del inmovilizado material y de las inversiones. Pérdidas procedentes del inmovilizado material y de las inversiones. De las inversiones financieras. [00348]
A30: =A29+1 -> 24 | B30: =B29+C29 -> 271 | C30: 17 | D30: N | E30: CUENTA TÉCNICA SEGURO DE VIDA. Gastos del inmovilizado material y de las inversiones. Gastos de entidades incluidas en la consolidación. [00715]
A31: =A30+1 -> 25 | B31: =B30+C30 -> 288 | C31: 17 | D31: N | E31: CUENTA TÉCNICA SEGURO DE VIDA. Gastos del inmovilizado material y de las inversiones. Gastos de entidades incluidas en la consolidación. Participación en pérdidas de entidades puestas en equivalencia. [00716]
A32: =A31+1 -> 26 | B32: =B31+C31 -> 305 | C32: 17 | D32: N | E32: CUENTA TÉCNICA SEGURO DE VIDA. Gastos del inmovilizado material y de las inversiones. Gastos de entidades incluidas en la consolidación. Pérdidas por enajenación de participaciones en sociedades puestas en equivalencia. [00717]
A33: =+A32+1 -> 27 | B33: =C32+B32 -> 322 | C33: 17 | D33: N | E33: CUENTA TÉCNICA SEGURO DE VIDA. Gastos del inmovilizado material y de las inversiones. Pérdidas por la enajenación de participaciones en sociedades consolidadas. [00658]
A34: 28 | B34: 339 | C34: 17 | D34: N | E34: CUENTA TÉCNICA SEGURO DE VIDA. Gastos de inversiones afectas a seguros en los que el tomador asume el riesgo de la inversión. [00349]
A35: 29 | B35: 356 | C35: 17 | D35: N | E35: CUENTA TÉCNICA SEGURO DE VIDA. Subtotal (Resultado de la cuenta técnica del seguro de vida). [00350]
A36: =A35+1 -> 30 | B36: =B35+C35 -> 373 | C36: 17 | D36: N | E36: CUENTA NO TÉCNICA. Resultados de la cuenta técnica del seguro no vida. [00718]
A37: =A36+1 -> 31 | B37: =B36+C36 -> 390 | C37: 17 | D37: N | E37: CUENTA NO TÉCNICA. Resultados de la cuenta técnica del seguro de vida. [00719]
A38: =+A37+1 -> 32 | B38: =C37+B37 -> 407 | C38: 17 | D38: N | E38: CUENTA NO TÉCNICA. Ingresos del inmovilizado material y de las inversiones. [00351]
A39: 33 | B39: 424 | C39: 17 | D39: N | E39: CUENTA NO TÉCNICA. Ingresos del inmovilizado material y de las inversiones. Ingresos procedentes de las inversiones inmobiliarias. [00352]
A40: 34 | B40: 441 | C40: 17 | D40: N | E40: CUENTA NO TÉCNICA. Ingresos del inmovilizado material y de las inversiones. Ingresos procedentes de las inversiones financieras. [00353]
A41: 35 | B41: 458 | C41: 17 | D41: N | E41: CUENTA NO TÉCNICA. Ingresos del inmovilizado material y de las inversiones. Aplicaciones de correcciones de valor por deterioro del inmovilizado material y de las inversiones. [00354]
A42: 36 | B42: 475 | C42: 17 | D42: N | E42: CUENTA NO TÉCNICA. Ingresos del inmovilizado material y de las inversiones. Aplicaciones de correcciones de valor por deterioro del inmovilizado material y de las inversiones. Del inmovilizado material y de las inversiones inmobiliarias. [00355]
A43: 37 | B43: 492 | C43: 17 | D43: N | E43: CUENTA NO TÉCNICA. Ingresos del inmovilizado material y de las inversiones. Aplicaciones de correcciones de valor por deterioro del inmovilizado material y de las inversiones. De inversiones financieras. [00356]
A44: 38 | B44: 509 | C44: 17 | D44: N | E44: CUENTA NO TÉCNICA. Ingresos del inmovilizado material y de las inversiones. Beneficios en realización del inmovilizado material y de las inversiones. [00357]
A45: 39 | B45: 526 | C45: 17 | D45: N | E45: CUENTA NO TÉCNICA. Ingresos del inmovilizado material y de las inversiones. Beneficios en realización del inmovilizado material y de las inversiones. Del inmovilizado material y de las inversiones inmobiliarias. [00358]
A46: 40 | B46: 543 | C46: 17 | D46: N | E46: CUENTA NO TÉCNICA. Ingresos del inmovilizado material y de las inversiones. Beneficios en realización del inmovilizado material y de las inversiones. De inversiones financieras. [00359]
A47: =A46+1 -> 41 | B47: =B46+C46 -> 560 | C47: 17 | D47: N | E47: CUENTA NO TÉCNICA. Ingresos de entidades incluidas en la consolidación. [00720]
A48: =A47+1 -> 42 | B48: =B47+C47 -> 577 | C48: 17 | D48: N | E48: CUENTA NO TÉCNICA. Ingresos de entidades incluidas en la consolidación. Participación en beneficios de entidades puestas en equivalencia [00721]
A49: =A48+1 -> 43 | B49: =B48+C48 -> 594 | C49: 17 | D49: N | E49: CUENTA NO TÉCNICA. Ingresos de entidades incluidas en la consolidación. Beneficios por enajenación de participaciones en sociedades puestas en equivalencia [00722]
A50: =A49+1 -> 44 | B50: 611 | C50: 17 | D50: N | E50: CUENTA NO TÉCNICA. Ingresos del inmovilizado material y de las inversiones. Beneficios por la enajenación de participaciones en sociedades consolidadas. [00659]
A51: 45 | B51: 628 | C51: 17 | D51: N | E51: CUENTA NO TÉCNICA. Diferencias negativas de consolidación. [00723]
A52: 46 | B52: 645 | C52: 17 | D52: N | E52: CUENTA NO TÉCNICA. Ingresos del inmovilizado material y de las inversiones. Diferencias negativa de consolidación de sociedades consolidadas. Sociedades consolidadas. [00660]
A53: 47 | B53: =B52+C52 -> 662 | C53: 17 | D53: N | E53: CUENTA NO TÉCNICA. Ingresos del inmovilizado material y de las inversiones. Diferencias negativa de consolidación de sociedades consolidadas. Sociedades puestas en equivalencia. [00724]
A54: =A53+1 -> 48 | B54: =B53+C53 -> 679 | C54: 12 | D54: An | E54: Fin de registro. | F54: </T22004D02>
A55: Total: | C55: =B54+C54-1 -> 690

Sheet T22004E02
B1: Agencia Tributaria
A3: =+T22001000!A3 -> Modelo 220 | C3: =+T22001000!C3 -> Diseño de registro. 2019
A4: =+T22001000!A4 -> Versión 1.9 | C4: Impuesto Sobre Sociedades. Régimen de consolidación Fiscal. GRUPO DE ENTIDADES ASEGURADORAS. CUENTA DE PÉRDIDAS Y GANANCIAS CONSOLIDADA (V)
A6: Nº | B6: Posic. | C6: Lon | D6: Tipo | E6: Descripción | F6: Contenido
A7: 1 | B7: 1 | C7: 2 | D7: An | E7: Inicio del identificador de modelo y página. | F7: <T
A8: =+A7+1 -> 2 | B8: =C7+B7 -> 3 | C8: 3 | D8: Num | E8: Modelo. | F8: 220
A9: 3 | B9: =C8+B8 -> 6 | C9: 2 | D9: An | E9: Página. | F9: 04
A10: 4 | B10: =B9+C9 -> 8 | C10: 1 | D10: An | E10: Letra | F10: E
A11: 5 | B11: 9 | C11: 2 | D11: Num | E11: Hoja | F11: 02
A12: 6 | B12: =C11+B11 -> 11 | C12: 1 | D12: An | E12: Fin de identificador de modelo y página. Constante ">". | F12: >
A13: 7 | B13: =C12+B12 -> 12 | C13: 1 | D13: An | E13: Indicador de página complementaria.
A14: 8 | B14: =C13+B13 -> 13 | C14: 3 | D14: Num | E14: Número de orden de la página complementaria
A15: =+A14+1 -> 9 | B15: 16 | C15: 17 | D15: N | E15: CUENTA NO TÉCNICA. Gastos del inmovilizado material y de las inversiones. [00360]
A16: =+A15+1 -> 10 | B16: =C15+B15 -> 33 | C16: 17 | D16: N | E16: CUENTA NO TÉCNICA. Gastos del inmovilizado material y de las inversiones. Gastos de gestión de las inversiones. [00361]
A17: 11 | B17: 50 | C17: 17 | D17: N | E17: CUENTA NO TÉCNICA. Gastos del inmovilizado material y de las inversiones. Gastos de gestión de las inversiones. Gastos de inversiones y cuentas financieras. [00363]
A18: 12 | B18: 67 | C18: 17 | D18: N | E18: CUENTA NO TÉCNICA. Gastos del inmovilizado material y de las inversiones. Gastos de gestión de las inversiones. Gastos de inversiones materiales. [00362]
A19: 13 | B19: 84 | C19: 17 | D19: N | E19: CUENTA NO TÉCNICA. Gastos del inmovilizado material y de las inversiones. Correcciones de valor del inmovilizado material y de las inversiones. [00364]
A20: 14 | B20: 101 | C20: 17 | D20: N | E20: CUENTA NO TÉCNICA. Gastos del inmovilizado material y de las inversiones. Correcciones de valor del inmovilizado material y de las inversiones. Amortización del inmovilizado material y de las inversiones inmobiliarias. [00365]
A21: 15 | B21: 118 | C21: 17 | D21: N | E21: CUENTA NO TÉCNICA. Gastos del inmovilizado material y de las inversiones. Correcciones de valor del inmovilizado material y de las inversiones. Deterioro del inmovilizado material y de las inversiones inmobiliarias. [00366]
A22: 16 | B22: 135 | C22: 17 | D22: N | E22: CUENTA NO TÉCNICA. Gastos del inmovilizado material y de las inversiones. Correcciones de valor del inmovilizado material y de las inversiones. Deterioro de inversiones financieras. [00367]
A23: 17 | B23: 152 | C23: 17 | D23: N | E23: CUENTA NO TÉCNICA. Gastos del inmovilizado material y de las inversiones. Pérdidas procedentes del inmovilizado material y de las inversiones. [00368]
A24: 18 | B24: 169 | C24: 17 | D24: N | E24: CUENTA NO TÉCNICA. Gastos del inmovilizado material y de las inversiones. Pérdidas procedentes del inmovilizado material y de las inversiones. Del inmovilizado material y de las inversiones inmobiliarias. [00369]
A25: 19 | B25: 186 | C25: 17 | D25: N | E25: CUENTA NO TÉCNICA. Gastos del inmovilizado material y de las inversiones. Pérdidas procedentes del inmovilizado material y de las inversiones. De las inversiones financieras. [00370]
A26: =A25+1 -> 20 | B26: =B25+C25 -> 203 | C26: 17 | D26: N | E26: CUENTA NO TÉCNICA. Gastos del inmovilizado material y de las inversiones. Gastos de entidades incluidas en la consolidación. [00725]
A27: =A26+1 -> 21 | B27: =B26+C26 -> 220 | C27: 17 | D27: N | E27: CUENTA NO TÉCNICA. Gastos del inmovilizado material y de las inversiones. Gastos de entidades incluidas en la consolidación. Participación en pérdidas de entidades puestas en equivalencia. [00726]
A28: =A27+1 -> 22 | B28: =B27+C27 -> 237 | C28: 17 | D28: N | E28: CUENTA NO TÉCNICA. Gastos del inmovilizado material y de las inversiones. Gastos de entidades incluidas en la consolidación. Pérdidas de la enajenación de participaciones en sociedades puestas en equivalencia. [00727]
A29: =+A28+1 -> 23 | B29: =C28+B28 -> 254 | C29: 17 | D29: N | E29: CUENTA NO TÉCNICA. Gastos del inmovilizado material y de las inversiones. Perdidas por la enajenación de participaciones en sociedades consolidadas. [00661]
A30: 24 | B30: 271 | C30: 17 | D30: N | E30: CUENTA NO TÉCNICA. Otros ingresos. [00371]
A31: 25 | B31: 288 | C31: 17 | D31: N | E31: CUENTA NO TÉCNICA. Otros ingresos. Ingresos por la administración de fondos de pensiones. [00372]
A32: 26 | B32: 305 | C32: 17 | D32: N | E32: CUENTA NO TÉCNICA. Otros ingresos. Resto de ingresos. [00373]
A33: 27 | B33: 322 | C33: 17 | D33: N | E33: CUENTA NO TÉCNICA. Otros gastos. [00374]
A34: 28 | B34: 339 | C34: 17 | D34: N | E34: CUENTA NO TÉCNICA. Otros gastos. Gastos por la administración de fondos de pensiones. [00375]
A35: 29 | B35: 356 | C35: 17 | D35: N | E35: CUENTA NO TÉCNICA. Otros gastos. Resto de gastos. [00376]
A36: 30 | B36: 373 | C36: 17 | D36: N | E36: CUENTA NO TÉCNICA. Subtotal (Resultado de la cuenta no técnica). [00377]
A37: 31 | B37: 390 | C37: 17 | D37: N | E37: CUENTA NO TÉCNICA. Resultado antes de impuestos. [00378]
A38: 32 | B38: 407 | C38: 17 | D38: N | E38: CUENTA NO TÉCNICA. Impuesto sobre beneficios. [00379]
A39: 33 | B39: 424 | C39: 17 | D39: N | E39: CUENTA NO TÉCNICA. Resultado procedente de operaciones continuadas. [00380]
A40: 34 | B40: 441 | C40: 17 | D40: N | E40: CUENTA NO TÉCNICA. Resultado procedente de operaciones interrumpidas neto de impuestos. [00381]
A41: 35 | B41: 458 | C41: 17 | D41: N | E41: CUENTA NO TÉCNICA. Resultado consolidado del ejercicio. [00500]
A42: 36 | B42: 475 | C42: 17 | D42: N | E42: CUENTA NO TÉCNICA. Resultado consolidado del ejercicio. Resultado atribuido a la sociedad dominante. [00662]
A43: 37 | B43: 492 | C43: 17 | D43: N | E43: CUENTA NO TÉCNICA. Resultado consolidado del ejercicio. Resultado atribuido a los socios externos. [00663]
A44: 38 | B44: 509 | C44: 12 | D44: An | E44: Fin de registro. | F44: </T22004E02>
A45: Total: | C45: =B44+C44-1 -> 520

Sheet T22005A02
B1: Agencia Tributaria
A3: =+T22001000!A3 -> Modelo 220 | C3: =+T22001000!C3 -> Diseño de registro. 2019
A4: =+T22001000!A4 -> Versión 1.9 | C4: Impuesto Sobre Sociedades. Régimen de consolidación Fiscal. GRUPO DE ENTIDADES ASEGURADORAS. ESTADO DE CAMBIOS EN EL PATRIMONIO NETO: ESTADO DE INGRESOS Y GASTOS RECONOCIDOS CONSOLIDADO
A6: Nº | B6: Posic. | C6: Lon | D6: Tipo | E6: Descripción | F6: Contenido
A7: 1 | B7: 1 | C7: 2 | D7: An | E7: Inicio del identificador de modelo y página. | F7: <T
A8: =+A7+1 -> 2 | B8: =C7+B7 -> 3 | C8: 3 | D8: Num | E8: Modelo. | F8: 220
A9: 3 | B9: =C8+B8 -> 6 | C9: 2 | D9: An | E9: Página. | F9: 05
A10: 4 | B10: =B9+C9 -> 8 | C10: 1 | D10: An | E10: Letra | F10: A
A11: 5 | B11: 9 | C11: 2 | D11: Num | E11: Hoja | F11: 02
A12: 6 | B12: =C11+B11 -> 11 | C12: 1 | D12: An | E12: Fin de identificador de modelo y página. Constante ">". | F12: >
A13: 7 | B13: =C12+B12 -> 12 | C13: 1 | D13: An | E13: Indicador de página complementaria.
A14: 8 | B14: =C13+B13 -> 13 | C14: 3 | D14: Num | E14: Número de orden de la página complementaria
A15: =+A14+1 -> 9 | B15: =C14+B14 -> 16 | C15: 17 | D15: N | E15: ESTADO DE INGRESOS Y GASTOS RECONOCIDOS CONSOLIDADO EN EL EJERCICIO. RESULTADO CONSOLIDADO DEL EJERCICIO. [00500]
A16: 10 | B16: 33 | C16: 17 | D16: N | E16: ESTADO DE INGRESOS Y GASTOS RECONOCIDOS CONSOLIDADO EN EL EJERCICIO. OTROS INGRESOS Y GASTOS RECONOCIDOS. [00383]
A17: 11 | B17: 50 | C17: 17 | D17: N | E17: ESTADO DE INGRESOS Y GASTOS RECONOCIDOS CONSOLIDADO EN EL EJERCICIO. Activos financieros disponibles para la venta. [00384]
A18: 12 | B18: 67 | C18: 17 | D18: N | E18: ESTADO DE INGRESOS Y GASTOS RECONOCIDOS CONSOLIDADO EN EL EJERCICIO. Activos financieros disponibles para la ventaGanancias y pérdidas por valoración. [00385]
A19: 13 | B19: 84 | C19: 17 | D19: N | E19: ESTADO DE INGRESOS Y GASTOS RECONOCIDOS CONSOLIDADO EN EL EJERCICIO. Activos financieros disponibles para la venta Importes transferidos a la cuenta de pérdidas y ganancias. [00386]
A20: 14 | B20: 101 | C20: 17 | D20: N | E20: ESTADO DE INGRESOS Y GASTOS RECONOCIDOS CONSOLIDADO EN EL EJERCICIO. Activos financieros disponibles para la venta Otras reclasificaciones. [00387]
A21: 15 | B21: 118 | C21: 17 | D21: N | E21: ESTADO DE INGRESOS Y GASTOS RECONOCIDOS CONSOLIDADO EN EL EJERCICIO. Cobertura de los flujos de efectivo. [00388]
A22: 16 | B22: 135 | C22: 17 | D22: N | E22: ESTADO DE INGRESOS Y GASTOS RECONOCIDOS CONSOLIDADO EN EL EJERCICIO. Cobertura de los flujos de efectivo. Ganancias y pérdidas por valoración. [00389]
A23: 17 | B23: 152 | C23: 17 | D23: N | E23: ESTADO DE INGRESOS Y GASTOS RECONOCIDOS CONSOLIDADO EN EL EJERCICIO. Cobertura de los flujos de efectivo. Importes transferidos a la cuenta de pérdidas y ganancias. [00390]
A24: 18 | B24: 169 | C24: 17 | D24: N | E24: ESTADO DE INGRESOS Y GASTOS RECONOCIDOS CONSOLIDADO EN EL EJERCICIO. Cobertura de los flujos de efectivo. Importes transferidos al valor inicial de las partidas cubiertas. [00391]
A25: 19 | B25: 186 | C25: 17 | D25: N | E25: ESTADO DE INGRESOS Y GASTOS RECONOCIDOS CONSOLIDADO EN EL EJERCICIO. Cobertura de los flujos de efectivo. Otras reclasifi caciones. [00392]
A26: 20 | B26: 203 | C26: 17 | D26: N | E26: ESTADO DE INGRESOS Y GASTOS RECONOCIDOS CONSOLIDADO EN EL EJERCICIO. Coberturas de inversiones netas en negocios en el extranjero. [00393]
A27: 21 | B27: 220 | C27: 17 | D27: N | E27: ESTADO DE INGRESOS Y GASTOS RECONOCIDOS CONSOLIDADO EN EL EJERCICIO. Coberturas de inversiones netas en negocios en el extranjero. Ganancias y pérdidas por valoración. [00394]
A28: 22 | B28: 237 | C28: 17 | D28: N | E28: ESTADO DE INGRESOS Y GASTOS RECONOCIDOS CONSOLIDADO EN EL EJERCICIO. Coberturas de inversiones netas en negocios en el extranjero. Importes transferidos a la cuenta de pérdidas y ganancias. [00395]
A29: 23 | B29: 254 | C29: 17 | D29: N | E29: ESTADO DE INGRESOS Y GASTOS RECONOCIDOS CONSOLIDADO EN EL EJERCICIO. Coberturas de inversiones netas en negocios en el extranjero. Otras reclasificaciones. [00396]
A30: 24 | B30: 271 | C30: 17 | D30: N | E30: ESTADO DE INGRESOS Y GASTOS RECONOCIDOS CONSOLIDADO EN EL EJERCICIO. Diferencias de cambio y conversión. [00397]
A31: 25 | B31: 288 | C31: 17 | D31: N | E31: ESTADO DE INGRESOS Y GASTOS RECONOCIDOS CONSOLIDADO EN EL EJERCICIO. Diferencias de cambio y conversión. Ganancias y pérdidas por valoración. [00398]
A32: 26 | B32: 305 | C32: 17 | D32: N | E32: ESTADO DE INGRESOS Y GASTOS RECONOCIDOS CONSOLIDADO EN EL EJERCICIO. Diferencias de cambio y conversión. Importes transferidos a la cuenta de pérdidas y ganancias. [00399]
A33: 27 | B33: 322 | C33: 17 | D33: N | E33: ESTADO DE INGRESOS Y GASTOS RECONOCIDOS CONSOLIDADO EN EL EJERCICIO. Diferencias de cambio y conversión. Otras reclasificaciones. [00400]
A34: 28 | B34: 339 | C34: 17 | D34: N | E34: ESTADO DE INGRESOS Y GASTOS RECONOCIDOS CONSOLIDADO EN EL EJERCICIO. Corrección de asimetrías contables. [00401]
A35: 29 | B35: 356 | C35: 17 | D35: N | E35: ESTADO DE INGRESOS Y GASTOS RECONOCIDOS CONSOLIDADO EN EL EJERCICIO. Corrección de asimetrías contables. Ganancias y pérdidas por valoración. [00402]
A36: 30 | B36: 373 | C36: 17 | D36: N | E36: ESTADO DE INGRESOS Y GASTOS RECONOCIDOS CONSOLIDADO EN EL EJERCICIO. Corrección de asimetrías contables. Importes transferidos a la cuenta de pérdidas y ganancias. [00403]
A37: 31 | B37: 390 | C37: 17 | D37: N | E37: ESTADO DE INGRESOS Y GASTOS RECONOCIDOS CONSOLIDADO EN EL EJERCICIO. Corrección de asimetrías contables. Otras reclasifi caciones. [00404]
A38: 32 | B38: 407 | C38: 17 | D38: N | E38: ESTADO DE INGRESOS Y GASTOS RECONOCIDOS CONSOLIDADO EN EL EJERCICIO. Activos mantenidos para la venta. [00405]
A39: 33 | B39: 424 | C39: 17 | D39: N | E39: ESTADO DE INGRESOS Y GASTOS RECONOCIDOS CONSOLIDADO EN EL EJERCICIO. Activos mantenidos para la venta. Ganancias y pérdidas por valoración. [00406]
A40: 34 | B40: 441 | C40: 17 | D40: N | E40: ESTADO DE INGRESOS Y GASTOS RECONOCIDOS CONSOLIDADO EN EL EJERCICIO. Activos mantenidos para la venta. Importes transferidos a la cuenta de pérdidas y ganancias. [00407]
A41: 35 | B41: 458 | C41: 17 | D41: N | E41: ESTADO DE INGRESOS Y GASTOS RECONOCIDOS CONSOLIDADO EN EL EJERCICIO. Activos mantenidos para la venta. Otras reclasificaciones. [00408]
A42: 36 | B42: 475 | C42: 17 | D42: N | E42: ESTADO DE INGRESOS Y GASTOS RECONOCIDOS CONSOLIDADO EN EL EJERCICIO. Ganancias / (pérdidas) actuariales por retribuciones a largo plazo al personal. [00409]
A43: =A42+1 -> 37 | B43: =B42+C42 -> 492 | C43: 17 | D43: N | E43: ESTADO DE INGRESOS Y GASTOS RECONOCIDOS CONSOLIDADO EN EL EJERCICIO. Entidades valoradas por puesta en equivalencia. [00730]
A44: =A43+1 -> 38 | B44: =B43+C43 -> 509 | C44: 17 | D44: N | E44: ESTADO DE INGRESOS Y GASTOS RECONOCIDOS CONSOLIDADO EN EL EJERCICIO. Entidades valoradas por puesta en equivalencia. Ganancias y pérdidas por valoración. [00731]
A45: =A44+1 -> 39 | B45: =B44+C44 -> 526 | C45: 17 | D45: N | E45: ESTADO DE INGRESOS Y GASTOS RECONOCIDOS CONSOLIDADO EN EL EJERCICIO. Entidades valoradas por puesta en equivalencia. Importes transferidos a la cuenta de pérdidas y ganancias. [00732]
A46: =A45+1 -> 40 | B46: =B45+C45 -> 543 | C46: 17 | D46: N | E46: ESTADO DE INGRESOS Y GASTOS RECONOCIDOS CONSOLIDADO EN EL EJERCICIO. Entidades valoradas por puesta en equivalencia. Otras reclasificaciones. [00733]
A47: =+A46+1 -> 41 | B47: =C46+B46 -> 560 | C47: 17 | D47: N | E47: ESTADO DE INGRESOS Y GASTOS RECONOCIDOS CONSOLIDADO EN EL EJERCICIO. Otros ingresos y gastos reconocidos. [00410]
A48: 42 | B48: 577 | C48: 17 | D48: N | E48: ESTADO DE INGRESOS Y GASTOS RECONOCIDOS CONSOLIDADO EN EL EJERCICIO. Impuesto sobre beneficios. [00411]
A49: 43 | B49: 594 | C49: 17 | D49: N | E49: ESTADO DE INGRESOS Y GASTOS RECONOCIDOS CONSOLIDADO EN EL EJERCICIO. TOTAL DE INGRESOS Y GASTOS CONSOLIDADOS RECONOCIDOS. [00412]
A50: =+A49+1 -> 44 | B50: 611 | C50: 17 | D50: N | E50: ESTADO DE INGRESOS Y GASTOS RECONOCIDOS CONSOLIDADO EN EL EJERCICIO. TOTAL DE INGRESOS Y GASTOS CONSOLIDADOS RECONOCIDOS. Atribuidos a la entidad dominante. [00697]
A51: =+A50+1 -> 45 | B51: 628 | C51: 17 | D51: N | E51: ESTADO DE INGRESOS Y GASTOS RECONOCIDOS CONSOLIDADO EN EL EJERCICIO. TOTAL DE INGRESOS Y GASTOS CONSOLIDADOS RECONOCIDOS. Atribuidos a socios externos. [00698]
A52: =+A51+1 -> 46 | B52: 645 | C52: 12 | D52: An | E52: Fin de registro. | F52: </T22005A02>
A53: Total: | C53: =B52+C52-1 -> 656

Sheet T22005B02
B1: Agencia Tributaria
A3: =+T22001000!A3 -> Modelo 220 | C3: =+T22001000!C3 -> Diseño de registro. 2019
A4: =+T22001000!A4 -> Versión 1.9 | C4: Impuesto Sobre Sociedades. Régimen de consolidación Fiscal. GRUPO DE ENTIDADES ASEGURADORAS. ESTADO DE CAMBIOS EN EL PATRIMONIO NETO: ESTADO TOTAL DE CAMBIOS EN EL PATRIMONIO NETO CONSOLIDADO (I)
A6: Nº | B6: Posic. | C6: Lon | D6: Tipo | E6: Descripción | F6: Contenido
A7: 1 | B7: 1 | C7: 2 | D7: An | E7: Inicio del identificador de modelo y página. | F7: <T
A8: =+A7+1 -> 2 | B8: =C7+B7 -> 3 | C8: 3 | D8: Num | E8: Modelo. | F8: 220
A9: 3 | B9: =C8+B8 -> 6 | C9: 2 | D9: An | E9: Página. | F9: 05
A10: 4 | B10: =B9+C9 -> 8 | C10: 1 | D10: An | E10: Letra | F10: B
A11: 5 | B11: 9 | C11: 2 | D11: Num | E11: Hoja | F11: 02
A12: 6 | B12: =C11+B11 -> 11 | C12: 1 | D12: An | E12: Fin de identificador de modelo y página. Constante ">". | F12: >
A13: 7 | B13: =C12+B12 -> 12 | C13: 1 | D13: An | E13: Indicador de página complementaria.
A14: 8 | B14: =C13+B13 -> 13 | C14: 3 | D14: Num | E14: Número de orden de la página complementaria
A15: =+A14+1 -> 9 | B15: =C14+B14 -> 16 | C15: 17 | D15: N | E15: SALDO, FINAL DEL EJERCICIO ANTERIOR. Capital. [00413]
A16: 10 | B16: 33 | C16: 17 | D16: N | E16: SALDO, FINAL DEL EJERCICIO ANTERIOR. Prima de emisión. [00415]
A17: 11 | B17: 50 | C17: 17 | D17: N | E17: SALDO, FINAL DEL EJERCICIO ANTERIOR. Reservas y result. de ejercicios anteriores. [00416]
A18: 12 | B18: 67 | C18: 17 | D18: N | E18: SALDO, FINAL DEL EJERCICIO ANTERIOR. (Acciones propias y de la soc. dominante). [00417]
A19: 13 | B19: 84 | C19: 17 | D19: N | E19: SALDO, FINAL DEL EJERCICIO ANTERIOR. Otras aportaciones de socios o mutualistas. [00419]
A20: 14 | B20: 101 | C20: 17 | D20: N | E20: SALDO, FINAL DEL EJERCICIO ANTERIOR. Resultado del ejercicio atribuido a soc. dominante. [00420]
A21: 15 | B21: 118 | C21: 17 | D21: N | E21: SALDO, FINAL DEL EJERCICIO ANTERIOR. Ajustes por cambio de criterio de ejercicios anteriores. Capital. [00426]
A22: 16 | B22: 135 | C22: 17 | D22: N | E22: SALDO, FINAL DEL EJERCICIO ANTERIOR. Ajustes por cambio de criterio de ejercicios anteriores. Prima de emisión. [00428]
A23: 17 | B23: 152 | C23: 17 | D23: N | E23: SALDO, FINAL DEL EJERCICIO ANTERIOR. Ajustes por cambio de criterio de ejercicios anteriores. Reservas y result. de ejercicios anteriores. [00429]
A24: 18 | B24: 169 | C24: 17 | D24: N | E24: SALDO, FINAL DEL EJERCICIO ANTERIOR. Ajustes por cambio de criterio de ejercicios anteriores. (Acciones propias y de la soc. dominante). [00430]
A25: 19 | B25: 186 | C25: 17 | D25: N | E25: SALDO, FINAL DEL EJERCICIO ANTERIOR. Ajustes por cambio de criterio de ejercicios anteriores. Otras aportaciones de socios o mutualistas. [00432]
A26: 20 | B26: 203 | C26: 17 | D26: N | E26: SALDO, FINAL DEL EJERCICIO ANTERIOR. Ajustes por cambio de criterio de ejercicios anteriores. Resultado del ejercicio atribuido a soc. dominante. [00433]
A27: 21 | B27: 220 | C27: 17 | D27: N | E27: SALDO, FINAL DEL EJERCICIO ANTERIOR. Ajustes por errores de ejercicios anteriores. Capital. [00439]
A28: 22 | B28: 237 | C28: 17 | D28: N | E28: SALDO, FINAL DEL EJERCICIO ANTERIOR. Ajustes por errores de ejercicios anteriores. Prima de emisión. [00441]
A29: 23 | B29: 254 | C29: 17 | D29: N | E29: SALDO, FINAL DEL EJERCICIO ANTERIOR. Ajustes por errores de ejercicios anteriores. Reservas y result. de ejercicios anteriores. [00442]
A30: 24 | B30: 271 | C30: 17 | D30: N | E30: SALDO, FINAL DEL EJERCICIO ANTERIOR. Ajustes por errores de ejercicios anteriores. (Acciones propias y de la soc. dominante). [00443]
